Department,Entity,Date,Expense Type,Expense Area,Supplier,Transaction Number,Amount,Description,Supplier Post Code
Department for Transport,Department for Transport,03/02/2014,Agency Staff Costs,Group Communication,MICHAEL PAGE INTERNATIONAL,2000023503,2399.9,#,SL1 3SA
Department for Transport,Department for Transport,03/02/2014,Agency Staff Costs,Group Communication,MICHAEL PAGE INTERNATIONAL,2000023503,1499.94,#,SL1 3SA
Department for Transport,Department for Transport,03/02/2014,Agency Staff Costs,Group Finance,MICHAEL PAGE INTERNATIONAL,2000023503,1944,#,SL1 3SA
Department for Transport,Department for Transport,03/02/2014,Agency Staff Costs,Group Finance,MICHAEL PAGE INTERNATIONAL,2000023503,1728,#,SL1 3SA
Department for Transport,Department for Transport,03/02/2014,Agency Staff Costs,Local,EXPERIS LTD,2000023497,3115.73,#,EC1R 3DR
Department for Transport,Department for Transport,03/02/2014,Agency Staff Costs,Strategic Roads & Smart Ticketing,EXPERIS LTD,2000023497,9374.76,#,EC1R 3DR
Department for Transport,Department for Transport,03/02/2014,Agency Staff Costs,Rail Franchising,MICHAEL PAGE INTERNATIONAL,2000023503,666.6,#,SL1 3SA
Department for Transport,Department for Transport,03/02/2014,Agency Staff Costs,Rail Franchising,EXPERIS LTD,2000023497,17882.88,#,EC1R 3DR
Department for Transport,Department for Transport,03/02/2014,Agency Staff Costs,Rail Franchising,EXPERIS LTD,2000023497,4470.72,#,EC1R 3DR
Department for Transport,Department for Transport,03/02/2014,Agency Staff Costs,Rail Franchising,MICHAEL PAGE INTERNATIONAL,2000023503,3333,#,SL1 3SA
Department for Transport,Department for Transport,03/02/2014,Cap Grt Pri Sec-Cos.,Rail Strategy & Funding,NETWORK RAIL INFRASTUCTURE LTD,2000023505,268631822.2,Period Network Rail Grant - 12th Payment,N1 9AG
Department for Transport,Department for Transport,03/02/2014,Car Hire and Leasing,Motoring Services,LEX AUTOLEASE LTD,2000023491,673.68,#,BL9 8RT
Department for Transport,Department for Transport,03/02/2014,Financial Consultanc,Group Procurement & Estate,PRGX UK LIMITED,2000023507,1221.6,#,LU1 3LU
Department for Transport,Department for Transport,03/02/2014,Financial Consultanc,Group Procurement & Estate,PRGX UK LIMITED,2000023507,2040,#,LU1 3LU
Department for Transport,Department for Transport,03/02/2014,Infrastructure Maint,Motoring Services,IBM UNITED KINGDOM LTD,2000023490,201299.4,#,PO6 3AE
Department for Transport,Department for Transport,03/02/2014,Legal Consultancy,Group Human Resource,TREASURY SOLICITOR,2000023512,5208.12,#,WC2B 4TS
Department for Transport,Department for Transport,03/02/2014,Legal Consultancy,Centrally held prog-NATs,ALLEN & OVERY,2000023504,11208.6,#,E1 6AO
Department for Transport,Department for Transport,03/02/2014,Legal Consultancy,Strategic Roads & Smart Ticketing,DLA PIPER UK LLP,2000023495,1715.16,#,M2 3DL
Department for Transport,Department for Transport,03/02/2014,Maintenance Other,"Motoring, Freight & London",TDC SYSTEMS LIMITED,2000023501,480,#,BS24 9BP
Department for Transport,Department for Transport,03/02/2014,Maintenance Other,"Motoring, Freight & London",TDC SYSTEMS LIMITED,2000023501,1815,#,BS24 9BP
Department for Transport,Department for Transport,03/02/2014,OffEquip (Non-Cap),Group Communication,Probrand Ltd,2000023492,737.36,Panasonic - PT-VW340 projector,B1 3BP
Department for Transport,Department for Transport,03/02/2014,Printing,"Policy, Legislation and Funding",WILLIAMS LEA LIMITED,2000023508,8618.8,#,NR3 1PD
Department for Transport,Department for Transport,03/02/2014,Printing,"Policy, Legislation and Funding",WILLIAMS LEA LIMITED,2000023508,10367.5,#,NR3 1PD
Department for Transport,Department for Transport,03/02/2014,Prog&ProjMgmt Consul,Strategic Roads & Smart Ticketing,Rail Settlement Plan,2000023500,123342,#,EC1A 4HD
Department for Transport,Department for Transport,03/02/2014,Publicity,Group Communication,ABBOTT MEAD VICKERS BBDO LTD,2000023493,23800,#,NW1 5QE
Department for Transport,Department for Transport,03/02/2014,Publicity,Group Communication,TNS UK LTD,2000023502,15600,#,W5 1UA
Department for Transport,Department for Transport,03/02/2014,Research,Transport Security Strategy,PUBLIC HEALTH ENGLAND (PHE),2000023498,14300,#,SP4 0JG
Department for Transport,Department for Transport,03/02/2014,Research,Aviation,CIVIL AVIATION AUTHORITY,2000023494,11301.65,#,RH10 0YR
Department for Transport,Department for Transport,04/02/2014,Agency Staff Costs,Group Communication,NETWORKERS INTERNATIONAL (UK) PLC,2000023581,1013.52,#,BR1 1HP
Department for Transport,Department for Transport,04/02/2014,Agency Staff Costs,Group Procurement & Estate,NETWORKERS INTERNATIONAL (UK) PLC,2000023581,6789.98,#,BR1 1HP
Department for Transport,Department for Transport,04/02/2014,Agency Staff Costs,Group Human Resource,HAYS PERSONNEL SERVICE LTD,2000023566,5352,#,KT3 4JQ
Department for Transport,Department for Transport,04/02/2014,Agency Staff Costs,Group Finance,MICHAEL PAGE INTERNATIONAL,2000023578,3210,#,SL1 3SA
Department for Transport,Department for Transport,04/02/2014,Agency Staff Costs,Group Finance,MICHAEL PAGE INTERNATIONAL,2000023578,4080,#,SL1 3SA
Department for Transport,Department for Transport,04/02/2014,Agency Staff Costs,Group Finance,NETWORKERS INTERNATIONAL (UK) PLC,2000023581,3393.6,#,BR1 1HP
Department for Transport,Department for Transport,04/02/2014,Agency Staff Costs,Major Projects & Growth,SPRING TECHNOLOGY LTD  ALSO T/A,2000023582,1320,#,B37 7YE
Department for Transport,Department for Transport,04/02/2014,Agency Staff Costs,Major Projects & Growth,EXPERIS LTD,2000023570,12080.04,#,EC1R 3DR
Department for Transport,Department for Transport,04/02/2014,Agency Staff Costs,Rail Commercial & Programme Office,NETWORKERS INTERNATIONAL (UK) PLC,2000023581,4182.54,#,BR1 1HP
Department for Transport,Department for Transport,04/02/2014,Agency Staff Costs,Rail Commercial & Programme Office,CAPITA RESOURCING LTD,2000023579,14289.6,#,DL1 9HN
Department for Transport,Department for Transport,04/02/2014,Agency Staff Costs,Rail Commercial & Programme Office,EXPERIS LTD,2000023570,2249.94,#,EC1R 3DR
Department for Transport,Department for Transport,04/02/2014,Agency Staff Costs,Rail Strategy & Funding,CAPITA RESOURCING LTD,2000023579,4026,#,DL1 9HN
Department for Transport,Department for Transport,04/02/2014,Agency Staff Costs,Rail Strategy & Funding,EXPERIS LTD,2000023570,4766.76,#,EC1R 3DR
Department for Transport,Department for Transport,04/02/2014,Agency Staff Costs,Group Finance,NETWORKERS INTERNATIONAL (UK) PLC,2000023581,861,#,BR1 1HP
Department for Transport,Department for Transport,04/02/2014,Agency Staff Costs,Group Finance,EXPERIS LTD,2000023570,7700.64,#,EC1R 3DR
Department for Transport,Department for Transport,04/02/2014,Agency Staff Costs,Rail Franchising,CAPITA RESOURCING LTD,2000023579,16524,#,DL1 9HN
Department for Transport,Department for Transport,04/02/2014,Agency Staff Costs,Rail Franchising,CAPITA RESOURCING LTD,2000023579,4200,#,DL1 9HN
Department for Transport,Department for Transport,04/02/2014,Agency Staff Costs,Rail Franchising,CAPITA RESOURCING LTD,2000023579,7461.07,#,DL1 9HN
Department for Transport,Department for Transport,04/02/2014,Agency Staff Costs,Rail Franchising,EXPERIS LTD,2000023570,1788.29,#,EC1R 3DR
Department for Transport,Department for Transport,04/02/2014,Agency Staff Costs,Rail Franchising,EXPERIS LTD,2000023570,11053.44,#,EC1R 3DR
Department for Transport,Department for Transport,04/02/2014,Agency Staff Costs,Rail Commercial & Programme Office,MICHAEL PAGE INTERNATIONAL,2000023578,2220,#,SL1 3SA
Department for Transport,Department for Transport,04/02/2014,Agency Staff Costs,Rail Franchising,NETWORKERS INTERNATIONAL (UK) PLC,2000023581,1767.84,#,BR1 1HP
Department for Transport,Department for Transport,04/02/2014,Contract Cleaning,Rail Accident Investigation Branch,OFFICE CARE LTD,2000023587,1303.52,#,DE24 8AN
Department for Transport,Department for Transport,04/02/2014,Contract Cleaning,Rail Accident Investigation Branch,OFFICE CARE LTD,2000023587,1303.52,#,DE24 8AN
Department for Transport,Department for Transport,04/02/2014,Contract Cleaning,Rail Accident Investigation Branch,OFFICE CARE LTD,2000023587,1303.52,#,DE24 8AN
Department for Transport,Department for Transport,04/02/2014,CurrGrt Las in AEF/A,"Motoring, Freight & London",GREATER LONDON AUTHORITY,2000023593,76479000,GLA Grant Payment - No 23,SE1 2UT
Department for Transport,Department for Transport,04/02/2014,Data Supply - TD,Transport Direct&Travel,LANDMARK INFORMATION GROUP LTD,2000023572,3420,#,EX2 7HY
Department for Transport,Department for Transport,04/02/2014,Eurotunnel Admin Pay,Rail Commercial & Programme Office,SNCF Caisse Generale,2000023524,4959817.14,SNCF CAISSE GENERALE,93633
Department for Transport,Department for Transport,04/02/2014,Eurotunnel Admin Pay,Rail Commercial & Programme Office,SNCF TRESORERIE ENC RHT VFE,2000023525,5231945.49,SNCF Tresorerie ENC RHY VFE,75014
Department for Transport,Department for Transport,04/02/2014,Financial Consultanc,Group Procurement & Estate,PRGX UK LIMITED,2000023586,8176.8,#,LU1 3LU
Department for Transport,Department for Transport,04/02/2014,Legal Consultancy,Major Projects & Growth,FRESHFIELDS,2000023580,642,#,EC4Y 1HS
Department for Transport,Department for Transport,04/02/2014,Research,"Energy, Technology and International",OVE ARUP & PARTNERS,2000023574,74542.06,#,NE1 3PL
Department for Transport,Department for Transport,04/02/2014,Services prov by OGD,Transport Security Strategy,DEFENCE BUSINESS SERVICES,2000023588,2502.38,#,YO10 4AS
Department for Transport,Department for Transport,04/02/2014,Small Software,Marine Accident Investigation Branch,ESRI (UK) LIMITED,2000023571,1312.5,#,HP21 7QG
Department for Transport,Department for Transport,04/02/2014,Subscriptions to Pro,"Energy, Technology and International",EURO NCAP,2000023596,119959.5,#,1050
Department for Transport,Department for Transport,04/02/2014,Subscriptions to Pro,Analysis & Strategy,H M TREASURY,2000023594,1890,#,SW1A 2HQ
Department for Transport,Department for Transport,04/02/2014,Support Services,Aviation,CIVIL AVIATION AUTHORITY,2000023569,65012.88,#,RH10 0YR
Department for Transport,Department for Transport,04/02/2014,Support Services,Aviation,CIVIL AVIATION AUTHORITY,2000023569,62282.93,#,RH10 0YR
Department for Transport,Department for Transport,04/02/2014,Support Services,"Motoring, Freight & London",Environmental Scientifics Group,2000023567,5133.6,#,OX9 3SZ
Department for Transport,Department for Transport,04/02/2014,Support Services,Aviation,xxxxxx,2000023573,877.8,#,xxxxxx
Department for Transport,Department for Transport,04/02/2014,Support Services,"Motoring, Freight & London",DEPARTMENT OF ENERGY&CLIMATE CHANGE,2000023583,1805.57,#,SW1A 2HD
Department for Transport,Department for Transport,04/02/2014,Training,Marine Accident Investigation Branch,CONSILIUM MARINE & SAFETY AB,2000023597,833.33,#,402 76
Department for Transport,Department for Transport,04/02/2014,Transport  Consult,Rail Strategy & Funding,STEER DAVIES & GLEAVE LTD,2000023575,15697.4,#,SE1 9PD
Department for Transport,Department for Transport,05/02/2014,Agency Staff Costs,Local,SPRING TECHNOLOGY LTD  ALSO T/A,2000023695,762.48,#,B37 7YE
Department for Transport,Department for Transport,05/02/2014,Agency Staff Costs,Rail Director's Office,EXPERIS LTD,2000023682,3851.7,#,EC1R 3DR
Department for Transport,Department for Transport,05/02/2014,Agency Staff Costs,Group Finance,PARITY RESOURCES LTD,2000023690,11700,#,SW19 3RU
Department for Transport,Department for Transport,05/02/2014,Agency Staff Costs,Group Finance,PARITY RESOURCES LTD,2000023690,-11700,#,SW19 3RU
Department for Transport,Department for Transport,05/02/2014,Agency Staff Costs,Group Finance,PARITY RESOURCES LTD,2000023690,12480,#,SW19 3RU
Department for Transport,Department for Transport,05/02/2014,Agency Staff Costs,Rail Franchising,EXPERIS LTD,2000023682,10729.73,#,EC1R 3DR
Department for Transport,Department for Transport,05/02/2014,Data Supply - TD,Transport Direct&Travel,BASEMAP LIMITED,2000023704,2848.99,#,GU2 7YG
Department for Transport,Department for Transport,05/02/2014,Data Supply - TD,Transport Direct&Travel,INRIX MEDIA LTD,2000023694,18499.2,#,WA14 1EP
Department for Transport,Department for Transport,05/02/2014,Eurotunnel Admin Pay,Rail Commercial & Programme Office,EUROTUNNEL,2000023643,4358754.3,PYMT FOR OPEX AND USAGE CHARGE JAN 14,CT18 8XY
Department for Transport,Department for Transport,05/02/2014,Eurotunnel Admin Pay,Rail Commercial & Programme Office,EUROTUNNEL (EURO PAYMENTS),2000023618,4709538.95,#,CT18 8X
Department for Transport,Department for Transport,05/02/2014,Investigation Servic,Motoring Services,xxxxxx,2000023700,2429.1,#,xxxxxx
Department for Transport,Department for Transport,05/02/2014,Investigation Servic,Motoring Services,xxxxxx,2000023700,1990.8,#,xxxxxx
Department for Transport,Department for Transport,05/02/2014,Investigation Servic,Motoring Services,xxxxxx,2000023700,3071.48,#,xxxxxx
Department for Transport,Department for Transport,05/02/2014,Investigation Servic,Motoring Services,xxxxxx,2000023700,3070.68,#,xxxxxx
Department for Transport,Department for Transport,05/02/2014,IT Ser Running Costs,Motoring Services,SOFTWARE BOX LTD,2000023688,7030.8,#,YO61 1ET
Department for Transport,Department for Transport,05/02/2014,IT Ser Running Costs,Motoring Services,SELEX ES LTD,2000023702,12280.8,#,BS16 1EJ
Department for Transport,Department for Transport,05/02/2014,Legal Consultancy,Major Projects & Growth,DLA PIPER UK LLP,2000023681,20859.72,#,M2 3DL
Department for Transport,Department for Transport,05/02/2014,Management Consultan,General Counsel's Office,Crawford & Co Adjusters (UK) Ltd,2000023709,17401.2,#,B2 2PF
Department for Transport,Department for Transport,05/02/2014,Manual Handling Equi,Motoring Services,Gemco Services Limited,2000023708,585,#,HX2 6JB
Department for Transport,Department for Transport,05/02/2014,OffEquip (Non-Cap),Group Communication,MISCO,2000023687,2214.97,"Samsung UE55F6800SBXXU 55"" LED TV",NN8 6GS
Department for Transport,Department for Transport,05/02/2014,Other Advertising,"Policy, Legislation and Funding",PENNA COMMUNICATIONS,2000023698,294600.81,#,EC4M 7RD
Department for Transport,Department for Transport,05/02/2014,Property Maintenance,Rail Accident Investigation Branch,INTERSERVE,2000023701,751.27,#,BS32 4NH
Department for Transport,Department for Transport,05/02/2014,Recruitment Fees,Group Human Resource,GATENBY SANDERSON LTD,2000023699,20970,#,LS1 2HL
Department for Transport,Department for Transport,05/02/2014,Research,Major Projects & Growth,ATKINS LTD (TRANSPORT PLANNING),2000023679,6855.85,#,WR5 1TX
Department for Transport,Department for Transport,05/02/2014,Schedule 8 Fixed Per,Rail Commercial & Programme Office,ARRIVA TRAINS WALES,2000023693,794874.33,1411 Wk4 CP2SR P1410 - ARRIVA TRAINS WALES LIMITED,CF10 5DJ
Department for Transport,Department for Transport,05/02/2014,Schedule 8 Fixed Per,Rail Commercial & Programme Office,ARRIVA TRAINS WALES,2000023693,-94717.05,1411 Wk4 RTMRE P1410 - ARRIVA TRAINS WALES LIMITED,CF10 5DJ
Department for Transport,Department for Transport,05/02/2014,Schedule 8 Fixed Per,Rail Commercial & Programme Office,ARRIVA TRAINS WALES,2000023693,45336.57,1411 Wk4 TS8A P1410 - ARRIVA TRAINS WALES LIMITED,CF10 5DJ
Department for Transport,Department for Transport,05/02/2014,Small Software,Group Procurement & Estate,BIP SOLUTIONS LTD,2000023691,800,BIP Delta E notice software licences,G51 1DZ
Department for Transport,Department for Transport,05/02/2014,Small Software,Motoring Services,INSIGHT DIRECT (UK) LTD,2000023678,12401.86,#,UB8 1PH
Department for Transport,Department for Transport,05/02/2014,Small Software,"Energy, Technology and International",LEXISNEXIS UK,2000023686,3517.2,#,SM2 5AS
Department for Transport,Department for Transport,05/02/2014,Small Software,"Energy, Technology and International",LEXISNEXIS UK,2000023686,-3094.91,#,SM2 5AS
Department for Transport,Department for Transport,05/02/2014,Small Software,"Energy, Technology and International",LEXISNEXIS UK,2000023686,9558,#,SM2 5AS
Department for Transport,Department for Transport,05/02/2014,Subscriptions to Pro,Group Human Resource,INSTITUTE FOR EMPLOYMENT STUDIES,2000023705,10200,#,BN1 1UJ
Department for Transport,Department for Transport,05/02/2014,Subscriptions to Pro,General Counsel's Office,TREASURY SOLICITOR,2000023673,54123.26,#,WC2B 4TS
Department for Transport,Department for Transport,05/02/2014,Support Services,Air Accident Investigation Branch,ITS TESTING SERVICES (UK) LTD,2000023684,2190,#,RM20 3NL
Department for Transport,Department for Transport,05/02/2014,Support Services,Air Accident Investigation Branch,T N T INTERNATIONAL,2000023689,1224,#,BL0 9GR
Department for Transport,Department for Transport,05/02/2014,Support Services,"Motoring, Freight & London",HIGHWAYS AGENCY,2000023674,4073.74,#,B1 1RN
Department for Transport,Department for Transport,05/02/2014,Telephone Line Rent,Motoring Services,COLT TELECOMMUNICATIONS,2000023680,3825,Colt Data Services,EC3A 7QN
Department for Transport,Department for Transport,05/02/2014,Transport  Consult,Major Projects & Growth,ATKINS LTD (TRANSPORT PLANNING),2000023679,588.78,#,WR5 1TX
Department for Transport,Department for Transport,05/02/2014,Transport  Consult,Major Projects & Growth,ATKINS LTD (TRANSPORT PLANNING),2000023679,4883.06,#,WR5 1TX
Department for Transport,Department for Transport,05/02/2014,Transport  Consult,Rail Franchising,GRANT THORNTON UK LLP,2000023692,21645.19,#,NN4 7YE
Department for Transport,Department for Transport,05/02/2014,Transport  Consult,Rail Franchising,Leighfisher Ltd,2000023696,17893.54,#,WC2N 4HG
Department for Transport,Department for Transport,06/02/2014,Agency Staff Costs,Group Finance,ALLEN LANE FINANCIAL RECRUITMENT,2000023771,4036.38,#,BN11 2BW
Department for Transport,Department for Transport,06/02/2014,Agency Staff Costs,Group Finance,ALLEN LANE FINANCIAL RECRUITMENT,2000023771,4036.38,#,BN11 2BW
Department for Transport,Department for Transport,06/02/2014,Agency Staff Costs,Group Finance,MICHAEL PAGE INTERNATIONAL,2000023784,2304,#,SL1 3SA
Department for Transport,Department for Transport,06/02/2014,Agency Staff Costs,Group Finance,MICHAEL PAGE INTERNATIONAL,2000023784,4080,#,SL1 3SA
Department for Transport,Department for Transport,06/02/2014,Agency Staff Costs,Rail Director's Office,EXPERIS LTD,2000023774,6933.06,#,EC1R 3DR
Department for Transport,Department for Transport,06/02/2014,Agency Staff Costs,Motoring Services,SPRING TECHNOLOGY LTD  ALSO T/A,2000023787,3182.4,#,B37 7YE
Department for Transport,Department for Transport,06/02/2014,Agency Staff Costs,Group Finance,ALLEN LANE FINANCIAL RECRUITMENT,2000023771,2463.84,#,BN11 2BW
Department for Transport,Department for Transport,06/02/2014,Agency Staff Costs,Rail Franchising,MICHAEL PAGE INTERNATIONAL,2000023784,666.6,#,SL1 3SA
Department for Transport,Department for Transport,06/02/2014,Agency Staff Costs,Group Finance,PARITY RESOURCES LTD,2000023785,6480,#,SW19 3RU
Department for Transport,Department for Transport,06/02/2014,Agency Staff Costs,Rail Franchising,MICHAEL PAGE INTERNATIONAL,2000023784,3333,#,SL1 3SA
Department for Transport,Department for Transport,06/02/2014,Agency Staff Costs,Rail Commercial & Programme Office,MICHAEL PAGE INTERNATIONAL,2000023784,1776,#,SL1 3SA
Department for Transport,Department for Transport,06/02/2014,Cap Grt Pri Sec-Cos.,"Energy, Technology and International",TOYOTA (GB) PLC,2000023791,110000,PiCG Toyota Dec 2013 #110k,KT18 5XS
Department for Transport,Department for Transport,06/02/2014,Computer equipment,Group Communication,Probrand Ltd,2000023770,1830.29,#,B1 3BP
Department for Transport,Department for Transport,06/02/2014,Contract Cleaning,Marine Accident Investigation Branch,PROGRESS CLEANING SERVICES,2000023769,702,#,SO30 2FQ
Department for Transport,Department for Transport,06/02/2014,Data Supply - TD,Transport Direct&Travel,OAG WORLDWIDE LTD,2000023779,2210,#,LU1 3LU
Department for Transport,Department for Transport,06/02/2014,Data Supply - TD,Transport Direct&Travel,Rail Settlement Plan,2000023780,1755.6,#,EC1A 4HD
Department for Transport,Department for Transport,06/02/2014,Eurotunnel Admin Pay,Rail Commercial & Programme Office,SNCF Caisse Generale,2000023730,16588.02,Adjustment for January 2014,93633
Department for Transport,Department for Transport,06/02/2014,Eurotunnel Admin Pay,Rail Commercial & Programme Office,SNCF TRESORERIE ENC RHT VFE,2000023729,17500.79,Adjustment for January 2014,75014
Department for Transport,Department for Transport,06/02/2014,IT Equip Cap Cost,Motoring Services,MISCO,2000023778,1576.32,#,NN8 6GS
Department for Transport,Department for Transport,06/02/2014,IT Equip Cap Cost,Motoring Services,MISCO,2000023778,702.32,#,NN8 6GS
Department for Transport,Department for Transport,06/02/2014,Legal Consultancy,Group Human Resource,TREASURY SOLICITOR,2000023765,4642.18,#,WC2B 4TS
Department for Transport,Department for Transport,06/02/2014,Legal Consultancy,Group Human Resource,TREASURY SOLICITOR,2000023765,-4642.18,#,WC2B 4TS
Department for Transport,Department for Transport,06/02/2014,Legal Consultancy,Group Human Resource,TREASURY SOLICITOR,2000023765,4642.18,#,WC2B 4TS
Department for Transport,Department for Transport,06/02/2014,Legal Consultancy,Group Procurement & Estate,CRIPPS HARRIES HALL LLP,2000023790,1586.4,#,TN1 1EG
Department for Transport,Department for Transport,06/02/2014,Legal Consultancy,Rail Commercial & Programme Office,Eversheds LLP,2000023789,14797.8,#,EC2V 7WS
Department for Transport,Department for Transport,06/02/2014,Legal Consultancy,Rail Commercial & Programme Office,Eversheds LLP,2000023789,31054.8,#,EC2V 7WS
Department for Transport,Department for Transport,06/02/2014,Legal Consultancy,Rail Commercial & Programme Office,Eversheds LLP,2000023789,13332,#,EC2V 7WS
Department for Transport,Department for Transport,06/02/2014,Legal Consultancy,Rail Commercial & Programme Office,Eversheds LLP,2000023789,16071,#,EC2V 7WS
Department for Transport,Department for Transport,06/02/2014,Maintenance Other,"Motoring, Freight & London",TDC SYSTEMS LIMITED,2000023781,5510,#,BS24 9BP
Department for Transport,Department for Transport,06/02/2014,Maintenance Other,"Motoring, Freight & London",TDC SYSTEMS LIMITED,2000023781,6570,#,BS24 9BP
Department for Transport,Department for Transport,06/02/2014,Maintenance Other,"Motoring, Freight & London",TDC SYSTEMS LIMITED,2000023781,2510,#,BS24 9BP
Department for Transport,Department for Transport,06/02/2014,Maintenance Other,"Motoring, Freight & London",TDC SYSTEMS LIMITED,2000023781,3079.73,#,BS24 9BP
Department for Transport,Department for Transport,06/02/2014,Maintenance Other,"Motoring, Freight & London",TDC SYSTEMS LIMITED,2000023781,1125,#,BS24 9BP
Department for Transport,Department for Transport,06/02/2014,Maintenance Other,"Motoring, Freight & London",TDC SYSTEMS LIMITED,2000023781,2495,#,BS24 9BP
Department for Transport,Department for Transport,06/02/2014,Maintenance Other,"Motoring, Freight & London",TDC SYSTEMS LIMITED,2000023781,2760,#,BS24 9BP
Department for Transport,Department for Transport,06/02/2014,Maintenance Other,"Motoring, Freight & London",TDC SYSTEMS LIMITED,2000023781,1675,#,BS24 9BP
Department for Transport,Department for Transport,06/02/2014,Maintenance Other,"Motoring, Freight & London",TDC SYSTEMS LIMITED,2000023781,4760,#,BS24 9BP
Department for Transport,Department for Transport,06/02/2014,Maintenance Other,"Motoring, Freight & London",TDC SYSTEMS LIMITED,2000023781,2510,#,BS24 9BP
Department for Transport,Department for Transport,06/02/2014,Maintenance Other,"Motoring, Freight & London",TDC SYSTEMS LIMITED,2000023781,480,#,BS24 9BP
Department for Transport,Department for Transport,06/02/2014,Other Professional F,Group Finance,Arvato Ltd,2000023799,224955,#,HU10 6FE
Department for Transport,Department for Transport,06/02/2014,Prog&ProjMgmt Consul,"Energy, Technology and International",Moorhouse Consulting Limited,2000023788,27565.2,#,EC4V 5BT
Department for Transport,Department for Transport,06/02/2014,Purchasing Card Char,Group Finance,BARCLAYS BANK PLC,2000023773,6441.4,Barclays DFT Rail Group Feb 2014,NN4 7SG
Department for Transport,Department for Transport,06/02/2014,Rent - L&B (non-PFI),Group Procurement & Estate,xxxxxx,2000023775,66308.84,Rent & Service Charge 28/02/14-27/05/14,xxxxxx
Department for Transport,Department for Transport,06/02/2014,Rent - L&B (non-PFI),Group Procurement & Estate,GVA GRIMLEY,2000023775,66308.84,Rent & Service Charge 28/02/14-27/05/14,B1 2JB
Department for Transport,Department for Transport,06/02/2014,Rent - L&B (non-PFI),Group Procurement & Estate,DWP SHARED SERVICES,2000023766,1133.93,#,CF14 3UW
Department for Transport,Department for Transport,06/02/2014,Research,"Motoring, Freight & London",HALCROW GROUP LTD,2000023776,20328.61,#,W6 7BY
Department for Transport,Department for Transport,06/02/2014,Subscriptions to Pro,Corporate Governance,Association for Project Management,2000023768,2621,#,HP27 9LE
Department for Transport,Department for Transport,06/02/2014,Support Services,Principal Priv. Secretary & Head of Private Office,DRIVER & VEHICLE LICENSING AGENCY,2000023767,-4169.46,#,SA6 7JL
Department for Transport,Department for Transport,06/02/2014,Support Services,Group Finance,DD ACCRAILWAY PENS TRUSTEE,2000023786,987.04,#,DL3 6XR
Department for Transport,Department for Transport,06/02/2014,Support Services,Group Finance,DD ACCRAILWAY PENS TRUSTEE,2000023786,3246.61,#,DL3 6XR
Department for Transport,Department for Transport,06/02/2014,Support Services,Group Finance,DD ACCRAILWAY PENS TRUSTEE,2000023786,701.94,#,DL3 6XR
Department for Transport,Department for Transport,06/02/2014,Training,Motoring Services,DRIVER & VEHICLE LICENSING AGENCY,2000023767,963.34,#,SA6 7JL
Department for Transport,Department for Transport,06/02/2014,Translation Services,Marine Accident Investigation Branch,K INTERNATIONAL PLC,2000023777,500,#,MK5 8PL
Department for Transport,Department for Transport,06/02/2014,Transport  Consult,Rail Franchising,ATKINS LTD (TRANSPORT PLANNING),2000023772,5553.71,#,WR5 1TX
Department for Transport,Department for Transport,06/02/2014,Transport  Consult,Rail Franchising,ATKINS LTD (TRANSPORT PLANNING),2000023772,18365.47,#,WR5 1TX
Department for Transport,Department for Transport,06/02/2014,Treasury Solicitors,General Counsel's Office,TREASURY SOLICITOR,2000023765,640.68,#,WC2B 4TS
Department for Transport,Department for Transport,07/02/2014,Agency Staff Costs,Corporate Governance,BADENOCH & CLARK,2000023860,3442.44,#,EC4V 4BG
Department for Transport,Department for Transport,07/02/2014,Agency Staff Costs,Group Finance,BADENOCH & CLARK,2000023860,3347.7,#,EC4V 4BG
Department for Transport,Department for Transport,07/02/2014,Agency Staff Costs,Group Finance,BADENOCH & CLARK,2000023860,4036.38,#,EC4V 4BG
Department for Transport,Department for Transport,07/02/2014,Agency Staff Costs,Group Finance,MICHAEL PAGE INTERNATIONAL,2000023879,3210,#,SL1 3SA
Department for Transport,Department for Transport,07/02/2014,Agency Staff Costs,Rail Director's Office,EXPERIS LTD,2000023865,3851.7,#,EC1R 3DR
Department for Transport,Department for Transport,07/02/2014,Agency Staff Costs,Major Projects & Growth,EXPERIS LTD,2000023865,10872.04,#,EC1R 3DR
Department for Transport,Department for Transport,07/02/2014,Agency Staff Costs,Major Projects & Growth,LEND LEASE CONSULTING (EMEA) LTD,2000023880,12150,#,NW1 3BF
Department for Transport,Department for Transport,07/02/2014,Agency Staff Costs,Rail Commercial & Programme Office,EXPERIS LTD,2000023865,9629.26,#,EC1R 3DR
Department for Transport,Department for Transport,07/02/2014,Agency Staff Costs,Rail Commercial & Programme Office,EXPERIS LTD,2000023865,3214.2,#,EC1R 3DR
Department for Transport,Department for Transport,07/02/2014,Agency Staff Costs,Rail Franchising,CAPITA RESOURCING LTD,2000023881,11757.01,#,DL1 9HN
Department for Transport,Department for Transport,07/02/2014,Agency Staff Costs,Group Finance,EXPERIS LTD,2000023865,3850.32,#,EC1R 3DR
Department for Transport,Department for Transport,07/02/2014,Agency Staff Costs,Rail Franchising,CAPITA RESOURCING LTD,2000023881,17432.81,#,DL1 9HN
Department for Transport,Department for Transport,07/02/2014,Agency Staff Costs,Rail Franchising,EXPERIS LTD,2000023865,8047.3,#,EC1R 3DR
Department for Transport,Department for Transport,07/02/2014,Agency Staff Costs,Rail Franchising,EXPERIS LTD,2000023865,5526.72,#,EC1R 3DR
Department for Transport,Department for Transport,07/02/2014,Cars Fuel,Air Accident Investigation Branch,ALLSTAR BUSINESS SOLUTIONS LIMITED,2000023859,1002.69,#,SN5 6PS
Department for Transport,Department for Transport,07/02/2014,Electricity,Air Accident Investigation Branch,MINISTRY OF DEFENCE,2000023882,3393.3,MOD - AAIB - 30/10/13 - 30/11/2013 Farnborough,L2 3YL
Department for Transport,Department for Transport,07/02/2014,Investigation Servic,Motoring Services,Procordia Ltd,2000023892,598,#,TN39 4SR
Department for Transport,Department for Transport,07/02/2014,Investigation Servic,Motoring Services,Procordia Ltd,2000023892,1371.5,#,TN39 4SR
Department for Transport,Department for Transport,07/02/2014,IT Equip Cap Cost,Air Accident Investigation Branch,BASSOM COMPUTER CONSULTANCY,2000023862,10631.33,#,GU9 8LS
Department for Transport,Department for Transport,07/02/2014,IT Equip Cap Cost,Motoring Services,MISCO,2000023869,120,TFT Screens: Delivery,NN8 6GS
Department for Transport,Department for Transport,07/02/2014,IT Equip Cap Cost,Motoring Services,MISCO,2000023869,5698.8,#,NN8 6GS
Department for Transport,Department for Transport,07/02/2014,Legal Consultancy,Group Procurement & Estate,DFT ONE TIME VENDOR,2000023900,8589.12,#,SW1P 4DR
Department for Transport,Department for Transport,07/02/2014,Maintenance Other,Motoring Services,ARVAL PHH,2000023858,2931.18,#,SN5 6PE
Department for Transport,Department for Transport,07/02/2014,Management Consultan,Major Projects & Growth,PRICEWATERHOUSECOOPERS LLP,2000023870,15694.28,#,E14 9SQ
Department for Transport,Department for Transport,07/02/2014,Mobile Phone charges,Group Finance,T-MOBILE (UK) LTD,2000023874,655.82,T-mobile Acc No. 43361515 - Jan 2014,AL10 9BW
Department for Transport,Department for Transport,07/02/2014,P&M Capital Cost,Air Accident Investigation Branch,MANTEC SYSTEMS LTD,2000023901,12756.26,#,NE28 9NZ
Department for Transport,Department for Transport,07/02/2014,Purchasing Card Char,RTL DG's Office,BARCLAYS BANK PLC,2000023861,2301.04,Barclays DFT/ RT&L Feb 2014,NN4 7SG
Department for Transport,Department for Transport,07/02/2014,Purchasing Card Char,RTL DG's Office,BARCLAYS BANK PLC,2000023861,25983.42,Barclays DFT RT&L Feb 2014,NN4 7SG
Department for Transport,Department for Transport,07/02/2014,Purchasing Card Char,Centrally held prog-NATs,BARCLAYS BANK PLC,2000023861,27847.48,Barclays - JAN 14 - ISE,NN4 7SG
Department for Transport,Department for Transport,07/02/2014,Purchasing Card Char,Centrally held prog-NATs,BARCLAYS BANK PLC,2000023861,40727.45,Barclays DFT ISE  Feb 2014,NN4 7SG
Department for Transport,Department for Transport,07/02/2014,Purchasing Card Char,Group Finance,BARCLAYS BANK PLC,2000023861,5191.14,Barclays DFT R&S Feb 2014,NN4 7SG
Department for Transport,Department for Transport,07/02/2014,Purchasing Card Char,Group Finance,BARCLAYS BANK PLC,2000023861,23154.19,Barclays DFT R&S Feb 2014,NN4 7SG
Department for Transport,Department for Transport,07/02/2014,Purchasing Card Char,Pre Re-Organisation,BARCLAYS BANK PLC,2000023861,954.8,Barclays DFT HS2 - Feb 2014,NN4 7SG
Department for Transport,Department for Transport,07/02/2014,Research,"Energy, Technology and International",INSPEC INTERNATIONAL LTD,2000023866,8169.12,#,M6 6AJ
Department for Transport,Department for Transport,07/02/2014,Small Software,Group Procurement & Estate,PROCSERVE SHARED SERVICES LTD,2000023885,12361.57,#,SW1W 9SR
Department for Transport,Department for Transport,07/02/2014,Subsidies Private Se,Maritime,ROSPA ENTERPRISES LTD,2000023878,18750,4008597 ROSPA ENTERPRISES LTD,B15 1RP
Department for Transport,Department for Transport,07/02/2014,Support Services,Air Accident Investigation Branch,T N T UK,2000023873,558.56,#,BL0 9AR
Department for Transport,Department for Transport,07/02/2014,Support Services,Strategy and Engagement,Ministry of Justice,1500000029,-1709.21,#,SW1H 9AJ
Department for Transport,Department for Transport,07/02/2014,Support Services,Aviation,CIVIL AVIATION AUTHORITY,2000023864,4200,#,RH10 0YR
Department for Transport,Department for Transport,07/02/2014,Transport  Consult,Local,ALPINE INTERIM,2000023883,1399.99,#,EC4A 2AB
Department for Transport,Department for Transport,07/02/2014,Treasury Solicitors,General Counsel's Office,TREASURY SOLICITOR,2000023857,14454.79,#,WC2B 4TS
Department for Transport,Department for Transport,07/02/2014,Treasury Solicitors,General Counsel's Office,TREASURY SOLICITOR,2000023857,6639.77,#,WC2B 4TS
Department for Transport,Department for Transport,07/02/2014,Treasury Solicitors,General Counsel's Office,TREASURY SOLICITOR,2000023857,946.56,#,WC2B 4TS
Department for Transport,Department for Transport,10/02/2014,Agency Staff Costs,Rail Strategy & Funding,CAPITA RESOURCING LTD,2000023996,4026,#,DL1 9HN
Department for Transport,Department for Transport,10/02/2014,Agency Staff Costs,Rail Strategy & Funding,EXPERIS LTD,2000023988,2383.38,#,EC1R 3DR
Department for Transport,Department for Transport,10/02/2014,Agency Staff Costs,Group Finance,MICHAEL PAGE INTERNATIONAL,2000023995,4608,#,SL1 3SA
Department for Transport,Department for Transport,10/02/2014,Computer equipment,Air Accident Investigation Branch,DELL CORPORATION LTD,2000023985,2998.14,#,RG12 1LF
Department for Transport,Department for Transport,10/02/2014,Electricity,Air Accident Investigation Branch,Watson Petroleum T/A Hall Fuels,2000024016,5206.32,#,TW19 7LN
Department for Transport,Department for Transport,10/02/2014,Financial Consultanc,Major Projects & Growth,WILLIS LIMITED,2000023997,1267.2,#,IP1  1TA
Department for Transport,Department for Transport,10/02/2014,Financial Consultanc,Major Projects & Growth,WILLIS LIMITED,2000023997,11616,#,IP1  1TA
Department for Transport,Department for Transport,10/02/2014,Financial Consultanc,Rail Franchising,PRICEWATERHOUSECOOPERS LLP,2000023991,34873.2,#,E14 9SQ
Department for Transport,Department for Transport,10/02/2014,Investigation Servic,Motoring Services,Procordia Ltd,2000024015,1261,#,TN39 4SR
Department for Transport,Department for Transport,10/02/2014,IT Ser Running Costs,General Counsel's Office,SELEX ES LTD,2000024001,2400,#,BS16 1EJ
Department for Transport,Department for Transport,10/02/2014,IT Ser Running Costs,Motoring Services,Department for Education,2000024018,11880,#,CF14 3UW
Department for Transport,Department for Transport,10/02/2014,Legal Consultancy,Aviation,Dentons UKMEA LLP,2000023998,17817.36,#,EC4M 7WS
Department for Transport,Department for Transport,10/02/2014,Legal Consultancy,Rail Franchising,DLA PIPER UK LLP,2000023987,13876.32,#,M2 3DL
Department for Transport,Department for Transport,10/02/2014,Legal Consultancy,Rail Franchising,DLA PIPER UK LLP,2000023987,17993.76,#,M2 3DL
Department for Transport,Department for Transport,10/02/2014,Legal Consultancy,Rail Franchising,DLA PIPER UK LLP,2000023987,15342.72,#,M2 3DL
Department for Transport,Department for Transport,10/02/2014,Printing,Air Accident Investigation Branch,WILLIAMS LEA LIMITED,2000024002,2574,#,NR3 1PD
Department for Transport,Department for Transport,10/02/2014,Printing,Group Communication,WILLIAMS LEA LIMITED,2000024002,44636.9,#,NR3 1PD
Department for Transport,Department for Transport,10/02/2014,Printing,Group Communication,WILLIAMS LEA LIMITED,2000024002,2334.2,#,NR3 1PD
Department for Transport,Department for Transport,10/02/2014,Recruitment,Group Human Resource,HM REVENUE & CUSTOMS,2000023981,9883.2,#,BN12 4XH
Department for Transport,Department for Transport,10/02/2014,Recruitment,Group Human Resource,HM REVENUE & CUSTOMS,2000023981,2916.3,#,BN12 4XH
Department for Transport,Department for Transport,10/02/2014,Recruitment,Group Human Resource,HM REVENUE & CUSTOMS,2000023981,11801.7,#,BN12 4XH
Department for Transport,Department for Transport,10/02/2014,Recruitment,Group Human Resource,HM REVENUE & CUSTOMS,2000023981,630,#,BN12 4XH
Department for Transport,Department for Transport,10/02/2014,Recruitment Fees,Group Human Resource,HM REVENUE & CUSTOMS,2000023981,19920.6,#,BN12 4XH
Department for Transport,Department for Transport,10/02/2014,Recruitment Fees,Group Human Resource,HM REVENUE & CUSTOMS,2000023981,-5700,#,BN12 4XH
Department for Transport,Department for Transport,10/02/2014,Subscriptions to Pro,Group Procurement & Estate,Corporate Executive Board,2000023982,23000,#,22209
Department for Transport,Department for Transport,10/02/2014,Support Services,Aviation,CIVIL AVIATION AUTHORITY,2000023984,4200,#,RH10 0YR
Department for Transport,Department for Transport,10/02/2014,Support Services,Aviation,CIVIL AVIATION AUTHORITY,2000023984,12000,#,RH10 0YR
Department for Transport,Department for Transport,10/02/2014,Support Services,Aviation,CIVIL AVIATION AUTHORITY,2000023984,12000,#,RH10 0YR
Department for Transport,Department for Transport,10/02/2014,Support Services,"Energy, Technology and International",VEHICLE CERTIFICATION AGENCY,2000023993,100503.41,#,BS5 6XX
Department for Transport,Department for Transport,10/02/2014,Training,Motoring Services,HMG 2157,2000024019,750,#,CB10 2YA
Department for Transport,Department for Transport,10/02/2014,Transport  Consult,Major Projects & Growth,JACOBS UK LTD,2000023990,180019.8,#,G2 7HX
Department for Transport,Department for Transport,10/02/2014,Transport  Consult,Major Projects & Growth,JACOBS UK LTD,2000023990,180019.8,#,G2 7HX
Department for Transport,Department for Transport,10/02/2014,Transport  Consult,Aviation,xxxxxx,2000024017,1400,#,xxxxxx
Department for Transport,Department for Transport,10/02/2014,Travel Expenses UK,Rail Accident Investigation Branch,REDFERN TRAVEL LTD,2000023999,3628.2,Redfern - Jan 14,BD1 3AZ
Department for Transport,Department for Transport,10/02/2014,Travel Expenses UK,Motoring Services,CH&I Associates Ltd,2000024010,4981.08,#,SK11 8AA
Department for Transport,Department for Transport,10/02/2014,Travel Expenses UK,Motoring Services,CH&I Associates Ltd,2000024010,964.08,#,SK11 8AA
Department for Transport,Department for Transport,10/02/2014,Travel Expenses UK,Motoring Services,CH&I Associates Ltd,2000024010,2603.64,#,SK11 8AA
Department for Transport,Department for Transport,10/02/2014,Travel Expenses UK,Motoring Services,CH&I Associates Ltd,2000024010,1210.56,#,SK11 8AA
Department for Transport,Department for Transport,10/02/2014,Travel Expenses UK,Motoring Services,CH&I Associates Ltd,2000024010,1767.48,#,SK11 8AA
Department for Transport,Department for Transport,10/02/2014,Travel Expenses UK,Motoring Services,"Transport For London,",2000024012,6001,#,SE10 1AP
Department for Transport,Department for Transport,11/02/2014,Agency Staff Costs,Group Communication,LA INTERNATIONAL COMPUTER,2000024082,6423.55,#,ST1 5UB
Department for Transport,Department for Transport,11/02/2014,Agency Staff Costs,Group Finance,ALLEN LANE FINANCIAL RECRUITMENT,2000024076,4036.38,#,BN11 2BW
Department for Transport,Department for Transport,11/02/2014,Agency Staff Costs,Major Projects & Growth,BADENOCH & CLARK,2000024077,1853.28,#,EC4V 4BG
Department for Transport,Department for Transport,11/02/2014,Agency Staff Costs,Rail Commercial & Programme Office,MORGAN HUNT UK LTD,2000024085,1959.72,#,EC4M 7EG
Department for Transport,Department for Transport,11/02/2014,Agency Staff Costs,Rail Commercial & Programme Office,MORGAN HUNT UK LTD,2000024085,4703.33,#,EC4M 7EG
Department for Transport,Department for Transport,11/02/2014,Agency Staff Costs,Rail Commercial & Programme Office,MORGAN HUNT UK LTD,2000024085,4311.38,#,EC4M 7EG
Department for Transport,Department for Transport,11/02/2014,Agency Staff Costs,Rail Commercial & Programme Office,MORGAN HUNT UK LTD,2000024085,5095.27,#,EC4M 7EG
Department for Transport,Department for Transport,11/02/2014,Agency Staff Costs,Group Finance,MICHAEL PAGE INTERNATIONAL,2000024093,3840,#,SL1 3SA
Department for Transport,Department for Transport,11/02/2014,Agency Staff Costs,Rail Franchising,LA INTERNATIONAL COMPUTER,2000024082,10560,#,ST1 5UB
Department for Transport,Department for Transport,11/02/2014,Agency Staff Costs,Group Finance,MICHAEL PAGE INTERNATIONAL,2000024093,4608,#,SL1 3SA
Department for Transport,Department for Transport,11/02/2014,Agency Staff Costs,Rail Franchising,CAPITA RESOURCING LTD,2000024094,25536,#,DL1 9HN
Department for Transport,Department for Transport,11/02/2014,Agency Staff Costs,Rail Franchising,CAPITA RESOURCING LTD,2000024094,4740,#,DL1 9HN
Department for Transport,Department for Transport,11/02/2014,Agency Staff Costs,Rail Franchising,CAPITA RESOURCING LTD,2000024094,3295.8,#,DL1 9HN
Department for Transport,Department for Transport,11/02/2014,Agency Staff Costs,Rail Franchising,FIRST CLASS PARTNERSHIPS LTD,2000024095,34200,#,YO10 3EB
Department for Transport,Department for Transport,11/02/2014,Agency Staff Costs,Rail Franchising,FIRST CLASS PARTNERSHIPS LTD,2000024095,20520,#,YO10 3EB
Department for Transport,Department for Transport,11/02/2014,Agents Fees,Group Finance,RAILWAYS PENSION MANAGEMENT LT,2000024098,827178.81,#,DL3 6EH
Department for Transport,Department for Transport,11/02/2014,Cap Grt Pri Sec-Cos.,"Policy, Legislation and Funding",Eversheds LLP,2000024119,997500,HS2 Property Purchase - Glebe House,CF10 5BT
Department for Transport,Department for Transport,11/02/2014,Cap Grt Pri Sec-Cos.,"Policy, Legislation and Funding",Eversheds LLP,2000024119,537500,HS2 Property Purchase - Newland Lodge,CF10 5BT
Department for Transport,Department for Transport,11/02/2014,Car Hire and Leasing,Group Finance,ENTERPRISE RENT-A-CAR,2000024104,12121.4,Enterprise - Car Hire - Jan 14,TW20 8RX
Department for Transport,Department for Transport,11/02/2014,Car Hire and Leasing,Motoring Services,LEX AUTOLEASE LTD,2000024074,461.43,#,BL9 8RT
Department for Transport,Department for Transport,11/02/2014,Car Tax & Insurance,Motoring Services,Towergate Underwriting Group Ltd,2000024111,1602.72,#,MK9 2JH
Department for Transport,Department for Transport,11/02/2014,Cars Maintenance,Motoring Services,Ford Retail Ltd,2000024108,719.1,#,BS3 2TN
Department for Transport,Department for Transport,11/02/2014,Cars Maintenance,Motoring Services,Goodyear Dunlop Tyres UK Ltd,2000024109,432.44,#,B24 9HY
Department for Transport,Department for Transport,11/02/2014,Cars Maintenance,Motoring Services,R A Creamer & Son Ltd,2000024110,428.69,#,W8 4LY
Department for Transport,Department for Transport,11/02/2014,Cars Maintenance,Motoring Services,RSG Engineering Limited,2000024117,4071.62,#,WS11 1DB
Department for Transport,Department for Transport,11/02/2014,Conferences / Semina,Aviation,THOMAS TELFORD LTD.,2000024075,472.5,Interim Report Launch - add costs,SW1P 3AA
Department for Transport,Department for Transport,11/02/2014,Data Supply - TD,Transport Direct&Travel,Rail Settlement Plan,2000024086,1624.43,#,EC1A 4HD
Department for Transport,Department for Transport,11/02/2014,Electricity,Group Procurement & Estate,EDF ENERGY,2000024080,39169.33,EDF - London 01.01.2014 - 31.01.2014,DA6 8ET
Department for Transport,Department for Transport,11/02/2014,Investigation Servic,Motoring Services,Procordia Ltd,2000024116,2077.82,#,TN39 4SR
Department for Transport,Department for Transport,11/02/2014,Publicity,Transport Security Strategy,INTOUCHUK.COM LTD,2000024081,3227.78,#,SW19 2RR
Department for Transport,Department for Transport,11/02/2014,Research,Transport Security Strategy,DEFENCE SCIENCE & TECHNOLOGY,2000024079,163426.8,#,PO14 9HL
Department for Transport,Department for Transport,11/02/2014,Research,Transport Security Strategy,DEFENCE SCIENCE & TECHNOLOGY,2000024079,802071,#,PO14 9HL
Department for Transport,Department for Transport,11/02/2014,Security,Group Human Resource,HM REVENUE & CUSTOMS,2000024071,1475,#,BN12 4XH
Department for Transport,Department for Transport,11/02/2014,Services prov by OGD,Rail Director's Office,Directly Operated Railways Ltd,2000024099,122766.67,#,EC4A 1BL
Department for Transport,Department for Transport,11/02/2014,Small Software,Group Finance,SAP (UK) LTD,2000024087,140218.8,#,TW14 8HD
Department for Transport,Department for Transport,11/02/2014,Telephone charges,Motoring Services,SIEMENS ENTERPRISE COMMUNICATIONS L,2000024088,4917.1,Siemens - charge 01.09.2013 - 10.01.2014,MK15 ODJ
Department for Transport,Department for Transport,11/02/2014,Traffic Survey & Cou,Analysis & Strategy,TNS UK LTD,2000024089,20838,#,W5 1UA
Department for Transport,Department for Transport,11/02/2014,Traffic Survey & Cou,Analysis & Strategy,TNS UK LTD,2000024089,-20838,#,W5 1UA
Department for Transport,Department for Transport,11/02/2014,Traffic Survey & Cou,Analysis & Strategy,TNS UK LTD,2000024089,18754.2,#,W5 1UA
Department for Transport,Department for Transport,11/02/2014,Training,Group Human Resource,HOME OFFICE SHARED SERVICE CENTRE,2000024072,25000,#,NP20 9BB
Department for Transport,Department for Transport,11/02/2014,Transport  Consult,Transport Direct&Travel,AECOM Limited,100029875,1255.5,#,AL1 3ER
Department for Transport,Department for Transport,11/02/2014,Transport  Consult,Transport Direct&Travel,AECOM Limited,100029875,-1255.5,#,AL1 3ER
Department for Transport,Department for Transport,11/02/2014,Transport  Consult,Rail Commercial & Programme Office,GRANT THORNTON UK LLP,2000024096,3824,#,NN4 7YE
Department for Transport,Department for Transport,11/02/2014,Travel Exp Overseas,Rail Accident Investigation Branch,A1 RUSHMOOR RADIO TAXIS LTD,2000024106,708.1,#,GU11 1SJ
Department for Transport,Department for Transport,11/02/2014,Travel Expenses UK,Group Finance,RAIL STAFF TRAVEL LTD,2000024097,3024.5,#,WC1N 1BY
Department for Transport,Department for Transport,11/02/2014,Travel Expenses UK,Marine Accident Investigation Branch,CLYDE TRAVEL,2000024078,500.63,Clyde Travel ,G51 1HJ
Department for Transport,Department for Transport,11/02/2014,Travel Expenses UK,Marine Accident Investigation Branch,CLYDE TRAVEL,2000024078,541.1,Clyde ,G51 1HJ
Department for Transport,Department for Transport,12/02/2014,Agency Staff Costs,Group Human Resource,HAYS PERSONNEL SERVICE LTD,2000024151,4281.6,#,KT3 4JQ
Department for Transport,Department for Transport,12/02/2014,Agents Fees,Group Communication,"Transport For London,",2000024179,15000,#,SE10 1AP
Department for Transport,Department for Transport,12/02/2014,Air Travel,Air Accident Investigation Branch,DFT ONE TIME VENDOR,2000024183,4806,OTV Payment for Operational Reasons,SW1P 4DR
Department for Transport,Department for Transport,12/02/2014,Cap Grt Loc Auth,Strategic Roads & Smart Ticketing,NORFOLK COUNTY COUNCIL,2000024167,145800,Norfolk Smart Enablement and Smart Ticketing Pilot,NR1 2UG
Department for Transport,Department for Transport,12/02/2014,Computer Consumables,Local,XMA LIMITED GOSC,2000024177,195.28,"CB381A HP LJ CM6030/f,CM6040/f,CM6040fsk",NG11 7EP
Department for Transport,Department for Transport,12/02/2014,Computer Consumables,Local,XMA LIMITED GOSC,2000024177,195.28,"CB382A HP LJ CM6030/f,CM6040/f,CM6040fsk",NG11 7EP
Department for Transport,Department for Transport,12/02/2014,Computer Consumables,Local,XMA LIMITED GOSC,2000024177,195.28,"CB383A HP LJ CM6030/f,CM6040/f,CM6040fsk",NG11 7EP
Department for Transport,Department for Transport,12/02/2014,Computer Consumables,Local,XMA LIMITED GOSC,2000024177,106.16,CB390A HP LaserJet CM6030 /CM6030f /CM60,NG11 7EP
Department for Transport,Department for Transport,12/02/2014,CurrGrt Las in AEF/A,Strategic Roads & Smart Ticketing,NORFOLK COUNTY COUNCIL,2000024167,27500,Norfolk Smart Enablement and Smart Ticketing Pilot,NR1 2UG
Department for Transport,Department for Transport,12/02/2014,Data Supply - TD,Transport Direct&Travel,Rail Settlement Plan,2000024161,1624.43,#,EC1A 4HD
Department for Transport,Department for Transport,12/02/2014,Investigation Servic,Motoring Services,xxxxxx,2000024171,2881.14,#,xxxxxx
Department for Transport,Department for Transport,12/02/2014,Investigation Servic,Environment & International Transport Analysis,CHAMBER OF SHIPPING LTD,2000024155,19884,#,EC1M 6EZ
Department for Transport,Department for Transport,12/02/2014,IT Ser Running Costs,Transport Direct&Travel,ATOS IT SERVICES UK LTD,2000024153,16743.6,#,WV10 6UH
Department for Transport,Department for Transport,12/02/2014,IT Ser Running Costs,Group Communication,SPECIALIST COMPUTER CENTRES PLC,100029945,3678,#,B11 2LE
Department for Transport,Department for Transport,12/02/2014,IT Ser Running Costs,Group Communication,SPECIALIST COMPUTER CENTRES PLC,100029945,-3678,#,B11 2LE
Department for Transport,Department for Transport,12/02/2014,Legal Consultancy,Rail Commercial & Programme Office,Burges Salmon,2000024154,55597.6,#,BS2 0ZX
Department for Transport,Department for Transport,12/02/2014,Legal Consultancy,Rail Commercial & Programme Office,Burges Salmon,2000024154,23642.27,#,BS2 0ZX
Department for Transport,Department for Transport,12/02/2014,Legal Consultancy,Transport Security Strategy,PHELPS DUNBAR LLP,2000024150,27285.07,#,70130
Department for Transport,Department for Transport,12/02/2014,Legal Consultancy,Aviation,TREASURY SOLICITOR,100029942,1524.05,#,WC2B 4TS
Department for Transport,Department for Transport,12/02/2014,Legal Consultancy,Aviation,TREASURY SOLICITOR,100029942,-1524.05,Internal Credit against 5105954655,WC2B 4TS
Department for Transport,Department for Transport,12/02/2014,Legal Consultancy,Motoring Services,DLA PIPER UK LLP,2000024157,105107.76,#,M2 3DL
Department for Transport,Department for Transport,12/02/2014,Printing,Air Accident Investigation Branch,WILLIAMS LEA LIMITED,2000024174,1430.24,#,NR3 1PD
Department for Transport,Department for Transport,12/02/2014,Prog&ProjMgmt Consul,Local,STEER DAVIES & GLEAVE LTD,2000024162,59500.75,#,SE1 9PD
Department for Transport,Department for Transport,12/02/2014,Services prov by OGD,"Motoring, Freight & London",DRIVING STANDARDS AGENCY,2000024142,401423.62,#,NG1 6LP
Department for Transport,Department for Transport,12/02/2014,Software Lic Cap,Transport Direct&Travel,MENTZ DATENVERARBEITUNG GMBH,2000024148,2088,#,81675
Department for Transport,Department for Transport,12/02/2014,Support Services,Strategic Roads & Smart Ticketing,HIGHWAYS AGENCY,2000024149,42469.46,#,B1 1RN
Department for Transport,Department for Transport,12/02/2014,Support Services,General Counsel's Office,Crawford & Co Adjusters (UK) Ltd,2000024180,427149.18,BRBR Feb Topup,B2 2PF
Department for Transport,Department for Transport,12/02/2014,Telephone charges,Motoring Services,VERIZON BUSINESS,2000024165,9524.63,Verizon - internet charges - 04/01/2014 - 03/02/14,RG2 6DA
Department for Transport,Department for Transport,12/02/2014,Telephone charges,Motoring Services,VERIZON BUSINESS,2000024165,14890.68,Verizon - internet charges - 01.01.2014 - 31.01.14,RG2 6DA
Department for Transport,Department for Transport,12/02/2014,Training,Group Human Resource,DEVELOPMENT PROCESSES GROUP PLC,2000024172,7995,#,M28 7BQ
Department for Transport,Department for Transport,12/02/2014,Support Services,General Counsel's Office,Thompsons Solicitors,2000024181,38000,Industrial Disease Claim Handling,HA1 3AP
Department for Transport,Department for Transport,12/02/2014,Support Services,General Counsel's Office,Thompsons Solicitors,2000024181,50000,Industrial Disease Claim Handling,HA1 3AP
Department for Transport,Department for Transport,12/02/2014,Training,Group Human Resource,SCT CONSULTANTS LTD,2000024173,4000,#,W8 5RL
Department for Transport,Department for Transport,12/02/2014,Translation Services,Aviation,FCO SERVICES,2000024143,1020,#,MK19 7BH
Department for Transport,Department for Transport,12/02/2014,Transport  Consult,Rail Commercial & Programme Office,Directly Operated Railways Ltd,2000024169,133773.35,#,EC4A 1BL
Department for Transport,Department for Transport,12/02/2014,Transport  Consult,Aviation,PRICEWATERHOUSECOOPERS LLP,2000024160,35829.6,#,E14 9SQ
Department for Transport,Department for Transport,12/02/2014,Transport  Consult,Aviation,PRICEWATERHOUSECOOPERS LLP,2000024160,47364,#,E14 9SQ
Department for Transport,Department for Transport,12/02/2014,Travel Expenses UK,Air Accident Investigation Branch,REDFERN TRAVEL LTD,2000024170,26646.48,Redfern - Jan 14,BD1 3AZ
Department for Transport,Department for Transport,12/02/2014,Travel Expenses UK,Motoring Services,CH&I Associates Ltd,2000024178,581.88,#,SK11 8AA
Department for Transport,Department for Transport,13/02/2014,Agency Staff Costs,Group Communication,NETWORKERS INTERNATIONAL (UK) PLC,2000024479,810.82,#,BR1 1HP
Department for Transport,Department for Transport,13/02/2014,Agency Staff Costs,Centrally held prog-NATs,LA INTERNATIONAL COMPUTER,2000024471,2099.16,#,ST1 5UB
Department for Transport,Department for Transport,13/02/2014,Agency Staff Costs,Group Finance,MICHAEL PAGE INTERNATIONAL,2000024476,3240,#,SL1 3SA
Department for Transport,Department for Transport,13/02/2014,Agency Staff Costs,Group Finance,MICHAEL PAGE INTERNATIONAL,2000024476,3852,#,SL1 3SA
Department for Transport,Department for Transport,13/02/2014,Agency Staff Costs,Group Finance,MICHAEL PAGE INTERNATIONAL,2000024476,3240,#,SL1 3SA
Department for Transport,Department for Transport,13/02/2014,Agency Staff Costs,Major Projects & Growth,CAPITA RESOURCING LTD,2000024477,10365.9,#,DL1 9HN
Department for Transport,Department for Transport,13/02/2014,Agency Staff Costs,Rail Commercial & Programme Office,NETWORKERS INTERNATIONAL (UK) PLC,2000024479,4182.54,#,BR1 1HP
Department for Transport,Department for Transport,13/02/2014,Agency Staff Costs,Motoring Services,SPRING TECHNOLOGY LTD  ALSO T/A,2000024481,3182.4,#,B37 7YE
Department for Transport,Department for Transport,13/02/2014,Agency Staff Costs,Group Finance,ALLEN LANE FINANCIAL RECRUITMENT,2000024465,2463.84,#,BN11 2BW
Department for Transport,Department for Transport,13/02/2014,Agency Staff Costs,Group Finance,NETWORKERS INTERNATIONAL (UK) PLC,2000024479,861,#,BR1 1HP
Department for Transport,Department for Transport,13/02/2014,Agency Staff Costs,Strategic Roads & Smart Ticketing,BADENOCH & CLARK,2000024467,5225.76,#,EC4V 4BG
Department for Transport,Department for Transport,13/02/2014,Agency Staff Costs,Strategic Roads & Smart Ticketing,BADENOCH & CLARK,2000024467,5225.76,#,EC4V 4BG
Department for Transport,Department for Transport,13/02/2014,Agency Staff Costs,Strategic Roads & Smart Ticketing,BADENOCH & CLARK,2000024467,5225.76,#,EC4V 4BG
Department for Transport,Department for Transport,13/02/2014,Agency Staff Costs,Strategic Roads & Smart Ticketing,BADENOCH & CLARK,2000024467,5225.76,#,EC4V 4BG
Department for Transport,Department for Transport,13/02/2014,Agency Staff Costs,Strategic Roads & Smart Ticketing,BADENOCH & CLARK,2000024467,5225.76,#,EC4V 4BG
Department for Transport,Department for Transport,13/02/2014,Agency Staff Costs,Rail Franchising,CAPITA RESOURCING LTD,2000024477,12998.7,#,DL1 9HN
Department for Transport,Department for Transport,13/02/2014,Agency Staff Costs,Rail Franchising,BADENOCH & CLARK,2000024467,3545.7,#,EC4V 4BG
Department for Transport,Department for Transport,13/02/2014,Agency Staff Costs,Motoring Services,BADENOCH & CLARK,2000024467,3705,#,EC4V 4BG
Department for Transport,Department for Transport,13/02/2014,Agency Staff Costs,Rail Franchising,BADENOCH & CLARK,2000024467,3270.3,#,EC4V 4BG
Department for Transport,Department for Transport,13/02/2014,Agency Staff Costs,Motoring Services,BADENOCH & CLARK,2000024467,3705,#,EC4V 4BG
Department for Transport,Department for Transport,13/02/2014,Building Service Cha,Group Procurement & Estate,Amey Community Ltd,2000024501,13521.48,#,OX4 4DQ
Department for Transport,Department for Transport,13/02/2014,Cap Grt Loc Auth,"Energy, Technology and International",CENEX,2000024485,7903.33,Midlands Q3 FY1314 7903.23,LE11 3TU
Department for Transport,Department for Transport,13/02/2014,Cap Grt Pri Sec-Cos.,Major Projects & Growth,NETWORK RAIL INFRASTRUCTURE LTD,2000024482,366174.13,NR WP1 12Oct13-23Jan14,M60 7WY
Department for Transport,Department for Transport,13/02/2014,Cap Grt Pri Sec-Cos.,"Energy, Technology and International",ASHWOODS AUTOMOTIVE LTD,2000024490,72030,LCVPPP Ashwood #72 26th Payment 21 Vehicles,EX4 8DS
Department for Transport,Department for Transport,13/02/2014,Cap Grt Pri Sec-Cos.,"Energy, Technology and International",ASHWOODS AUTOMOTIVE LTD,2000024490,68600,LCVPPP Ashwood #72 27th Payment,EX4 8DS
Department for Transport,Department for Transport,13/02/2014,Car Tax & Insurance,Motoring Services,KWIK FIT (GB) LIMITED,2000024497,488.78,#,SG6 2HU
Department for Transport,Department for Transport,13/02/2014,Cars Maintenance,Motoring Services,Goodyear Dunlop Tyres UK Ltd,2000024494,2731.74,#,B24 9HY
Department for Transport,Department for Transport,13/02/2014,Conferences / Semina,"Energy, Technology and International",DFT ONE TIME VENDOR,2000024462,2282.16,Stansfield Seminar - Oct/Nov 13,SW1P 4DR
Department for Transport,Department for Transport,13/02/2014,CurrGrt Las in AEF/A,Local,HALTON BOROUGH TRANSPORT LTD,2000024343,99655.44,Halton Borough Transport Ltd,WA8 7AF
Department for Transport,Department for Transport,13/02/2014,CurrGrt Las in AEF/A,Local,IPSWICH BUSES LTD,2000024354,103878.86,Ipswich Buses Limited,IP1 2DL
Department for Transport,Department for Transport,13/02/2014,CurrGrt Las in AEF/A,Local,NOTTINGHAM CITY TRANSPORT LTD,2000024373,784815.71,Nottingham City Transport Ltd,N61 1GG
Department for Transport,Department for Transport,13/02/2014,CurrGrt Las in AEF/A,Local,PLYMOUTH CITYBUS LTD,2000024379,317377.76,Plymouth Citybus Ltd,PL3 4AA
Department for Transport,Department for Transport,13/02/2014,CurrGrt Las in AEF/A,Local,READING TRANSPORT LIMITED,2000024383,238814.83,READING TRANSPORT LIMITED,RG1 7HH
Department for Transport,Department for Transport,13/02/2014,Data Supply - TD,Transport Direct&Travel,Rail Settlement Plan,2000024472,1755.6,#,EC1A 4HD
Department for Transport,Department for Transport,13/02/2014,Grt Aid to NDPBs,"Policy, Legislation and Funding",HS2,2000024483,9000000,HS2 February 2014 2nd Tranche,SW1E 5DU
Department for Transport,Department for Transport,13/02/2014,IT Ser Running Costs,Transport Direct&Travel,ITO WORLD LTD,2000024470,7200,#,IP4 5JA
Department for Transport,Department for Transport,13/02/2014,IT Ser Running Costs,Group Communication,SPECIALIST COMPUTER CENTRES PLC,100029991,735.6,#,B11 2LE
Department for Transport,Department for Transport,13/02/2014,IT Ser Running Costs,Group Communication,SPECIALIST COMPUTER CENTRES PLC,100029991,-735.6,#,B11 2LE
Department for Transport,Department for Transport,13/02/2014,IT Ser Running Costs,Group Communication,ROAD SAFETY ANALYSIS LIMITED,2000024487,2400,#,OX17 1JA
Department for Transport,Department for Transport,13/02/2014,Legal Consultancy,Rail Franchising,xxxxxx,2000024468,9150.6,#,xxxxxx
Department for Transport,Department for Transport,13/02/2014,Legal Consultancy,Rail Franchising,BEVAN BRITTAN,2000024468,9150.6,#,BS2 0HQ
Department for Transport,Department for Transport,13/02/2014,Machinery Rental,Rail Accident Investigation Branch,KONICA MINOLTA BUS. SOLUTIONS  (UK),2000024463,592.19,#,SS14 3AR
Department for Transport,Department for Transport,13/02/2014,Other Advertising,Local,PENNA COMMUNICATIONS,2000024486,5156.86,#,EC4M 7RD
Department for Transport,Department for Transport,13/02/2014,Other Advertising,Local,PENNA COMMUNICATIONS,2000024486,7220.82,#,EC4M 7RD
Department for Transport,Department for Transport,13/02/2014,Other Advertising,Local,PENNA COMMUNICATIONS,2000024486,8520.94,#,EC4M 7RD
Department for Transport,Department for Transport,13/02/2014,Other Advertising,Local,PENNA COMMUNICATIONS,2000024486,7310.73,#,EC4M 7RD
Department for Transport,Department for Transport,13/02/2014,Other Advertising,Local,PENNA COMMUNICATIONS,2000024486,9651.61,#,EC4M 7RD
Department for Transport,Department for Transport,13/02/2014,Other Advertising,Local,PENNA COMMUNICATIONS,2000024486,6864.99,#,EC4M 7RD
Department for Transport,Department for Transport,13/02/2014,Other Professional F,Group Finance,Arvato Ltd,2000024500,224955,#,HU10 6FE
Department for Transport,Department for Transport,13/02/2014,Postage,"Policy, Legislation and Funding",ROYAL MAIL,2000024473,669.31,#,PE4 5PG
Department for Transport,Department for Transport,13/02/2014,Protective Clothing,Air Accident Investigation Branch,Contego Safety Solutions LLP,2000024498,1170.98,CONTEGO SAFETY COVERALLS GLOVES 22/01/14,BN6 9LA
Department for Transport,Department for Transport,13/02/2014,Recruitment Fees,Group Human Resource,CABINET OFFICE,2000024461,2070,Payment at old VAT Rate,CF14 3UW
Department for Transport,Department for Transport,13/02/2014,Rent - L&B (non-PFI),Group Procurement & Estate,DWP SHARED SERVICES,2000024460,20091.04,#,CF14 3UW
Department for Transport,Department for Transport,13/02/2014,Small Software,Group Communication,THE PRESS ASSOCIATION LTD,2000024480,875.56,#,SW1V 1A
Department for Transport,Department for Transport,13/02/2014,Subsidies Private Se,Local,A LYLES & SON,2000024441,4216.57,A Lyles & Son,WF17 6LA
Department for Transport,Department for Transport,13/02/2014,Subsidies Private Se,Local,A P L TRAVEL,2000024263,5621.09,APL TRAVEL LTD,SN16 9ES
Department for Transport,Department for Transport,13/02/2014,Subsidies Private Se,Local,A W EASTON'S COACHES LTD,2000024264,3191.68,A W Eastons Coaches Ltd,NR10 5LR
Department for Transport,Department for Transport,13/02/2014,Subsidies Private Se,Local,AMBASSADOR TRAVEL,2000024265,1772.3,AMBASSADOR TRAVEL (ANGLIA) LTD,NR31 0NX
Department for Transport,Department for Transport,13/02/2014,Subsidies Private Se,Local,Amber Coaches Ltd,2000024453,2701.69,Amber Coaches Ltd,SS6 9RL
Department for Transport,Department for Transport,13/02/2014,Subsidies Private Se,Local,ANGLIAN BUS LTD,2000024266,90320.43,Anglian Bus Ltd,NR34 7TH
Department for Transport,Department for Transport,13/02/2014,Subsidies Private Se,Local,ANTHONYS TRAVEL,2000024267,3980.25,ANTHONY'S TRAVEL,WA7 5BH
Department for Transport,Department for Transport,13/02/2014,Subsidies Private Se,Local,ARRIVA KENT & SUSSEX,2000024439,603362.98,Arriva Kent & Sussex,LU4 8DS
Department for Transport,Department for Transport,13/02/2014,Subsidies Private Se,Local,ARRIVA MERSEYSIDE LTD,2000024269,1455295.22,ARRIVA MERSEYSIDE LIMITED,L9 5AE
Department for Transport,Department for Transport,13/02/2014,Subsidies Private Se,Local,ARRIVA NORTH WEST LTD,2000024271,426308.75,ARRIVA NORTH WEST LTD,L9 5AE
Department for Transport,Department for Transport,13/02/2014,Subsidies Private Se,Local,ARRIVA NORTHUMBRIA LTD,2000024268,719096.24,Arriva Durham County,SR3 3XP
Department for Transport,Department for Transport,13/02/2014,Subsidies Private Se,Local,ARRIVA SOUTHEND COUNTIES LTD,2000024272,126657.73,ARRIVA SOUTHEND LIMITED,ME15 6TX
Department for Transport,Department for Transport,13/02/2014,Subsidies Private Se,Local,ARRIVA THAMESIDE,2000024372,131188.07,ARRIVA THAMESIDE,LU4 8DS
Department for Transport,Department for Transport,13/02/2014,Subsidies Private Se,Local,ARRIVA YORKSHIRE LTD,2000024273,757034.26,Arriva Yorkshire Ltd,WF1 5JX
Department for Transport,Department for Transport,13/02/2014,Subsidies Private Se,Local,B L TRAVEL,2000024275,12224.73,B L TRAVEL,WF9 5JB
Department for Transport,Department for Transport,13/02/2014,Subsidies Private Se,Local,BANGA BUSES,2000024426,10577.92,BANGA BUSES,WV2 1DT
Department for Transport,Department for Transport,13/02/2014,Subsidies Private Se,Local,BARRATTS COACHES LTD,2000024276,10973.85,BARRATTS COACHES LTD,CW5 6LT
Department for Transport,Department for Transport,13/02/2014,Subsidies Private Se,Local,BARTON BUSES,2000024277,232185.07,BARTON BUSES LTD,DE75 7BG
Department for Transport,Department for Transport,13/02/2014,Subsidies Private Se,Local,BEESTONS HADLEIGH,2000024278,16820.02,BEESTONS (HADLEIGH) LTD,IP7 5DB
Department for Transport,Department for Transport,13/02/2014,Subsidies Private Se,Local,BENNETTS TRAVEL (CRANBERRY)LTD,2000024279,9667.47,BENNETTS TRAVEL (CRANBERRY) LTD,ST21 6SQ
Department for Transport,Department for Transport,13/02/2014,Subsidies Private Se,Local,BEXHILL COMMUNITY BUS LTD,2000024280,548.39,BEXHILL COMMUNITY BUS LTD,TN40 1QF
Department for Transport,Department for Transport,13/02/2014,Subsidies Private Se,Local,BRYN MELYN LTD,2000024283,7310.44,Bryn Melyn Ltd,LL14 6UY
Department for Transport,Department for Transport,13/02/2014,Subsidies Private Se,Local,BURNLEY & PENDLE TRAVEL LTD,2000024284,181464.09,Burnley & Pendle Travel Limited,BD21 2JX
Department for Transport,Department for Transport,13/02/2014,Subsidies Private Se,Local,BUZZLINES,2000024286,1091.25,BUZZLINES,CT21 4LR
Department for Transport,Department for Transport,13/02/2014,Subsidies Private Se,Local,CEDAR COACHES,2000024287,4125.8,Cedar Coaches,MK42 0LE
Department for Transport,Department for Transport,13/02/2014,Subsidies Private Se,Local,CENTAUR OVERLAND TRAVEL LTD,2000024444,26630.37,Centaur Overland Travel Ltd,DA15 8DJ
Department for Transport,Department for Transport,13/02/2014,Subsidies Private Se,Local,CENTRAL CONNECT,2000024423,47214.89,Central Connect Ltd (formerly Zak's Bus & Coach),B7 5JJ
Department for Transport,Department for Transport,13/02/2014,Subsidies Private Se,Local,CENTREBUS EAST LTD,2000024361,151322.81,CENTREBUS LTD,LE4 9HR
Department for Transport,Department for Transport,13/02/2014,Subsidies Private Se,Local,CHALKWELL COACH HIRE,2000024288,26184.66,Chalkwell Garage & Coach Hire Ltd,ME10 1BJ
Department for Transport,Department for Transport,13/02/2014,Subsidies Private Se,Local,CHELTENHAM & DIST TRACTION CO,2000024290,106551.04,CHELTENHAM & DISTRICT TRACTION CO LTD,SK3 0DU
Department for Transport,Department for Transport,13/02/2014,Subsidies Private Se,Local,CHELTENHAM & GLOUCESTER OMNIBUS,2000024291,235626.65,Cheltenham & Gloucester Omnibus Co Ltd,SK3 0DU
Department for Transport,Department for Transport,13/02/2014,Subsidies Private Se,Local,CLASSIC COACHES (CONTINENTAL) LTD,2000024292,3895.25,Classic Coaches (Continental) Ltd t/a Primrose,DH9 7RX
Department for Transport,Department for Transport,13/02/2014,Subsidies Private Se,Local,COASTAL & COUNTRY COACHES,2000024293,1032.78,Coastal and Country Coaches Ltd,YO22 4PU
Department for Transport,Department for Transport,13/02/2014,Subsidies Private Se,Local,COMPASS ROYSTON TRAVEL LTD,2000024295,12468,COMPASS ROYSTON TRAVEL LTD,TS18 3EG
Department for Transport,Department for Transport,13/02/2014,Subsidies Private Se,Local,COMPASS TRAVEL (SUSSEX) LTD,2000024296,13912.26,COMPASS TRAVEL (SUSSEX) LTD,BN13 3RB
Department for Transport,Department for Transport,13/02/2014,Subsidies Private Se,Local,COPELAND'S TOURS,2000024297,1321.03,Copeland's Tours (Stoke On Trent) Ltd,ST3 6HE
Department for Transport,Department for Transport,13/02/2014,Subsidies Private Se,Local,Cornwall Ferries Ltd,2000024458,6342.42,Cornwall Ferries Ltd,TR3 6QJ
Department for Transport,Department for Transport,13/02/2014,Subsidies Private Se,Local,COTSWOLD GREEN LTD,2000024428,2599.01,Cotswold Green,GL6 0BS
Department for Transport,Department for Transport,13/02/2014,Subsidies Private Se,Local,COURTNEY COACHES LTD,2000024299,23516.66,COURTNEY COACHES (BIODIESEL),RG12 1QS
Department for Transport,Department for Transport,13/02/2014,Subsidies Private Se,Local,COURTNEY COACHES LTD,2000024299,7838.82,COURTNEY COACHES LTD,RG12 1QS
Department for Transport,Department for Transport,13/02/2014,Subsidies Private Se,Local,CROSSVILLE MOTOR SERVICES LIMITED,2000024438,23426.14,Crosville Motor Services Ltd,BS24 9AD
Department for Transport,Department for Transport,13/02/2014,Subsidies Private Se,Local,CRUISERS LTD,2000024300,2004.48,Cruisers Ltd,RH1 4DP
Department for Transport,Department for Transport,13/02/2014,Subsidies Private Se,Local,CUCKMERE COMMUNITY BUS,2000024301,2782.1,CUCKMERE COMMUNITY BUS,BN26 5RB
Department for Transport,Department for Transport,13/02/2014,Subsidies Private Se,Local,CUMFYBUS LTD,2000024302,25589.6,CUMFYBUS LTD,PR9 7PL
Department for Transport,Department for Transport,13/02/2014,Subsidies Private Se,Local,D & FD ATKINSON T/A,2000024274,1027.58,D & FD ATKINSON t/a ATKINSON COACHES,HG4 3SH
Department for Transport,Department for Transport,13/02/2014,Subsidies Private Se,Local,D & H HARROD (COACHES) LTD,2000024303,3595.49,D & H Harrod (Coaches) Ltd,PE38 9LU
Department for Transport,Department for Transport,13/02/2014,Subsidies Private Se,Local,D JONES & SON,2000024304,2672.01,D Jones & Sons,LL14 1TP
Department for Transport,Department for Transport,13/02/2014,Subsidies Private Se,Local,DAMORY COACHES,2000024306,5182.75,DAMORY COACHES,BH15 2PR
Department for Transport,Department for Transport,13/02/2014,Subsidies Private Se,Local,EAST MIDLAND MOTOR SERVICE,2000024308,217834.15,Stagecoach Yorkshire,SK3 0DU
Department for Transport,Department for Transport,13/02/2014,Subsidies Private Se,Local,EAST SURREY RURAL TRANSPORT,2000024424,1434.01,East Surrey Rural Transport Partnership,RH8 0BT
Department for Transport,Department for Transport,13/02/2014,Subsidies Private Se,Local,EAST YORKS MOTOR SERVICES LTD,2000024309,359444.18,EAST YORKS MOTOR SERVICES LTD,HU3 2RS
Department for Transport,Department for Transport,13/02/2014,Subsidies Private Se,Local,xxxxxx,2000024311,1091.07,F E FINCH COACHES,xxxxxx
Department for Transport,Department for Transport,13/02/2014,Subsidies Private Se,Local,FARELINE BUSES & COACH SERVICES,2000024312,702.68,Fareline Bus & Coach Services,IP21 5RF
Department for Transport,Department for Transport,13/02/2014,Subsidies Private Se,Local,FELLRUNNER VILLAGE BUS LTD,2000024313,625.6,Fellrunner Village Bus Ltd,CA10 1JQ
Department for Transport,Department for Transport,13/02/2014,Subsidies Private Se,Local,FINGLANDS COACHWAYS,2000024314,43815.16,Finglands Coachways Ltd,M14 5LJ
Department for Transport,Department for Transport,13/02/2014,Subsidies Private Se,Local,First Beeline Buses Ltd,2000024315,163922.36,FIRST BEELINE BUSES LTD,SA5 7BN
Department for Transport,Department for Transport,13/02/2014,Subsidies Private Se,Local,FIRST BRADFORD LTD,2000024316,415114.14,FIRST WEST YORKSHIRE LTD,BD4 8SP
Department for Transport,Department for Transport,13/02/2014,Subsidies Private Se,Local,FIRST DEVON & CORNWALL LTD,2000024317,317204.58,FIRST DEVON & CORNWALL LTD,PL9 7JT
Department for Transport,Department for Transport,13/02/2014,Subsidies Private Se,Local,FIRST DORSET,2000024321,147396.62,FIRST HAMPSHIRE & DORSET LTD,SO14 0JW
Department for Transport,Department for Transport,13/02/2014,Subsidies Private Se,Local,FIRST EASTERN COUNTIES BUSES LTD,2000024318,640113.78,FIRST EASTERN COUNTIES BUSES LTD,LE4 0DA
Department for Transport,Department for Transport,13/02/2014,Subsidies Private Se,Local,FIRST ESSEX BUSES,2000024319,743438.98,FIRST ESSEX BUSES LTD,LE4 0DA
Department for Transport,Department for Transport,13/02/2014,Subsidies Private Se,Local,FIRST HALIFAX,2000024320,252861.88,FIRST HALIFAX,HX1 2RF
Department for Transport,Department for Transport,13/02/2014,Subsidies Private Se,Local,FIRST HAMPSHIRE & DORSET LTD,2000024323,193715.28,FIRST SOUTHAMPTON,SO14 0JW
Department for Transport,Department for Transport,13/02/2014,Subsidies Private Se,Local,FIRST HUDDERSFIELD,2000024324,220898.57,FIRST HUDDERSFIELD,HD2 1AG
Department for Transport,Department for Transport,13/02/2014,Subsidies Private Se,Local,First Leeds,2000024325,1034227.79,FIRST LEEDS,LS10 1PL
Department for Transport,Department for Transport,13/02/2014,Subsidies Private Se,Local,FIRST MANCHESTER (WIGAN),2000024326,341492.15,FIRST MANCHESTER (BURY),LS10 1PL
Department for Transport,Department for Transport,13/02/2014,Subsidies Private Se,Local,FIRST MANCHESTER (WIGAN),2000024326,272415.19,FIRST MANCHESTER (QUEENS ROAD),LS10 1PL
Department for Transport,Department for Transport,13/02/2014,Subsidies Private Se,Local,FIRST MANCHESTER (WIGAN),2000024326,325064.91,FIRST MANCHESTER LTD (BOLTON),LS10 1PL
Department for Transport,Department for Transport,13/02/2014,Subsidies Private Se,Local,FIRST MANCHESTER (WIGAN),2000024326,350949.85,First Manchester Ltd (Oldham),LS10 1PL
Department for Transport,Department for Transport,13/02/2014,Subsidies Private Se,Local,FIRST MANCHESTER (WIGAN),2000024326,60326.65,First Manchester T/A First Pennine,LS10 1PL
Department for Transport,Department for Transport,13/02/2014,Subsidies Private Se,Local,FIRST PMT LTD,2000024328,372845.68,FIRST POTTERIES LIMITED,LE4 0DA
Department for Transport,Department for Transport,13/02/2014,Subsidies Private Se,Local,FIRST PROVINCIAL,2000024322,323399.62,FIRST PROVINCIAL,SO14 0JW
Department for Transport,Department for Transport,13/02/2014,Subsidies Private Se,Local,FIRST SOUTH YORKSHIRE LTD,2000024329,1338863.06,FIRST SOUTH YORKSHIRE LTD,LS10 1PL
Department for Transport,Department for Transport,13/02/2014,Subsidies Private Se,Local,FIRST WYVERN,2000024327,138504.01,FIRST MIDLAND RED BUSES LTD,LE4 0DA
Department for Transport,Department for Transport,13/02/2014,Subsidies Private Se,Local,FIRST YORK (RIDER YORK) LTD,2000024330,225904.63,FIRST YORK (Rider York) Limited,YO10 3WW
Department for Transport,Department for Transport,13/02/2014,Subsidies Private Se,Local,FLEET BUZZ LTD,2000024298,17055.06,Fleet Buzz Ltd,PO19 8DG
Department for Transport,Department for Transport,13/02/2014,Subsidies Private Se,Local,FLIGHTS COACH TRAVEL,2000024331,99459.55,FLIGHT HALLMARK T/A WESSEX CONNECT,B7 5JJ
Department for Transport,Department for Transport,13/02/2014,Subsidies Private Se,Local,G & J HOLMES (COACHES) LTD,2000024332,2962.06,G & J HOLMES COACHES LTD,S45 9LY
Department for Transport,Department for Transport,13/02/2014,Subsidies Private Se,Local,GALLOWAY EUROPEAN COACHLINES LTD,2000024333,9138.6,Galloway European Coachlines Ltd,IP14 5RR
Department for Transport,Department for Transport,13/02/2014,Subsidies Private Se,Local,GHA COACHES,2000024334,36411.86,G H A Coaches Ltd,LL14 6UY
Department for Transport,Department for Transport,13/02/2014,Subsidies Private Se,Local,GILLINGHAM COACHES,2000024335,857.37,GILLINGHAM COACHES,DH9 8JZ
Department for Transport,Department for Transport,13/02/2014,Subsidies Private Se,Local,GLEN VALLEY TOURS LTD,2000024336,3547.32,GLEN VALLEY TOURS LTD,NE71 6SP
Department for Transport,Department for Transport,13/02/2014,Subsidies Private Se,Local,GO AHEAD NORTHERN,2000024337,872894.7,Go North East,NE8 2UA
Department for Transport,Department for Transport,13/02/2014,Subsidies Private Se,Local,GO AHEAD NORTHERN,2000024337,748751.63,GO NORTHERN,NE8 2UA
Department for Transport,Department for Transport,13/02/2014,Subsidies Private Se,Local,GO RIDE COMMUNITY,2000024436,2110,Go Ride Community Interest Company,OX14 3UY
Department for Transport,Department for Transport,13/02/2014,Subsidies Private Se,Local,GO-COACHHIRE LTD,2000024430,28682.84,GO-COACH HIRE LIMITED,TN14 5EL
Department for Transport,Department for Transport,13/02/2014,Subsidies Private Se,Local,GRAYLINE COACHES,2000024339,4062.35,GRAYLINE COACHES,OX26 6HU
Department for Transport,Department for Transport,13/02/2014,Subsidies Private Se,Local,H C CHAMBERS & SON LTD,2000024340,23644.62,H C Chambers & Son Ltd,CO3 0UL
Department for Transport,Department for Transport,13/02/2014,Subsidies Private Se,Local,H S NEAVE & SON LTD,2000024341,2554.44,H S NEAVE & SON LTD,NR29 5AA
Department for Transport,Department for Transport,13/02/2014,Subsidies Private Se,Local,HALIFAX BUS CO LTD,2000024342,22668.73,HALIFAX BUS COMPANY LTD,HX6 2SB
Department for Transport,Department for Transport,13/02/2014,Subsidies Private Se,Local,HARROGATE & DISTRICT TRAVEL LTD,2000024344,134016.08,Harrogate & District Travel Ltd,HG2 7NY
Department for Transport,Department for Transport,13/02/2014,Subsidies Private Se,Local,HARROGATE COACH TRAVEL LTD,2000024345,20995.92,HARROGATE COACH TRAVEL,YO26 8BE
Department for Transport,Department for Transport,13/02/2014,Subsidies Private Se,Local,HASTINGS & DISTRICT TRANSPORT LTD,2000024401,120795.91,HASTINGS & DISTRICT TRANSPORT LIMITED,CT1 2SY
Department for Transport,Department for Transport,13/02/2014,Subsidies Private Se,Local,HEDINGHAM & DIST OMNIBUSES LTD,2000024347,26542.32,Hedingham Omnibuses Ltd,CO9 3LB
Department for Transport,Department for Transport,13/02/2014,Subsidies Private Se,Local,HEYFORDIAN TRAVEL LTD,2000024349,1082.94,HEYFORDIAN TRAVEL LTD,OX26 4PP
Department for Transport,Department for Transport,13/02/2014,Subsidies Private Se,Local,HOLLOWAYS COACHES LTD,2000024351,755.55,HOLLOWAYS COACHES LTD,DN16 1TP
Department for Transport,Department for Transport,13/02/2014,Subsidies Private Se,Local,HORNSBY TRAVEL SERVICES,2000024352,15741.88,HORNSBY TRAVEL SERVICES LIMITED,DN16 2NB
Department for Transport,Department for Transport,13/02/2014,Subsidies Private Se,Local,Ians Midi Coaches,2000024353,1033.61,IANS MIDI COACHES,CA5 7LA
Department for Transport,Department for Transport,13/02/2014,Subsidies Private Se,Local,INVICTABUS LTD,2000024435,706.48,Invictabus Limited,ME20 7SP
Department for Transport,Department for Transport,13/02/2014,Subsidies Private Se,Local,IRVING OF DALSTON,2000024355,1142.87,IRVING OF DALSTON,CA5 7LB
Department for Transport,Department for Transport,13/02/2014,Subsidies Private Se,Local,J & B,2000024457,5487.82,J & B Travel Ltd,LS28 6JP
Department for Transport,Department for Transport,13/02/2014,Subsidies Private Se,Local,J.W Lodge & Sons Ltd,2000024456,1283.46,J.W  Lodge & Son's Ltd T/A Lodge Coaches,CM1 4QR
Department for Transport,Department for Transport,13/02/2014,Subsidies Private Se,Local,KEIGHLEY & DISTRICT TRAVEL LTD,2000024356,132629.52,Keighley and District Travel Ltd,BD21 2JX
Department for Transport,Department for Transport,13/02/2014,Subsidies Private Se,Local,KETTLEWELL RETFORD LTD,2000024357,572.67,Kettlewell (Retford) Ltd,DN22 6LA
Department for Transport,Department for Transport,13/02/2014,Subsidies Private Se,Local,KINCHBUS LTD,2000024358,94193.19,KINCHBUS LTD,LE11 5QS
Department for Transport,Department for Transport,13/02/2014,Subsidies Private Se,Local,LANCASHIRE UNITED LTD (TRANSDEV),2000024359,186997.21,Lancashire United Ltd (Transdev),BD21 2JX
Department for Transport,Department for Transport,13/02/2014,Subsidies Private Se,Local,M & M COACHES LIMITED,2000024362,8859.75,M & M COACHES LIMITED,BB5 0RW
Department for Transport,Department for Transport,13/02/2014,Subsidies Private Se,Local,MAGHULL COACHES,2000024363,3928.41,MAGHULL COACHES LTD,L20 8AE
Department for Transport,Department for Transport,13/02/2014,Subsidies Private Se,Local,MEDALLION TRAVEL LIMITED,2000024448,1888.58,Medallion Travel  Limited,TW5 9RL
Department for Transport,Department for Transport,13/02/2014,Subsidies Private Se,Local,MIDLAND CLASSIC LTD,2000024365,31678.49,MIDLAND CLASSIC LTD.,DE11 9RE
Department for Transport,Department for Transport,13/02/2014,Subsidies Private Se,Local,MIDLAND RED (NORTH) LTD,2000024366,558364.01,ARRIVA MIDLANDS NORTH LTD,LE4 8ZN
Department for Transport,Department for Transport,13/02/2014,Subsidies Private Se,Local,MINIBUS EXECUTIVE TRAVEL,2000024440,2431.02,Minibus Executive Travel Limited,WD24 7GP
Department for Transport,Department for Transport,13/02/2014,Subsidies Private Se,Local,MINSTERLEY MOTORS SERVICES LTD,2000024368,20483.69,MINSTERLEY MOTORS LTD,SY5 0LZ
Department for Transport,Department for Transport,13/02/2014,Subsidies Private Se,Local,MOVING PEOPLE LTD,2000024425,3451.18,MOVING PEOPLE,BB2 7JA
Department for Transport,Department for Transport,13/02/2014,Subsidies Private Se,Local,NATIONAL EXPRESS LTD,2000024371,102752.23,NATIONAL EXPRESS LTD (AIRLINKS),B5 6DD
Department for Transport,Department for Transport,13/02/2014,Subsidies Private Se,Local,NETWORK COLCHESTER LTD,2000024285,1337.28,TGMGroup Ltd T/A Network Colchester,CM20 1DU
Department for Transport,Department for Transport,13/02/2014,Subsidies Private Se,Local,NEW HORIZON TRAVEL LTD,2000024429,14887.99,New Horizon Travel Ltd,CO7 7HN
Department for Transport,Department for Transport,13/02/2014,Subsidies Private Se,Local,Norfolk Green,2000024338,110649.2,NORFOLK GREEN,PE30 4NG
Department for Transport,Department for Transport,13/02/2014,Subsidies Private Se,Local,NOTTS & DERBY TRACTION CO LTD,2000024374,31273.09,Notts & Derby Traction Co Ltd,DE75 7BG
Department for Transport,Department for Transport,13/02/2014,Subsidies Private Se,Local,OXFORD BUS CO,2000024375,252785.54,City of Oxford Motor Sevices Ltd,OX4 6GA
Department for Transport,Department for Transport,13/02/2014,Subsidies Private Se,Local,PARADISE WILDLIFE PARK LTD,2000024442,617.33,Parkside Leisure Limited,EN10 7QA
Department for Transport,Department for Transport,13/02/2014,Subsidies Private Se,Local,xxxxxx,2000024376,15238.71,CATTERALL'S COACH & TRAVEL SERVICES,xxxxxx
Department for Transport,Department for Transport,13/02/2014,Subsidies Private Se,Local,PENNINE MOTOR SERVICES,2000024377,18901.43,PENNINE MOTOR SERVICES,BD23 1TE
Department for Transport,Department for Transport,13/02/2014,Subsidies Private Se,Local,PERRYMANS BUSES,2000024378,10230.53,PERRYMANS BUSES LTD,TD15 1UN
Department for Transport,Department for Transport,13/02/2014,Subsidies Private Se,Local,PONTEFRACT MOTORWAYS,2000024407,3693.42,STRINGERS PONTEFRACT MOTORWAYS,WF8 1PN
Department for Transport,Department for Transport,13/02/2014,Subsidies Private Se,Local,POYNTERS COACHES LTD,2000024380,1000.64,POYNTERS COACHES LTD,TN25 5BX
Department for Transport,Department for Transport,13/02/2014,Subsidies Private Se,Local,QUANTOCK MOTOR SERVICES LTD,2000024381,6513.09,QUANTOCK MOTOR SERVICES LTD,TA4 3BU
Department for Transport,Department for Transport,13/02/2014,Subsidies Private Se,Local,R BULLOCK & CO TRANSPORT LTD,2000024382,10187.42,RALPH BULLOCK & CO (TRANSPORT) LTD,SK8 2AG
Department for Transport,Department for Transport,13/02/2014,Subsidies Private Se,Local,Reays Ltd,2000024451,33707.39,Reays Limited,CA7 9NE
Department for Transport,Department for Transport,13/02/2014,Subsidies Private Se,Local,RED ROSE TRAVEL LTD,2000024384,41052.65,RED ROSE TRAVEL LTD,HP17 8TT
Department for Transport,Department for Transport,13/02/2014,Subsidies Private Se,Local,REGAL BUSWAYS LTD,2000024385,27266.05,REGAL BUSWAYS LTD,SS3 9WB
Department for Transport,Department for Transport,13/02/2014,Subsidies Private Se,Local,RELIANCE MOTOR SERVICES,2000024386,19689.23,Reliance Motor Services,YO61 1ES
Department for Transport,Department for Transport,13/02/2014,Subsidies Private Se,Local,ROBERT BENSON COACH HIRE,2000024389,1644.87,ROBERT BENSON COACH HIRE,CA14 1ES
Department for Transport,Department for Transport,13/02/2014,Subsidies Private Se,Local,ROSS TRAVEL,2000024390,10789.44,ROSS TRAVEL,WF7 5BL
Department for Transport,Department for Transport,13/02/2014,Subsidies Private Se,Local,SHERWOOD TRAVEL,2000024433,3118.53,Sherwood Travel,DN40 1QR
Department for Transport,Department for Transport,13/02/2014,Subsidies Private Se,Local,SHOREYS TRAVEL,2000024393,1790.26,SHOREY'S TRAVEL,MK45 2AE
Department for Transport,Department for Transport,13/02/2014,Subsidies Private Se,Local,SIMONDS,2000024394,6471.34,Simonds of Botesdale Ltd,IP22 4GX
Department for Transport,Department for Transport,13/02/2014,Subsidies Private Se,Local,SKILLS MOTOR COACHES LTD,2000024431,9738.47,Skills Motor Coaches Ltd,NG6 8LY
Department for Transport,Department for Transport,13/02/2014,Subsidies Private Se,Local,SOLENT BLUE LINE,2000024395,269353.57,Go South Coast - Solent Blue Line,BH15 2PR
Department for Transport,Department for Transport,13/02/2014,Subsidies Private Se,Local,SOUTHERN VECTIS,2000024396,174285.99,Southern Vectis Omnibus Co Ltd,PO30 1RD
Department for Transport,Department for Transport,13/02/2014,Subsidies Private Se,Local,STAGECOACH CAMBUS,2000024397,525096.65,STAGECOACH CAMBUS,SK3 0DU
Department for Transport,Department for Transport,13/02/2014,Subsidies Private Se,Local,STAGECOACH CAMBUS,2000024397,145244.92,Stagecoach CAMBUS- Bio diesel,SK3 0DU
Department for Transport,Department for Transport,13/02/2014,Subsidies Private Se,Local,Stagecoach Devon Ltd,2000024307,655720.91,Stagecoach Devon Ltd,EX1 2LB
Department for Transport,Department for Transport,13/02/2014,Subsidies Private Se,Local,Stagecoach East,2000024414,417386.87,STAGECOACH EAST,NN4 8ES
Department for Transport,Department for Transport,13/02/2014,Subsidies Private Se,Local,STAGECOACH EAST KENT,2000024398,622665.47,STAGECOACH IN EAST KENT,SK3 0DU
Department for Transport,Department for Transport,13/02/2014,Subsidies Private Se,Local,STAGECOACH IN CUMBRIA,2000024399,552185.57,STAGECOACH IN CUMBRIA,SK3 0DU
Department for Transport,Department for Transport,13/02/2014,Subsidies Private Se,Local,STAGECOACH IN HANTS & SURREY,2000024400,142461.01,STAGECOACH - HANTS & SURREY,SK3 0DU
Department for Transport,Department for Transport,13/02/2014,Subsidies Private Se,Local,STAGECOACH IN PORTMOUTH & S DOWNS,2000024402,381080.89,STAGECOACH IN PORTSMOUTH AND THE SOUTH DOWNS,SK3 0DU
Department for Transport,Department for Transport,13/02/2014,Subsidies Private Se,Local,STAGECOACH MANCHESTER,2000024403,1206150.61,STAGECOACH MANCHESTER,SK3 0DU
Department for Transport,Department for Transport,13/02/2014,Subsidies Private Se,Local,Stagecoach Merseyside,2000024404,494043.51,STAGECOACH MERSEYSIDE,L11 0BB
Department for Transport,Department for Transport,13/02/2014,Subsidies Private Se,Local,Stagecoach Midland Red South Ltd,2000024367,316607.5,STAGECOACH MIDLAND RED (SOUTH) LTD,NN4 8ES
Department for Transport,Department for Transport,13/02/2014,Subsidies Private Se,Local,STAGECOACH NORTH WEST LTD,2000024387,292717.07,STAGECOACH NORTH WEST LTD,L11 0BB
Department for Transport,Department for Transport,13/02/2014,Subsidies Private Se,Local,STAGECOACH S WALES T/A RHONDDA BUSE,2000024405,8720.65,Red & White Services Ltd T/A Stagecoach In S Wales,SK3 0DU
Department for Transport,Department for Transport,13/02/2014,Subsidies Private Se,Local,STAGECOACH SOUTH EAST,2000024406,223858.4,STAGECOACH SOUTH,SK3 0DU
Department for Transport,Department for Transport,13/02/2014,Subsidies Private Se,Local,STAGECOACH WIGAN,2000024447,183928.82,Stagecoach Wigan,SK3 0DU
Department for Transport,Department for Transport,13/02/2014,Subsidies Private Se,Local,STEVENSONS OF UTTOXETER LTD,2000024270,482889.27,ARRIVA MIDLANDS LTD,LE4 8PH
Department for Transport,Department for Transport,13/02/2014,Subsidies Private Se,Local,STEVENSONS OF UTTOXETER LTD,2000024270,52739.83,STEVENSONS OF UTTOXETER LTD,LE4 8PH
Department for Transport,Department for Transport,13/02/2014,Subsidies Private Se,Local,STREAMLINE,2000024445,2814.07,Streamline,HD1 5DX
Department for Transport,Department for Transport,13/02/2014,Subsidies Private Se,Local,SUSSEX COACHES,2000024437,5114.62,Sussex Coaches,RH13 8PB
Department for Transport,Department for Transport,13/02/2014,Subsidies Private Se,Local,TANAT VALLEY COACHES,2000024409,8031.98,R E MORRIS & SONS LTD T/A TANAT VALLEY COACHES,SY10 0AD
Department for Transport,Department for Transport,13/02/2014,Subsidies Private Se,Local,TATES TRAVEL LTD,2000024410,23485.1,TATES TRAVEL LTD,S75 1HT
Department for Transport,Department for Transport,13/02/2014,Subsidies Private Se,Local,TELFORD & WREKIN DC,2000024411,1040.67,TELFORD & WREKIN COUNCIL T/A INTERGRATED TRANSPORT,TF3 4LF
Department for Transport,Department for Transport,13/02/2014,Subsidies Private Se,Local,TGM STANSTED,2000024310,15934.82,TGM Stansted,CM20 1DU
Department for Transport,Department for Transport,13/02/2014,Subsidies Private Se,Local,The Big Bus Company,2000024281,4087.77,THE BIG BUS COMPANY LTD,SW1W 9SA
Department for Transport,Department for Transport,13/02/2014,Subsidies Private Se,Local,TOURIST COACHES,2000024412,2528.18,Go South Coast - Tourist Coaches,BH15 2PR
Department for Transport,Department for Transport,13/02/2014,Subsidies Private Se,Local,Town & Country Bus Ltd,2000024455,737.63,Town & Country Bus Ltd,NP4 6YW
Department for Transport,Department for Transport,13/02/2014,Subsidies Private Se,Local,TRENT BUSES,2000024413,501882.54,Trent Buses,DE75 7BG
Department for Transport,Department for Transport,13/02/2014,Subsidies Private Se,Local,UNIVERSITYBUS,2000024415,127728.56,UNIVERSITYBUS,AL10 9BS
Department for Transport,Department for Transport,13/02/2014,Subsidies Private Se,Local,VALE OF LLANGOLLEN TRAVEL LTD,2000024416,3290.22,Vale Of Llangollen Travel Ltd,LL14 6UY
Department for Transport,Department for Transport,13/02/2014,Subsidies Private Se,Local,WEST MIDLANDS TRAVEL LTD,2000024417,3887448.03,West Midlands Travel Ltd,B9 4BZ
Department for Transport,Department for Transport,13/02/2014,Subsidies Private Se,Local,Wheelers Travel Ltd,2000024452,17555.47,Wheelers Travel Ltd,SO16 7JU
Department for Transport,Department for Transport,13/02/2014,Subsidies Private Se,Local,WHIPPET COACHES LTD,2000024418,67369.69,Whippet Coaches Ltd,CB24 4UG
Department for Transport,Department for Transport,13/02/2014,Subsidies Private Se,Local,WHITE BUS SERVICES,2000024419,4697.09,White Bus Services,SL4 4TF
Department for Transport,Department for Transport,13/02/2014,Subsidies Private Se,Local,White Rose Bus Company Ltd,2000024432,54633.9,White Rose Bus Company Ltd,WF1 5JX
Department for Transport,Department for Transport,13/02/2014,Subsidies Private Se,Local,WHITTLE COACH & BUS LTD,2000024420,35420.25,WHITTLE COACH & BUS LTD,DY11 7QL
Department for Transport,Department for Transport,13/02/2014,Subsidies Private Se,Local,WIGHT COMMUNITY ACCESS LTD,2000024443,555.3,Wight Community Access Ltd,PO39 0AX
Department for Transport,Department for Transport,13/02/2014,Subsidies Private Se,Local,WILTS & DORSET BUS CO,2000024421,342901.99,WILTS & DORSET BUS CO,BH15 2PR
Department for Transport,Department for Transport,13/02/2014,Subsidies Private Se,Local,Wints Coaches,2000024454,1121.6,Wints Coaches,ST13 7ST
Department for Transport,Department for Transport,13/02/2014,Subsidies Private Se,Local,YORK PULLMAN BUS CO. LTD,2000024427,2722.12,YORK PULLMAN BUS COMPANY LTD,YO23 3QA
Department for Transport,Department for Transport,13/02/2014,Subsidies Private Se,Local,YORKSHIRE COASTLINER LTD,2000024422,113244.13,Yorkshire Coastliner Ltd,HG2 7NY
Department for Transport,Department for Transport,13/02/2014,Support Services,Major Projects & Growth,NETWORK RAIL,2000024495,214003.67,#,M60 7RT
Department for Transport,Department for Transport,13/02/2014,Support Services,Group Finance,DD ACCRAILWAY PENS TRUSTEE,2000024478,2983.3,#,DL3 6XR
Department for Transport,Department for Transport,13/02/2014,Support Services,Group Finance,DD ACCRAILWAY PENS TRUSTEE,2000024478,663.33,#,DL3 6XR
Department for Transport,Department for Transport,13/02/2014,Training,Air Accident Investigation Branch,HELI AIR LIMITED,2000024491,528,#,CV35 9EU
Department for Transport,Department for Transport,13/02/2014,Transport  Consult,Transport Direct&Travel,AECOM Limited,2000024469,4337.12,#,AL1 3ER
Department for Transport,Department for Transport,13/02/2014,Transport  Consult,Aviation,RED SCIENTIFIC LTD,2000024464,8574.83,#,GU34 2YT
Department for Transport,Department for Transport,14/02/2014,Agency Staff Costs,Group Communication,CAPITA RESOURCING LTD,2000024607,6120,#,DL1 9HN
Department for Transport,Department for Transport,14/02/2014,Agency Staff Costs,Group Finance,MICHAEL PAGE INTERNATIONAL,2000024606,4080,#,SL1 3SA
Department for Transport,Department for Transport,14/02/2014,Agency Staff Costs,Programme Office,BADENOCH & CLARK,2000024592,1755.66,#,EC4V 4BG
Department for Transport,Department for Transport,14/02/2014,Agency Staff Costs,Major Projects & Growth,BADENOCH & CLARK,2000024592,2471.04,#,EC4V 4BG
Department for Transport,Department for Transport,14/02/2014,Agency Staff Costs,Rail Commercial & Programme Office,MORGAN HUNT UK LTD,2000024597,3527.5,#,EC4M 7EG
Department for Transport,Department for Transport,14/02/2014,Agency Staff Costs,Rail Commercial & Programme Office,MORGAN HUNT UK LTD,2000024597,3135.55,#,EC4M 7EG
Department for Transport,Department for Transport,14/02/2014,Agency Staff Costs,Rail Commercial & Programme Office,MORGAN HUNT UK LTD,2000024597,3919.44,#,EC4M 7EG
Department for Transport,Department for Transport,14/02/2014,Agency Staff Costs,General Counsel's Office,BADENOCH & CLARK,2000024592,1858.9,#,EC4V 4BG
Department for Transport,Department for Transport,14/02/2014,Agency Staff Costs,General Counsel's Office,BADENOCH & CLARK,2000024592,2478.53,#,EC4V 4BG
Department for Transport,Department for Transport,14/02/2014,Agency Staff Costs,General Counsel's Office,BADENOCH & CLARK,2000024592,3098.16,#,EC4V 4BG
Department for Transport,Department for Transport,14/02/2014,Agency Staff Costs,General Counsel's Office,BADENOCH & CLARK,2000024592,3098.16,#,EC4V 4BG
Department for Transport,Department for Transport,14/02/2014,Agency Staff Costs,General Counsel's Office,BADENOCH & CLARK,2000024592,3098.16,#,EC4V 4BG
Department for Transport,Department for Transport,14/02/2014,Agency Staff Costs,General Counsel's Office,BADENOCH & CLARK,2000024592,3098.16,#,EC4V 4BG
Department for Transport,Department for Transport,14/02/2014,Agency Staff Costs,Strategic Roads & Smart Ticketing,BADENOCH & CLARK,2000024592,4703.18,#,EC4V 4BG
Department for Transport,Department for Transport,14/02/2014,Agency Staff Costs,Strategic Roads & Smart Ticketing,BADENOCH & CLARK,2000024592,5225.76,#,EC4V 4BG
Department for Transport,Department for Transport,14/02/2014,Agency Staff Costs,Strategic Roads & Smart Ticketing,BADENOCH & CLARK,2000024592,5225.76,#,EC4V 4BG
Department for Transport,Department for Transport,14/02/2014,Agency Staff Costs,Strategic Roads & Smart Ticketing,BADENOCH & CLARK,2000024592,4180.61,#,EC4V 4BG
Department for Transport,Department for Transport,14/02/2014,Agency Staff Costs,Strategic Roads & Smart Ticketing,BADENOCH & CLARK,2000024592,4703.18,#,EC4V 4BG
Department for Transport,Department for Transport,14/02/2014,Agency Staff Costs,Strategic Roads & Smart Ticketing,BADENOCH & CLARK,2000024592,5225.76,#,EC4V 4BG
Department for Transport,Department for Transport,14/02/2014,Agency Staff Costs,"Policy, Legislation and Funding",BADENOCH & CLARK,2000024592,3660,#,EC4V 4BG
Department for Transport,Department for Transport,14/02/2014,Agency Staff Costs,"Policy, Legislation and Funding",BADENOCH & CLARK,2000024592,3660,#,EC4V 4BG
Department for Transport,Department for Transport,14/02/2014,Agency Staff Costs,"Policy, Legislation and Funding",BADENOCH & CLARK,2000024592,2928,#,EC4V 4BG
Department for Transport,Department for Transport,14/02/2014,Agency Staff Costs,"Policy, Legislation and Funding",BADENOCH & CLARK,2000024592,3660,#,EC4V 4BG
Department for Transport,Department for Transport,14/02/2014,Agency Staff Costs,"Policy, Legislation and Funding",BADENOCH & CLARK,2000024592,2196,#,EC4V 4BG
Department for Transport,Department for Transport,14/02/2014,Agency Staff Costs,Rail Franchising,BADENOCH & CLARK,2000024592,4942.38,#,EC4V 4BG
Department for Transport,Department for Transport,14/02/2014,Agency Staff Costs,Rail Franchising,BADENOCH & CLARK,2000024592,3270.3,#,EC4V 4BG
Department for Transport,Department for Transport,14/02/2014,Agency Staff Costs,Motoring Services,BADENOCH & CLARK,2000024592,3705,#,EC4V 4BG
Department for Transport,Department for Transport,14/02/2014,Agency Staff Costs,Rail Franchising,BADENOCH & CLARK,2000024592,4448.15,#,EC4V 4BG
Department for Transport,Department for Transport,14/02/2014,Agency Staff Costs,Rail Franchising,BADENOCH & CLARK,2000024592,4448.15,#,EC4V 4BG
Department for Transport,Department for Transport,14/02/2014,Agency Staff Costs,Rail Franchising,BADENOCH & CLARK,2000024592,3270.3,#,EC4V 4BG
Department for Transport,Department for Transport,14/02/2014,Agency Staff Costs,Rail Franchising,BADENOCH & CLARK,2000024592,3545.7,#,EC4V 4BG
Department for Transport,Department for Transport,14/02/2014,Agency Staff Costs,Rail Franchising,BADENOCH & CLARK,2000024592,3545.7,#,EC4V 4BG
Department for Transport,Department for Transport,14/02/2014,Agency Staff Costs,Rail Franchising,BADENOCH & CLARK,2000024592,2836.56,#,EC4V 4BG
Department for Transport,Department for Transport,14/02/2014,Agency Staff Costs,Rail Franchising,BADENOCH & CLARK,2000024592,3545.7,#,EC4V 4BG
Department for Transport,Department for Transport,14/02/2014,Agency Staff Costs,Rail Franchising,BADENOCH & CLARK,2000024592,3545.7,#,EC4V 4BG
Department for Transport,Department for Transport,14/02/2014,Agency Staff Costs,Motoring Services,BADENOCH & CLARK,2000024592,3705,#,EC4V 4BG
Department for Transport,Department for Transport,14/02/2014,Agency Staff Costs,Rail Franchising,BADENOCH & CLARK,2000024592,2437.2,#,EC4V 4BG
Department for Transport,Department for Transport,14/02/2014,Agency Staff Costs,Rail Franchising,BADENOCH & CLARK,2000024592,3270.3,#,EC4V 4BG
Department for Transport,Department for Transport,14/02/2014,Agency Staff Costs,Motoring Services,BADENOCH & CLARK,2000024592,3705,#,EC4V 4BG
Department for Transport,Department for Transport,14/02/2014,Agency Staff Costs,Rail Franchising,BADENOCH & CLARK,2000024592,3270.3,#,EC4V 4BG
Department for Transport,Department for Transport,14/02/2014,Agency Staff Costs,Rail Franchising,FIRST CLASS PARTNERSHIPS LTD,2000024608,9405,#,YO10 3EB
Department for Transport,Department for Transport,14/02/2014,Agency Staff Costs,Rail Commercial & Programme Office,MICHAEL PAGE INTERNATIONAL,2000024606,2220,#,SL1 3SA
Department for Transport,Department for Transport,14/02/2014,Building Service Cha,Group Procurement & Estate,Amey Community Ltd,2000024631,225358.01,#,OX4 4DQ
Department for Transport,Department for Transport,14/02/2014,Cap Grt Loc Auth,"Energy, Technology and International",Porsche,2000024630,65000,Porsche PiCG Dec 2013 #65k,RG31 7SE
Department for Transport,Department for Transport,14/02/2014,Cap Grt Loc Auth,"Energy, Technology and International",Porsche,2000024630,130000,Porsche PiCG Jan 2013 #130k,RG31 7SE
Department for Transport,Department for Transport,14/02/2014,Cap Grt Loc Auth,Local,CHESHIRE WEST &,2000024609,85948.58,HMEP 2013/14 reimbursement,CH1 9PS
Department for Transport,Department for Transport,14/02/2014,Cap Grt Loc Auth,"Energy, Technology and International",Solarsense,2000024626,1000,Dec Solarsense 2013 #1k,BS48 4AH
Department for Transport,Department for Transport,14/02/2014,Cap Grt Pri Sec-Cos.,"Energy, Technology and International",BMW UK Ltd,2000024629,155000,PiCG BMW Jan 2014 #155k,RG12 8TA
Department for Transport,Department for Transport,14/02/2014,Cap Grt Pri Sec-Cos.,"Energy, Technology and International",NISSAN MOTOR GB LTD,2000024613,578876.54,Nissan PiCG Jan 2014 #578.8,WD3 9YS
Department for Transport,Department for Transport,14/02/2014,Cap Grt Pri Sec-Cos.,"Energy, Technology and International",PEUGEOT MOTOR COMPANY,2000024616,5000,Peugeot PiCG Jan 2014 #5k,CV3 1ND
Department for Transport,Department for Transport,14/02/2014,Cap Grt Pri Sec-Cos.,"Energy, Technology and International",RENAULT,2000024618,172193.26,Renault PiCG Jan 2014 #172.1k,WD3 9YS
Department for Transport,Department for Transport,14/02/2014,Cap Grt Pri Sec-Cos.,"Energy, Technology and International",TOYOTA (GB) PLC,2000024621,135000,Toyota PiCG Jan 2014 #135k,KT18 5XS
Department for Transport,Department for Transport,14/02/2014,Cap Grt Pri Sec-Cos.,"Energy, Technology and International",VAUXHALL MOTORS,2000024619,110000,PiCG Vauxhall Jan 2014 #110k,LU1 3YT
Department for Transport,Department for Transport,14/02/2014,Computer equipment,Motoring Services,Xenon Network Services Ltd,2000024627,2199,#,WA14 5HH
Department for Transport,Department for Transport,14/02/2014,Contract Cleaning,Air Accident Investigation Branch,INTERSERVE,2000024615,2173.5,#,BS32 4NH
Department for Transport,Department for Transport,14/02/2014,CurrGrt Las in AEF/A,Local,LEICESTERSHIRE COUNTY COUNCIL,2000024584,171632.45,HMEP 2013/14 reimbursement,LE3 8RB
Department for Transport,Department for Transport,14/02/2014,CurrGrt Las in AEF/A,Local,NOTTINGHAMSHIRE CC,2000024605,88868,HMEP 2013/14 reimbursement,NG2 7LA
Department for Transport,Department for Transport,14/02/2014,CurrGrt Las in AEF/A,Local,SURREY COUNTY COUNCIL,2000024582,499650,HMEP 2013/14 reimbursement,KT1 2DN
Department for Transport,Department for Transport,14/02/2014,CurrGrtOth to NDPBs,Group Finance,CTRL SECTION 1 FINANCE PLC,2000024610,5572.07,CTRL FEB TSS/SFS/CTRL SEC 1  FINANCE,NW1 1AY
Department for Transport,Department for Transport,14/02/2014,CurrGrtPriSec-P&NPIS,"Energy, Technology and International",ENERGY SAVING TRUST,2000024604,26800,PIFI Jan 2014 #26.8k,SW1H 9BP
Department for Transport,Department for Transport,14/02/2014,CurrGrtPriSec-P&NPIS,"Energy, Technology and International",ENERGY SAVING TRUST,2000024604,17000,PIFI Nov 2013 #17k,SW1H 9BP
Department for Transport,Department for Transport,14/02/2014,CurrGrtPriSec-P&NPIS,"Energy, Technology and International",ENERGY SAVING TRUST,2000024604,15600,PIFI October 2013 #15.6k,SW1H 9BP
Department for Transport,Department for Transport,14/02/2014,Data Supply - TD,Transport Direct&Travel,ATOS IT SERVICES UK LTD,2000024590,6704.4,#,WV10 6UH
Department for Transport,Department for Transport,14/02/2014,Data Supply - TD,Transport Direct&Travel,ATOS IT SERVICES UK LTD,2000024590,4821.6,#,WV10 6UH
Department for Transport,Department for Transport,14/02/2014,IT Equip Cap Cost,Motoring Services,KELWAY LTD,2000024611,96544.8,#,SA1 8PL
Department for Transport,Department for Transport,14/02/2014,IT Equip Cap Cost,Motoring Services,Probrand Ltd,2000024587,6,Delivery,B1 3BP
Department for Transport,Department for Transport,14/02/2014,IT Equip Cap Cost,Motoring Services,Probrand Ltd,2000024587,5922.54,GW2266HM Widescreen TFTs,B1 3BP
Department for Transport,Department for Transport,14/02/2014,IT Ser Running Costs,"Motoring, Freight & London",EVOLVE BUSINESS CONSULTANCY LTD,2000024595,1296,#,GU10 1DW
Department for Transport,Department for Transport,14/02/2014,IT Ser Running Costs,Transport Direct&Travel,ATOS IT SERVICES UK LTD,2000024590,2289.6,#,WV10 6UH
Department for Transport,Department for Transport,14/02/2014,IT Ser Running Costs,Transport Direct&Travel,ATOS IT SERVICES UK LTD,2000024590,10336.8,#,WV10 6UH
Department for Transport,Department for Transport,14/02/2014,IT Ser Running Costs,Transport Direct&Travel,ATOS IT SERVICES UK LTD,2000024590,10418.4,#,WV10 6UH
Department for Transport,Department for Transport,14/02/2014,IT Ser Running Costs,Transport Direct&Travel,ATOS IT SERVICES UK LTD,2000024590,7169.34,#,WV10 6UH
Department for Transport,Department for Transport,14/02/2014,IT Ser Running Costs,Transport Direct&Travel,ATOS IT SERVICES UK LTD,2000024590,133044,#,WV10 6UH
Department for Transport,Department for Transport,14/02/2014,IT Ser Running Costs,Transport Direct&Travel,ATOS IT SERVICES UK LTD,2000024590,9073.2,#,WV10 6UH
Department for Transport,Department for Transport,14/02/2014,IT Ser Running Costs,Transport Direct&Travel,ATOS IT SERVICES UK LTD,2000024590,2660.4,#,WV10 6UH
Department for Transport,Department for Transport,14/02/2014,IT Ser Running Costs,Transport Direct&Travel,TRAPEZE GROUP (UK) LTD,2000024602,18625.2,#,BA14 6PH
Department for Transport,Department for Transport,14/02/2014,IT Ser Running Costs,Strategic Roads & Smart Ticketing,SELEX ES LTD,2000024617,703.44,#,BS16 1EJ
Department for Transport,Department for Transport,14/02/2014,IT Ser Running Costs,Strategic Roads & Smart Ticketing,SELEX ES LTD,2000024617,2344.8,#,BS16 1EJ
Department for Transport,Department for Transport,14/02/2014,Maintenance Other,Motoring Services,ARVAL PHH,2000024586,1035.15,#,SN5 6PE
Department for Transport,Department for Transport,14/02/2014,Other Professional F,Group Finance,CIPFA,2000024588,2526.2,#,WC2N 6RL
Department for Transport,Department for Transport,14/02/2014,Other Professional F,Group Finance,CIPFA,2000024588,25075,#,WC2N 6RL
Department for Transport,Department for Transport,14/02/2014,Other Professional F,Group Finance,CIPFA,2000024588,25075,#,WC2N 6RL
Department for Transport,Department for Transport,14/02/2014,Other Professional F,Group Finance,CIPFA,2000024588,25075,#,WC2N 6RL
Department for Transport,Department for Transport,14/02/2014,Postage,"Policy, Legislation and Funding",ROYAL MAIL,2000024599,2283.54,#,PE4 5PG
Department for Transport,Department for Transport,14/02/2014,Property Maintenance,Air Accident Investigation Branch,INTERSERVE,2000024615,10841.1,#,BS32 4NH
Department for Transport,Department for Transport,14/02/2014,Recruitment,Group Human Resource,REDACTIVE MEDIA GROUP,2000024589,5625,#,EC1M 5TP
Department for Transport,Department for Transport,14/02/2014,Security,General Counsel's Office,FCO SERVICES,2000024578,7558.8,#,MK19 7BH
Department for Transport,Department for Transport,14/02/2014,Security,General Counsel's Office,FCO SERVICES,2000024578,5713.2,#,MK19 7BH
Department for Transport,Department for Transport,14/02/2014,Services prov by OGD,"Policy, Legislation and Funding",HOUSE OF COMMONS,2000024579,14429,#,SW1A 0AA
Department for Transport,Department for Transport,14/02/2014,Subsidies Private Se,Local,K & H Doyle (Diesel),2000024583,25870.56,K & H DOYLE (DIESEL),DE55 7RQ
Department for Transport,Department for Transport,14/02/2014,Support Services,Aviation,CIVIL AVIATION AUTHORITY,2000024593,53176.5,#,RH10 0YR
Department for Transport,Department for Transport,14/02/2014,Support Services,Aviation,FCO FOREIGN & COMMONWEALTH OFFICE,2000024581,3599.58,#,MK10 1PX
Department for Transport,Department for Transport,14/02/2014,Support Services,Aviation,FCO FOREIGN & COMMONWEALTH OFFICE,2000024581,55360.6,#,MK10 1PX
Department for Transport,Department for Transport,14/02/2014,Training,Air Accident Investigation Branch,BLINK LTD,2000024612,3000,#,UB3 4AZ
Department for Transport,Department for Transport,14/02/2014,Training,Aviation,xxxxxx,2000024614,606,#,xxxxxx
Department for Transport,Department for Transport,14/02/2014,Training,"Energy, Technology and International",xxxxxx,2000024614,584,#,xxxxxx
Department for Transport,Department for Transport,14/02/2014,Transport  Consult,Transport Direct&Travel,ATOS IT SERVICES UK LTD,2000024590,28539.6,#,WV10 6UH
Department for Transport,Department for Transport,14/02/2014,Transport  Consult,Transport Direct&Travel,ATOS IT SERVICES UK LTD,2000024590,11696.4,#,WV10 6UH
Department for Transport,Department for Transport,14/02/2014,Transport  Consult,Group Procurement & Estate,LAMBERT SMITH HAMPTON,2000024596,4629.6,#,W1A 1XG
Department for Transport,Department for Transport,17/02/2014,Agency Staff Costs,Corporate Governance,PARITY RESOURCES LTD,2000024724,19286.21,#,SW19 3RU
Department for Transport,Department for Transport,17/02/2014,Agency Staff Costs,Group Human Resource,HAYS PERSONNEL SERVICE LTD,2000024702,5352,#,KT3 4JQ
Department for Transport,Department for Transport,17/02/2014,Agency Staff Costs,Group Finance,ALLEN LANE FINANCIAL RECRUITMENT,2000024705,2175.5,#,BN11 2BW
Department for Transport,Department for Transport,17/02/2014,Agency Staff Costs,Group Finance,ALLEN LANE FINANCIAL RECRUITMENT,2000024705,2719.38,#,BN11 2BW
Department for Transport,Department for Transport,17/02/2014,Agency Staff Costs,Group Finance,ALLEN LANE FINANCIAL RECRUITMENT,2000024705,2719.38,#,BN11 2BW
Department for Transport,Department for Transport,17/02/2014,Agency Staff Costs,Group Finance,ALLEN LANE FINANCIAL RECRUITMENT,2000024705,2175.5,#,BN11 2BW
Department for Transport,Department for Transport,17/02/2014,Agency Staff Costs,Group Finance,ALLEN LANE FINANCIAL RECRUITMENT,2000024705,2719.38,#,BN11 2BW
Department for Transport,Department for Transport,17/02/2014,Agency Staff Costs,Group Finance,ALLEN LANE FINANCIAL RECRUITMENT,2000024705,1087.75,#,BN11 2BW
Department for Transport,Department for Transport,17/02/2014,Agency Staff Costs,Major Projects & Growth,MICHAEL PAGE INTERNATIONAL,2000024723,10620.72,#,SL1 3SA
Department for Transport,Department for Transport,17/02/2014,Agency Staff Costs,Rail Commercial & Programme Office,MORGAN HUNT UK LTD,2000024718,3527.5,#,EC4M 7EG
Department for Transport,Department for Transport,17/02/2014,Agency Staff Costs,Rail Commercial & Programme Office,MORGAN HUNT UK LTD,2000024718,3919.44,#,EC4M 7EG
Department for Transport,Department for Transport,17/02/2014,Agency Staff Costs,Group Human Resource,CAPITA RESOURCING LTD,2000024725,10546.56,#,DL1 9HN
Department for Transport,Department for Transport,17/02/2014,Agency Staff Costs,Group Human Resource,CAPITA RESOURCING LTD,2000024725,13183.2,#,DL1 9HN
Department for Transport,Department for Transport,17/02/2014,Agency Staff Costs,Group Human Resource,CAPITA RESOURCING LTD,2000024725,8569.08,#,DL1 9HN
Department for Transport,Department for Transport,17/02/2014,Agency Staff Costs,Rail Franchising,MICHAEL PAGE INTERNATIONAL,2000024723,666.6,#,SL1 3SA
Department for Transport,Department for Transport,17/02/2014,Agency Staff Costs,Group Finance,PARITY RESOURCES LTD,2000024724,23400,#,SW19 3RU
Department for Transport,Department for Transport,17/02/2014,Agency Staff Costs,Group Finance,PARITY RESOURCES LTD,2000024724,3240,#,SW19 3RU
Department for Transport,Department for Transport,17/02/2014,Agency Staff Costs,Rail Franchising,BADENOCH & CLARK,2000024709,2127.42,#,EC4V 4BG
Department for Transport,Department for Transport,17/02/2014,Agency Staff Costs,Rail Franchising,BADENOCH & CLARK,2000024709,-2127.42,#,EC4V 4BG
Department for Transport,Department for Transport,17/02/2014,Agency Staff Costs,Rail Franchising,BADENOCH & CLARK,2000024709,2127.42,#,EC4V 4BG
Department for Transport,Department for Transport,17/02/2014,Agency Staff Costs,Rail Franchising,LA INTERNATIONAL COMPUTER,2000024717,15671.28,#,ST1 5UB
Department for Transport,Department for Transport,17/02/2014,Agency Staff Costs,Rail Franchising,MICHAEL PAGE INTERNATIONAL,2000024723,3333,#,SL1 3SA
Department for Transport,Department for Transport,17/02/2014,Audit Fees (cash),Group Finance,PRICEWATERHOUSECOOPERS LLP,2000024720,13700,#,E14 9SQ
Department for Transport,Department for Transport,17/02/2014,Building Service Cha,Group Procurement & Estate,Amey Community Ltd,2000024750,61030.49,#,OX4 4DQ
Department for Transport,Department for Transport,17/02/2014,Cap Grt Loc Auth,"Energy, Technology and International",Retroflo Limited,2000024748,7997.36,Retroflow Dec #8k,DH6 2UZ
Department for Transport,Department for Transport,17/02/2014,Cap Grt Pri Sec-Cos.,"Energy, Technology and International",MERCEDES BENZ UK LTD,2000024730,49788.73,PiCG Mercedez-Benz Jan 2014 #49.7k,MK15 8BA
Department for Transport,Department for Transport,17/02/2014,Cap Grt Pri Sec-Cos.,"Energy, Technology and International",Volvo Car UK Limited,2000024743,65000,PiCG Volvo Jan 2014 #65k,SL6 4FJ
Department for Transport,Department for Transport,17/02/2014,Cap Grt Pri Sec-Cos.,"Energy, Technology and International",EDF Energy,2000024742,2000,EDF Dec 2013 #2k,BN3 5SU
Department for Transport,Department for Transport,17/02/2014,Cap Grt Pri Sec-Cos.,"Energy, Technology and International",EDF Energy,2000024742,7090.48,EDF 23/09/13 # 24/10/13 #7k,BN3 5SU
Department for Transport,Department for Transport,17/02/2014,Cap Grt Pri Sec-Cos.,"Policy, Legislation and Funding",Eversheds LLP,2000024747,556334.96,#,CF10 5BT
Department for Transport,Department for Transport,17/02/2014,Cars Maintenance,Motoring Services,SW Automotive,2000024739,893.29,#,BR2 9QL
Department for Transport,Department for Transport,17/02/2014,Computer Consumables,Motoring Services,XMA LIMITED GOSC,2000024735,2366.52,A2XNOTD,NG11 7EP
Department for Transport,Department for Transport,17/02/2014,Computer Consumables,Motoring Services,XMA LIMITED GOSC,2000024735,3778.08,#,NG11 7EP
Department for Transport,Department for Transport,17/02/2014,Computer Consumables,Motoring Services,XMA LIMITED GOSC,2000024735,1218.72,#,NG11 7EP
Department for Transport,Department for Transport,17/02/2014,Computer equipment,Air Accident Investigation Branch,SOFTWARE BOX LTD,2000024700,1837.39,SBL NON ETHOS MCAFEE PROTECTION 1YR 2014,YO61 1ET
Department for Transport,Department for Transport,17/02/2014,Computer equipment,Motoring Services,HEWLETT PACKARD LTD,2000024713,1071,#,RG12 1BQ
Department for Transport,Department for Transport,17/02/2014,CurrGrt Las in AEF/A,Rail Strategy & Funding,TRANSPORT FOR LONDON,2000024727,2208700.87,TfL LOROL Grant February 2013 Claim,SW1H 0TL
Department for Transport,Department for Transport,17/02/2014,Data Supply - TD,Transport Direct&Travel,ORDNANCE SURVEY,2000024719,4538.38,#,SO16 4XH
Department for Transport,Department for Transport,17/02/2014,Data Supply - TD,Transport Direct&Travel,ORDNANCE SURVEY,2000024719,3704.82,#,SO16 4XH
Department for Transport,Department for Transport,17/02/2014,Estate Management,Group Procurement & Estate,Amey Community Ltd,2000024750,105345.65,#,OX4 4DQ
Department for Transport,Department for Transport,17/02/2014,Grt Aid to NDPBs,Rail NDPB's,RAIL PASSENGER COUNCIL,2000024697,433000,PF Feb 2013 Claim,M1 1LQ
Department for Transport,Department for Transport,17/02/2014,IT Ser Running Costs,Transport Direct&Travel,ATOS IT SERVICES UK LTD,2000024707,148564.8,#,WV10 6UH
Department for Transport,Department for Transport,17/02/2014,IT Ser Running Costs,Analysis & Strategy,ATKINS LTD (TRANSPORT PLANNING),2000024706,1785,#,WR5 1TX
Department for Transport,Department for Transport,17/02/2014,IT Ser Running Costs,Analysis & Strategy,ATKINS LTD (TRANSPORT PLANNING),2000024706,7993.5,#,WR5 1TX
Department for Transport,Department for Transport,17/02/2014,L&B Excl Dwellings,Maritime,FAITHFUL & GOULD LTD,2000024749,4806.6,#,CF24 0AD
Department for Transport,Department for Transport,17/02/2014,Legal Consultancy,"Policy, Legislation and Funding",TREASURY SOLICITOR,2000024696,13336.02,#,WC2B 4TS
Department for Transport,Department for Transport,17/02/2014,OffEquip (Non-Cap),Group Communication,AVAT LIMITED,2000024732,2120.4,#,RG26 5BH
Department for Transport,Department for Transport,17/02/2014,Publications for Res,Group Communication,CREATIVE CHOICE CIC,2000024731,1450,#,SW1H 0DJ
Department for Transport,Department for Transport,17/02/2014,Publications for Res,Aviation,CREATIVE CHOICE CIC,2000024731,2805,#,SW1H 0DJ
Department for Transport,Department for Transport,17/02/2014,Publicity,Group Communication,CREATIVE CHOICE CIC,2000024731,3200,#,SW1H 0DJ
Department for Transport,Department for Transport,17/02/2014,Publicity,Local,CREATIVE CHOICE CIC,2000024731,2760,#,SW1H 0DJ
Department for Transport,Department for Transport,17/02/2014,Recruitment,General Counsel's Office,TMP UK LTD,2000024701,6000,#,W1T 7RQ
Department for Transport,Department for Transport,17/02/2014,Research,Aviation,CIVIL AVIATION AUTHORITY,2000024710,57807,#,RH10 0YR
Department for Transport,Department for Transport,17/02/2014,Support Services,Strategic Roads & Smart Ticketing,HIGHWAYS AGENCY,2000024699,17966.37,#,B1 1RN
Department for Transport,Department for Transport,17/02/2014,Support Services,Aviation,CIVIL AVIATION AUTHORITY,2000024710,200000,#,RH10 0YR
Department for Transport,Department for Transport,17/02/2014,Support Services,Aviation,CIVIL AVIATION AUTHORITY,2000024710,371426.73,#,RH10 0YR
Department for Transport,Department for Transport,17/02/2014,Support Services,Group Finance,RAILWAYS PENSION MANAGEMENT LT,2000024726,900000,#,DL3 6EH
Department for Transport,Department for Transport,17/02/2014,Telephone charges,Air Accident Investigation Branch,ALTERNATIVE NETWORKS PLC,2000024729,1063.24,#,SW11 3UL
Department for Transport,Department for Transport,17/02/2014,Training,Air Accident Investigation Branch,HELI AIR LIMITED,2000024733,717,#,CV35 9EU
Department for Transport,Department for Transport,17/02/2014,Training,Air Accident Investigation Branch,xxxxxx,2000024746,647.7,#,xxxxxx
Department for Transport,Department for Transport,17/02/2014,Training,Rail Commercial & Programme Office,SCOTWORK,2000024728,2387,#,G11 5NU
Department for Transport,Department for Transport,18/02/2014,Agency Staff Costs,Group Finance,ALLEN LANE FINANCIAL RECRUITMENT,2000024804,4843.66,#,BN11 2BW
Department for Transport,Department for Transport,18/02/2014,Agency Staff Costs,Local,Pertemps Recruitment Partnership,2000024827,921.53,#,NE1 8AQ
Department for Transport,Department for Transport,18/02/2014,Agency Staff Costs,Major Projects & Growth,BADENOCH & CLARK,2000024805,3088.8,#,EC4V 4BG
Department for Transport,Department for Transport,18/02/2014,Agency Staff Costs,Rail Strategy & Funding,CAPITA RESOURCING LTD,2000024812,4026,#,DL1 9HN
Department for Transport,Department for Transport,18/02/2014,Agency Staff Costs,Group Finance,ALLEN LANE FINANCIAL RECRUITMENT,2000024804,2463.84,#,BN11 2BW
Department for Transport,Department for Transport,18/02/2014,Agency Staff Costs,"Policy, Legislation and Funding",CAPITA RESOURCING LTD,2000024812,27720,#,DL1 9HN
Department for Transport,Department for Transport,18/02/2014,Agency Staff Costs,Rail Franchising,CAPITA RESOURCING LTD,2000024812,70809.67,#,DL1 9HN
Department for Transport,Department for Transport,18/02/2014,Agency Staff Costs,Group Finance,MICHAEL PAGE INTERNATIONAL,2000024811,4608,#,SL1 3SA
Department for Transport,Department for Transport,18/02/2014,Agency Staff Costs,Rail Franchising,CAPITA RESOURCING LTD,2000024812,37200,#,DL1 9HN
Department for Transport,Department for Transport,18/02/2014,Agency Staff Costs,Rail Franchising,CAPITA RESOURCING LTD,2000024812,7461.07,#,DL1 9HN
Department for Transport,Department for Transport,18/02/2014,Agency Staff Costs,Rail Franchising,CAPITA RESOURCING LTD,2000024812,28443.76,#,DL1 9HN
Department for Transport,Department for Transport,18/02/2014,Agency Staff Costs,Rail Franchising,CAPITA RESOURCING LTD,2000024812,4740,#,DL1 9HN
Department for Transport,Department for Transport,18/02/2014,Agency Staff Costs,Rail Franchising,CAPITA RESOURCING LTD,2000024812,17704.8,#,DL1 9HN
Department for Transport,Department for Transport,18/02/2014,Agency Staff Costs,Rail Franchising,CAPITA RESOURCING LTD,2000024812,-4740,#,DL1 9HN
Department for Transport,Department for Transport,18/02/2014,Agency Staff Costs,Rail Franchising,CAPITA RESOURCING LTD,2000024812,4740,#,DL1 9HN
Department for Transport,Department for Transport,18/02/2014,Building Service Cha,Group Procurement & Estate,Amey Community Ltd,2000024831,13521.48,#,OX4 4DQ
Department for Transport,Department for Transport,18/02/2014,Curr Grt Overseas,Aviation,ECAC SECRETARIAT,2000024833,190630.49,Member State Contributions to ECAC for 2014,92522
Department for Transport,Department for Transport,18/02/2014,CurrGrt Las in AEF/A,"Motoring, Freight & London",GREATER LONDON AUTHORITY,2000024836,76479000,GLA Grant Payment - No: 24,SE1 2UT
Department for Transport,Department for Transport,18/02/2014,Financial Consultanc,Rail Franchising,GRANT THORNTON UK LLP,2000024813,232860,#,NN4 7YE
Department for Transport,Department for Transport,18/02/2014,Management Consultan,General Counsel's Office,Crawford & Co Adjusters (UK) Ltd,2000024821,17401.2,#,B2 2PF
Department for Transport,Department for Transport,18/02/2014,Media & Press,Group Communication,CABINET OFFICE,2000024832,1200,#,CF14 3UW
Department for Transport,Department for Transport,18/02/2014,Recruitment Fees,Group Human Resource,GATENBY SANDERSON LTD,2000024816,4956,#,LS1 2HL
Department for Transport,Department for Transport,18/02/2014,Research,Marine Accident Investigation Branch,Corgi Technical Services Ltd,2000024822,3452.9,#,RG26 5EG
Department for Transport,Department for Transport,18/02/2014,Small Software,Transport Direct&Travel,TRAPEZE GROUP (UK) LTD,2000024809,17293.2,#,BA14 6PH
Department for Transport,Department for Transport,18/02/2014,Stationery (Non-stk),Principal Priv. Secretary & Head of Private Office,Banner Business Services Ltd,2000024820,587.52,9150014 Banner Value A4 Copier Paper 80g,NR3 1QU
Department for Transport,Department for Transport,18/02/2014,Subscriptions to Pro,Analysis & Strategy,TTI TECHNOLOGIES LLC,2000024834,27494.67,#,90402
Department for Transport,Department for Transport,18/02/2014,Support Services,Aviation,CIVIL AVIATION AUTHORITY,2000024807,26218,#,RH10 0YR
Department for Transport,Department for Transport,18/02/2014,Support Services,Aviation,FCO FOREIGN & COMMONWEALTH OFFICE,2000024835,697.8,#,MK10 1PX
Department for Transport,Department for Transport,18/02/2014,Support Services,Aviation,FCO FOREIGN & COMMONWEALTH OFFICE,2000024835,1671.92,#,MK10 1PX
Department for Transport,Department for Transport,18/02/2014,Telephone charges,Motoring Services,BT PAYMENT SERVICES LTD,2000024810,9091.68,BT - MA - Feb 2014,DH98 1BT
Department for Transport,Department for Transport,18/02/2014,Training,Air Accident Investigation Branch,BRITISH AIRWAYS,2000024806,3000,#,UB7 0GB
Department for Transport,Department for Transport,18/02/2014,Training,Maritime,Thresholds,2000024808,1500,#,BS5 9AY
Department for Transport,Department for Transport,19/02/2014,Agency Staff Costs,Group Communication,NETWORKERS INTERNATIONAL (UK) PLC,2000024908,1013.52,#,BR1 1HP
Department for Transport,Department for Transport,19/02/2014,Agency Staff Costs,Group Finance,NETWORKERS INTERNATIONAL (UK) PLC,2000024908,3393.6,#,BR1 1HP
Department for Transport,Department for Transport,19/02/2014,Agency Staff Costs,Rail Commercial & Programme Office,NETWORKERS INTERNATIONAL (UK) PLC,2000024908,4182.54,#,BR1 1HP
Department for Transport,Department for Transport,19/02/2014,Agency Staff Costs,Group Finance,NETWORKERS INTERNATIONAL (UK) PLC,2000024908,861,#,BR1 1HP
Department for Transport,Department for Transport,19/02/2014,Agency Staff Costs,Rail Franchising,NETWORKERS INTERNATIONAL (UK) PLC,2000024908,795.53,#,BR1 1HP
Department for Transport,Department for Transport,19/02/2014,Electricity,Rail Accident Investigation Branch,BRITISH GAS,2000024891,1019.35,#,OX4 2JY
Department for Transport,Department for Transport,19/02/2014,Gas,Rail Accident Investigation Branch,CORONA ENERGY RETAIL 4 LTD,2000024894,822.67,#,WD17 1JW
Department for Transport,Department for Transport,19/02/2014,IT Equip Cap Cost,Motoring Services,KONICA MINOLTA BUS. SOLUTIONS  (UK),2000024887,2110.7,#,SS14 3AR
Department for Transport,Department for Transport,19/02/2014,IT Ser Running Costs,Rail Franchising,CONNECT INTERNET SOLUTIONS LTD,2000024893,2880,#,L2 6SG
Department for Transport,Department for Transport,19/02/2014,IT Ser Running Costs,Rail Franchising,CONNECT INTERNET SOLUTIONS LTD,2000024893,1620,#,L2 6SG
Department for Transport,Department for Transport,19/02/2014,Legal Consultancy,"Policy, Legislation and Funding",xxxxxx,2000024916,960,#,xxxxxx
Department for Transport,Department for Transport,19/02/2014,Legal Consultancy,"Policy, Legislation and Funding",xxxxxx,2000024903,3888,#,xxxxxx
Department for Transport,Department for Transport,19/02/2014,Postage,Air Accident Investigation Branch,PITNEY BOWES LTD,2000024899,1013,#,CM20 2GZ
Department for Transport,Department for Transport,19/02/2014,Property Maintenance,Air Accident Investigation Branch,INTERSERVE,2000024914,10314.67,#,BS32 4NH
Department for Transport,Department for Transport,19/02/2014,Rent - L&B (non-PFI),Group Procurement & Estate,JONES LANG LaSALLE (BODMIN),2000024912,31841.16,"Rent at 46 Ponton Road, LONDON",E14 5EG
Department for Transport,Department for Transport,19/02/2014,Research,Aviation,STEER DAVIES & GLEAVE LTD,2000024901,20225,#,SE1 9PD
Department for Transport,Department for Transport,19/02/2014,Research,Local,OFFICE FOR NATIONAL STATISTICS,2000024923,36930.26,#,NP10 8XG
Department for Transport,Department for Transport,19/02/2014,Security,Air Accident Investigation Branch,INTERSERVE,2000024914,2173.5,#,BS32 4NH
Department for Transport,Department for Transport,19/02/2014,Support Services,Aviation,CIVIL AVIATION AUTHORITY,2000024892,106015.82,#,RH10 0YR
Department for Transport,Department for Transport,19/02/2014,Support Services,General Counsel's Office,CABINET OFFICE,2000024922,40000,#,CF14 3UW
Department for Transport,Department for Transport,19/02/2014,Support Services,Group Finance,DD ACCRAILWAY PENS TRUSTEE,2000024907,1174.91,#,DL3 6XR
Department for Transport,Department for Transport,19/02/2014,Traffic Survey & Cou,"Motoring, Freight & London",PARSONS BRINCKERHOFF LTD,100030278,30058,#,NE4 7YQ
Department for Transport,Department for Transport,19/02/2014,Traffic Survey & Cou,"Motoring, Freight & London",PARSONS BRINCKERHOFF LTD,100030278,-30058,#,NE4 7YQ
Department for Transport,Department for Transport,19/02/2014,Traffic Survey & Cou,Strategic Roads & Smart Ticketing,BDRC Continental LTD,2000024917,11281.5,#,WC1V 7DA
Department for Transport,Department for Transport,19/02/2014,Training,"Motoring, Freight & London",Thresholds,2000024902,1800,#,BS5 9AY
Department for Transport,Department for Transport,19/02/2014,Transport  Consult,Group Procurement & Estate,BLAKE LAPTHORN,2000024909,3312.05,#,SO53 3LG
Department for Transport,Department for Transport,19/02/2014,Transport  Consult,Group Procurement & Estate,xxxxxx,2000024909,3312.05,#,xxxxxx
Department for Transport,Department for Transport,19/02/2014,Transport  Consult,Strategic Roads & Smart Ticketing,PA CONSULTING SERVICES LIMITED,2000024898,102698.52,#,SW1W 9SR
Department for Transport,Department for Transport,19/02/2014,Transport  Consult,Local,OVE ARUP & PARTNERS,2000024897,16184.56,#,NE1 3PL
Department for Transport,Department for Transport,19/02/2014,Travel Expenses UK,Group Finance,REDFERN TRAVEL LTD,2000024911,238250.09,Travel statement Jan 2014 - 073020,BD1 3AZ
Department for Transport,Department for Transport,19/02/2014,Treasury Solicitors,General Counsel's Office,TREASURY SOLICITOR,2000024920,1496.64,#,WC2B 4TS
Department for Transport,Department for Transport,19/02/2014,Treasury Solicitors,General Counsel's Office,TREASURY SOLICITOR,2000024920,2527.74,#,WC2B 4TS
Department for Transport,Department for Transport,20/02/2014,Agency Staff Costs,Corporate Governance,BADENOCH & CLARK,2000024967,3442.44,#,EC4V 4BG
Department for Transport,Department for Transport,20/02/2014,Agency Staff Costs,Corporate Governance,BADENOCH & CLARK,2000024967,3442.44,#,EC4V 4BG
Department for Transport,Department for Transport,20/02/2014,Agency Staff Costs,Major Projects & Growth,MICHAEL PAGE INTERNATIONAL,2000024981,18300.4,#,SL1 3SA
Department for Transport,Department for Transport,20/02/2014,Agency Staff Costs,Major Projects & Growth,SPRING TECHNOLOGY LTD  ALSO T/A,2000024983,1320,#,B37 7YE
Department for Transport,Department for Transport,20/02/2014,Agency Staff Costs,Group Finance,MICHAEL PAGE INTERNATIONAL,2000024981,2400,#,SL1 3SA
Department for Transport,Department for Transport,20/02/2014,Agency Staff Costs,Group Finance,SPRING TECHNOLOGY LTD  ALSO T/A,2000024983,1566.3,#,B37 7YE
Department for Transport,Department for Transport,20/02/2014,Agency Staff Costs,Group Finance,SPRING TECHNOLOGY LTD  ALSO T/A,2000024983,1566.3,#,B37 7YE
Department for Transport,Department for Transport,20/02/2014,Agency Staff Costs,Group Finance,SPRING TECHNOLOGY LTD  ALSO T/A,2000024983,1566.3,#,B37 7YE
Department for Transport,Department for Transport,20/02/2014,Agency Staff Costs,Group Finance,SPRING TECHNOLOGY LTD  ALSO T/A,2000024983,1566.3,#,B37 7YE
Department for Transport,Department for Transport,20/02/2014,Agency Staff Costs,Rail Commercial & Programme Office,MICHAEL PAGE INTERNATIONAL,2000024981,1998,#,SL1 3SA
Department for Transport,Department for Transport,20/02/2014,Cap Grt Pri Sec-Cos.,Major Projects & Growth,NETWORK RAIL INFRASTRUCTURE LTD,2000024985,525461.59,NR WP1 Period end 9Nov13,M60 7WY
Department for Transport,Department for Transport,20/02/2014,Cycle to Work Scheme,Group Human Resource,CYCLESCHEME LTD,2000024970,-833.33,#,BA1 1WX
Department for Transport,Department for Transport,20/02/2014,Cycle to Work Scheme,Group Human Resource,CYCLESCHEME LTD,2000024970,3458.33,#,BA1 1WX
Department for Transport,Department for Transport,20/02/2014,Childcare Voucher Co,Group Human Resource,COMPUTERSHARE VOUCHER SERVICES,2000024964,30446,#,WS13 8SX
Department for Transport,Department for Transport,20/02/2014,Computer equipment,Group Communication,BEAVER SOLUTIONS,2000024968,2028,#,SG12 9PZ
Department for Transport,Department for Transport,20/02/2014,Computer equipment,Motoring Services,E-Cycle Limited,2000024990,5528.4,#,CF39 9BW
Department for Transport,Department for Transport,20/02/2014,CurrGrt Las in AEF/A,Major Projects & Growth,NEXUS,2000024980,2067580,Nexus Jan14 Resource grant,NE1 4AX
Department for Transport,Department for Transport,20/02/2014,HR Consultancy,Group Human Resource,EMPLOYEE ADVISORY RESOURCE LTD,2000024972,1074.25,#,W4 5YB
Department for Transport,Department for Transport,20/02/2014,Legal Consultancy,General Counsel's Office,LANDMARK CHAMBERS,2000024973,1305,#,EC4A 2HG
Department for Transport,Department for Transport,20/02/2014,Machinery Rental,General Counsel's Office,DANWOOD GROUP LTD,2000024971,490.16,#,LN6 3DG
Department for Transport,Department for Transport,20/02/2014,Machinery Rental,General Counsel's Office,DANWOOD GROUP LTD,2000024971,803.21,#,LN6 3DG
Department for Transport,Department for Transport,20/02/2014,Maintenance Other,"Motoring, Freight & London",TDC SYSTEMS LIMITED,2000024977,4368,#,BS24 9BP
Department for Transport,Department for Transport,20/02/2014,Medical Advisory Ser,Rail Accident Investigation Branch,HEALTHCARE CONNECTIONS LTD,2000024984,482.16,#,HP5 3EN
Department for Transport,Department for Transport,20/02/2014,Minor Developments,"Energy, Technology and International",TRIAD GROUP PLC,2000024978,1500,#,GU7 1XE
Department for Transport,Department for Transport,20/02/2014,Other Professional F,Group Human Resource,COMPUTERSHARE VOUCHER SERVICES,2000024964,730.7,#,WS13 8SX
Department for Transport,Department for Transport,20/02/2014,Prog&ProjMgmt Consul,"Policy, Legislation and Funding",PARSONS BRINCKERHOFF LTD,2000024974,3066.16,#,NE4 7YQ
Department for Transport,Department for Transport,20/02/2014,Support Services,Aviation,MINISTRY OF DEFENCE,2000024982,17830.2,#,L2 3YL
Department for Transport,Department for Transport,20/02/2014,Telephone charges,Motoring Services,BT PAYMENT SERVICES LTD,2000024979,3942.03,BT - Call Charges - 10.02.2014,DH98 1BT
Department for Transport,Department for Transport,20/02/2014,Telephone charges,Motoring Services,BT PAYMENT SERVICES LTD,2000024979,1024.86,BT - Call Charges - 10/02/2014,DH98 1BT
Department for Transport,Department for Transport,20/02/2014,Transport  Consult,Transport Security Strategy,QinetiQ Processing Centre,2000024975,10320,#,GU14 0LX
Department for Transport,Department for Transport,20/02/2014,Transport  Consult,Rail Franchising,PARSONS BRINCKERHOFF LTD,2000024974,153516.43,PO 8000124516,NE4 7YQ
Department for Transport,Department for Transport,20/02/2014,Transport  Consult,Rail Franchising,PARSONS BRINCKERHOFF LTD,2000024974,-153516.43,PO 8000124516,NE4 7YQ
Department for Transport,Department for Transport,21/02/2014,Agency Staff Costs,Group Communication,LA INTERNATIONAL COMPUTER,2000025045,1338.24,#,ST1 5UB
Department for Transport,Department for Transport,21/02/2014,Agency Staff Costs,Group Finance,BADENOCH & CLARK,2000025038,4843.66,#,EC4V 4BG
Department for Transport,Department for Transport,21/02/2014,Agency Staff Costs,Group Finance,MICHAEL PAGE INTERNATIONAL,2000025057,4080,#,SL1 3SA
Department for Transport,Department for Transport,21/02/2014,Agency Staff Costs,Group Finance,MICHAEL PAGE INTERNATIONAL,2000025057,5184,#,SL1 3SA
Department for Transport,Department for Transport,21/02/2014,Agency Staff Costs,Group Finance,MICHAEL PAGE INTERNATIONAL,2000025057,3240,#,SL1 3SA
Department for Transport,Department for Transport,21/02/2014,Agency Staff Costs,Programme Office,BADENOCH & CLARK,2000025038,1755.66,#,EC4V 4BG
Department for Transport,Department for Transport,21/02/2014,Agency Staff Costs,Rail Franchising,MICHAEL PAGE INTERNATIONAL,2000025057,666.6,#,SL1 3SA
Department for Transport,Department for Transport,21/02/2014,Agency Staff Costs,Rail Franchising,BADENOCH & CLARK,2000025038,3786.66,#,EC4V 4BG
Department for Transport,Department for Transport,21/02/2014,Agency Staff Costs,Rail Franchising,BADENOCH & CLARK,2000025038,3786.66,#,EC4V 4BG
Department for Transport,Department for Transport,21/02/2014,Agency Staff Costs,Rail Franchising,BADENOCH & CLARK,2000025038,3786.66,#,EC4V 4BG
Department for Transport,Department for Transport,21/02/2014,Agency Staff Costs,Rail Franchising,BADENOCH & CLARK,2000025038,3786.66,#,EC4V 4BG
Department for Transport,Department for Transport,21/02/2014,Agency Staff Costs,Rail Franchising,METHODS CONSULTING LTD,2000025047,17758.22,#,WC2H 8AD
Department for Transport,Department for Transport,21/02/2014,Agents Fees,Motoring Services,DRIVER & VEHICLE LICENSING AGENCY,2000025043,10904.9,#,SA6 7JL
Department for Transport,Department for Transport,21/02/2014,Books,General Counsel's Office,WILDY AND SONS LTD,2000025063,647,#,WC2A 2JD
Department for Transport,Department for Transport,21/02/2014,Books,General Counsel's Office,WILDY AND SONS LTD,2000025063,695,#,WC2A 2JD
Department for Transport,Department for Transport,21/02/2014,Car Hire and Leasing,Air Accident Investigation Branch,Victoria Gosden Travel Ltd,2000025077,1181.4,#,GU14 8NP
Department for Transport,Department for Transport,21/02/2014,Car Hire and Leasing,Motoring Services,LEX AUTOLEASE LTD,2000025035,589.05,#,BL9 8RT
Department for Transport,Department for Transport,21/02/2014,Courier Charges,Group Procurement & Estate,DX NETWORK SERVICES LTD,2000025036,1328.21,#,NN3 6YG
Department for Transport,Department for Transport,21/02/2014,CurrGrtPriSec-P&NPIS,"Energy, Technology and International",ENERGY SAVING TRUST,2000025056,310190,"""EST Jan  #310,190 """,SW1H 9BP
Department for Transport,Department for Transport,21/02/2014,CurrGrtPriSec-P&NPIS,"Energy, Technology and International",LOW CARBON VEHICLE PARTNERSHIP,2000025066,20000,"""LowCVP Feb Claim #20,000 """,SW1H 9JJ
Department for Transport,Department for Transport,21/02/2014,Grant Payments,Rail Commercial & Programme Office,GREATER MANCHESTER PTA,2000025061,5331286.21,1412 Wk3 PTE Subsidy incl indexation - Transport f,M1 3BG
Department for Transport,Department for Transport,21/02/2014,Grant Payments,Rail Commercial & Programme Office,MERSEYTRAVEL,2000025058,1155549.72,1412 Wk3 PTE Subsidy incl Indexation - MerseyRail,L3 2AN
Department for Transport,Department for Transport,21/02/2014,Grant Payments,Rail Commercial & Programme Office,NEXUS (TYNE & WEAR),2000025059,315149.92,1412 Wk3 PTE Subsidy incl Indexation - Nexus,NE1 4AX
Department for Transport,Department for Transport,21/02/2014,Grant Payments,Rail Commercial & Programme Office,SOUTH YORKSHIRE PTE,2000025060,2022212.01,1412 Wk3 PTE Subsidy incl Indexation - South Yorks,S2 5YT
Department for Transport,Department for Transport,21/02/2014,Grant Payments,Rail Commercial & Programme Office,WEST YORKSHIRE PTA,2000025062,4858561.33,1412 Wk3 PTE Subsidy incl indexation - West Yorksh,LS1 2DE
Department for Transport,Department for Transport,21/02/2014,HR Consultancy,Group Human Resource,EMPLOYEE ADVISORY RESOURCE LTD,2000025044,1003.05,#,W4 5YB
Department for Transport,Department for Transport,21/02/2014,HR Consultancy,Group Human Resource,EMPLOYEE ADVISORY RESOURCE LTD,2000025044,1074.25,#,W4 5YB
Department for Transport,Department for Transport,21/02/2014,IT Ser Running Costs,Transport Direct&Travel,MENTZ DATENVERARBEITUNG GMBH,2000025034,25250.8,#,81675
Department for Transport,Department for Transport,21/02/2014,Legal Consultancy,Rail Franchising,DLA PIPER UK LLP,2000025042,10746.24,#,M2 3DL
Department for Transport,Department for Transport,21/02/2014,Legal Consultancy,Rail Franchising,DLA PIPER UK LLP,2000025042,8925.12,#,M2 3DL
Department for Transport,Department for Transport,21/02/2014,Minor Developments,"Energy, Technology and International",TRIAD GROUP PLC,2000025054,6625,#,GU7 1XE
Department for Transport,Department for Transport,21/02/2014,Office Fur & Equip,Maritime,CAPITA SYMONDS LTD,2000025040,1440,#,DL1 9HN
Department for Transport,Department for Transport,21/02/2014,Prog&ProjMgmt Consul,Local,STEER DAVIES & GLEAVE LTD,2000025050,51840.13,#,SE1 9PD
Department for Transport,Department for Transport,21/02/2014,Prog&ProjMgmt Consul,"Policy, Legislation and Funding",PARSONS BRINCKERHOFF LTD,2000025049,92181.35,#,NE4 7YQ
Department for Transport,Department for Transport,21/02/2014,Pte Cost Of Servs Ch,Rail Commercial & Programme Office,GREATER MANCHESTER PTA,2000025061,111860.02,1412 Wk3 PTE Admin Grant incl Indexation - Transpo,M1 3BG
Department for Transport,Department for Transport,21/02/2014,Pte Cost Of Servs Ch,Rail Commercial & Programme Office,NEXUS (TYNE & WEAR),2000025059,19076.13,1412 Wk3 PTE Admin Grant incl Indexation - Nexus,NE1 4AX
Department for Transport,Department for Transport,21/02/2014,Pte Cost Of Servs Ch,Rail Commercial & Programme Office,SOUTH YORKSHIRE PTE,2000025060,91984.9,1412 Wk3 PTE Admin Grant incl Indexation - South Y,S2 5YT
Department for Transport,Department for Transport,21/02/2014,Pte Cost Of Servs Ch,Rail Commercial & Programme Office,WEST YORKSHIRE PTA,2000025062,67016.14,1412 Wk3 PTE Admin Grant incl indexation - West Yo,LS1 2DE
Department for Transport,Department for Transport,21/02/2014,Research,Transport Security Strategy,HOME OFFICE SHARED SERVICE CENTRE,2000025033,60909.2,#,NP20 9BB
Department for Transport,Department for Transport,21/02/2014,Support Services,Air Accident Investigation Branch,TRANSPORT RESEARCH LABORATORY,2000025053,8127.28,#,RG40 3GA
Department for Transport,Department for Transport,21/02/2014,Support Services,Group Communication,DEPARTMENT OF HEALTH,2000025065,2785.35,#,LS2 7UE
Department for Transport,Department for Transport,21/02/2014,Support Services,Aviation,MINISTRY OF DEFENCE,100030375,84764.4,#,L2 3YL
Department for Transport,Department for Transport,21/02/2014,Support Services,Aviation,MINISTRY OF DEFENCE,100030375,49218.8,#,L2 3YL
Department for Transport,Department for Transport,21/02/2014,Support Services,Aviation,MINISTRY OF DEFENCE,100030375,-84764.4,#,L2 3YL
Department for Transport,Department for Transport,21/02/2014,Support Services,Aviation,MINISTRY OF DEFENCE,100030375,-49218.8,#,L2 3YL
Department for Transport,Department for Transport,21/02/2014,Training,Corporate Governance,Thresholds,2000025051,1800,#,BS5 9AY
Department for Transport,Department for Transport,21/02/2014,Training,Corporate Governance,Thresholds,2000025051,1800,#,BS5 9AY
Department for Transport,Department for Transport,21/02/2014,Training,Aviation,Thresholds,2000025051,1500,#,BS5 9AY
Department for Transport,Department for Transport,21/02/2014,Training,Rail Commercial & Programme Office,SCOTWORK,2000025064,6907,#,G11 5NU
Department for Transport,Department for Transport,21/02/2014,Training,"Energy, Technology and International",Thresholds,2000025051,1500,Sophie Tredinnick Thresholds Training,BS5 9AY
Department for Transport,Department for Transport,21/02/2014,Training,"Motoring, Freight & London",Thresholds,2000025051,1800,#,BS5 9AY
Department for Transport,Department for Transport,21/02/2014,Transport  Consult,Major Projects & Growth,PARSONS BRINCKERHOFF LTD,2000025049,21241.4,#,NE4 7YQ
Department for Transport,Department for Transport,24/02/2014,Agency Staff Costs,Group Communication,NETWORKERS INTERNATIONAL (UK) PLC,2000025147,1013.52,#,BR1 1HP
Department for Transport,Department for Transport,24/02/2014,Agency Staff Costs,Group Finance,BADENOCH & CLARK,2000025136,4036.38,#,EC4V 4BG
Department for Transport,Department for Transport,24/02/2014,Agency Staff Costs,Group Finance,BADENOCH & CLARK,2000025136,3347.7,#,EC4V 4BG
Department for Transport,Department for Transport,24/02/2014,Agency Staff Costs,Group Finance,MICHAEL PAGE INTERNATIONAL,2000025145,3210,#,SL1 3SA
Department for Transport,Department for Transport,24/02/2014,Agency Staff Costs,Group Finance,MICHAEL PAGE INTERNATIONAL,2000025145,2856,#,SL1 3SA
Department for Transport,Department for Transport,24/02/2014,Agency Staff Costs,Group Finance,NETWORKERS INTERNATIONAL (UK) PLC,2000025147,3393.6,#,BR1 1HP
Department for Transport,Department for Transport,24/02/2014,Agency Staff Costs,Group Finance,NETWORKERS INTERNATIONAL (UK) PLC,2000025147,3393.6,#,BR1 1HP
Department for Transport,Department for Transport,24/02/2014,Agency Staff Costs,Local,SPRING TECHNOLOGY LTD  ALSO T/A,2000025148,762.48,#,B37 7YE
Department for Transport,Department for Transport,24/02/2014,Agency Staff Costs,Rail Commercial & Programme Office,NETWORKERS INTERNATIONAL (UK) PLC,2000025147,4182.54,#,BR1 1HP
Department for Transport,Department for Transport,24/02/2014,Agency Staff Costs,Group Finance,NETWORKERS INTERNATIONAL (UK) PLC,2000025147,861,#,BR1 1HP
Department for Transport,Department for Transport,24/02/2014,Agency Staff Costs,Group Finance,MICHAEL PAGE INTERNATIONAL,2000025145,2400,#,SL1 3SA
Department for Transport,Department for Transport,24/02/2014,Agency Staff Costs,Group Finance,MICHAEL PAGE INTERNATIONAL,2000025145,3456,#,SL1 3SA
Department for Transport,Department for Transport,24/02/2014,Agency Staff Costs,Rail Franchising,NETWORKERS INTERNATIONAL (UK) PLC,2000025147,1767.84,#,BR1 1HP
Department for Transport,Department for Transport,24/02/2014,Cap Grt Loc Auth,Local,TRANSPORT FOR LONDON,2000025144,52584,4008657 TRANSPORT FOR LONDON,SE10 1AJ
Department for Transport,Department for Transport,24/02/2014,Car Hire and Leasing,Motoring Services,LEX AUTOLEASE LTD,2000025133,461.43,#,BL9 8RT
Department for Transport,Department for Transport,24/02/2014,Car Hire and Leasing,Motoring Services,LEX AUTOLEASE LTD,2000025133,717.38,#,BL9 8RT
Department for Transport,Department for Transport,24/02/2014,CurrGrt Las in AEF/A,Local,TRANSPORT FOR LONDON,2000025144,62310,4008657 TRANSPORT FOR LONDON,SE10 1AJ
Department for Transport,Department for Transport,24/02/2014,Electricity,Air Accident Investigation Branch,MINISTRY OF DEFENCE,2000025146,2874.8,MOD - AAIB - 31.12.2013 - 31.01.2014,L2 3YL
Department for Transport,Department for Transport,24/02/2014,Financial Consultanc,Major Projects & Growth,PRICEWATERHOUSECOOPERS LLP,2000025138,26916.34,#,E14 9SQ
Department for Transport,Department for Transport,24/02/2014,Investigation Servic,Rail Accident Investigation Branch,BOLT SCIENCE LTD,2000025149,2280,#,PR7 2PY
Department for Transport,Department for Transport,24/02/2014,IT Ser Running Costs,Motoring Services,SOFTWARE BOX LTD,2000025140,3396,#,YO61 1ET
Department for Transport,Department for Transport,24/02/2014,Legal Consultancy,General Counsel's Office,Sharpe Pritchard LLP,2000025162,3886.8,#,WC1V 6HG
Department for Transport,Department for Transport,24/02/2014,Legal Consultancy,"Policy, Legislation and Funding",TREASURY SOLICITOR,2000025130,36874.78,#,WC2B 4TS
Department for Transport,Department for Transport,24/02/2014,Machinery Rental,Group Procurement & Estate,DANWOOD GROUP LTD,2000025137,1166.78,#,LN6 3DG
Department for Transport,Department for Transport,24/02/2014,Minor Developments,"Energy, Technology and International",TRIAD GROUP PLC,2000025142,8775,#,GU7 1XE
Department for Transport,Department for Transport,24/02/2014,Publicity,"Energy, Technology and International",TNS UK LTD,2000025141,27644.4,#,W5 1UA
Department for Transport,Department for Transport,24/02/2014,Research,Local,OECD RUE ANDRE PASCAL 2,2000025131,3369.25,#,75775
Department for Transport,Department for Transport,24/02/2014,Subsidies Private Se,Local,AGE CONCERN SHEPPEY,2000025129,842.8,AGE CONCERN SHEPPEY,ME12 2PF
Department for Transport,Department for Transport,24/02/2014,Support Services,"Policy, Legislation and Funding",TREASURY SOLICITOR,2000025130,42.4,#,WC2B 4TS
Department for Transport,Department for Transport,24/02/2014,Travel Expenses UK,Rail Strategy & Funding,Arriva UK Trains Ltd,2000025150,1880,#,CF10 5DJ
Department for Transport,Department for Transport,25/02/2014,Agency Staff Costs,Local,BROOK STREET BUREAU,2000025232,555.89,#,AL1 4JB
Department for Transport,Department for Transport,25/02/2014,Agency Staff Costs,Rail Commercial & Programme Office,EXPERIS LTD,2000025225,-964.26,#,EC1R 3DR
Department for Transport,Department for Transport,25/02/2014,Agency Staff Costs,Rail Commercial & Programme Office,EXPERIS LTD,2000025225,2892.78,#,EC1R 3DR
Department for Transport,Department for Transport,25/02/2014,Agency Staff Costs,Local,EXPERIS LTD,2000025225,6231.46,#,EC1R 3DR
Department for Transport,Department for Transport,25/02/2014,Agency Staff Costs,Rail Strategy & Funding,EXPERIS LTD,2000025225,3589.37,PO 8000116954,EC1R 3DR
Department for Transport,Department for Transport,25/02/2014,Agency Staff Costs,Rail Strategy & Funding,EXPERIS LTD,2000025225,-3589.37,PO 8000116954,EC1R 3DR
Department for Transport,Department for Transport,25/02/2014,Agency Staff Costs,Rail Strategy & Funding,EXPERIS LTD,2000025225,4766.76,#,EC1R 3DR
Department for Transport,Department for Transport,25/02/2014,Agency Staff Costs,Strategic Roads & Smart Ticketing,EXPERIS LTD,2000025225,18131.52,#,EC1R 3DR
Department for Transport,Department for Transport,25/02/2014,Agency Staff Costs,Group Finance,EXPERIS LTD,2000025225,7700.64,#,EC1R 3DR
Department for Transport,Department for Transport,25/02/2014,Agency Staff Costs,Rail Franchising,CAPITA RESOURCING LTD,2000025233,14189.5,#,DL1 9HN
Department for Transport,Department for Transport,25/02/2014,Agency Staff Costs,Rail Franchising,EXPERIS LTD,2000025225,894.14,#,EC1R 3DR
Department for Transport,Department for Transport,25/02/2014,Agency Staff Costs,Rail Franchising,EXPERIS LTD,2000025225,4470.72,#,EC1R 3DR
Department for Transport,Department for Transport,25/02/2014,Agency Staff Costs,Rail Franchising,EXPERIS LTD,2000025225,15200.45,#,EC1R 3DR
Department for Transport,Department for Transport,25/02/2014,Agency Staff Costs,Rail Franchising,EXPERIS LTD,2000025225,11053.44,#,EC1R 3DR
Department for Transport,Department for Transport,25/02/2014,Cap Grt Loc Auth,"Energy, Technology and International",SOUTHERN ELECTRIC CONTRACTING LTD,2000025236,49653.8,SSE Dec 2013 & Jan 2104 #49.6,RG1 8BU
Department for Transport,Department for Transport,25/02/2014,Cap Grt Pri Sec-Cos.,"Policy, Legislation and Funding",Eversheds LLP,2000025249,387800,13Stalb/PEARCEN,CF10 5BT
Department for Transport,Department for Transport,25/02/2014,Cars Fuel,Motoring Services,ALLSTAR BUSINESS SOLUTIONS LIMITED,2000025223,0.92,PO 8000119387,SN5 6PS
Department for Transport,Department for Transport,25/02/2014,Cars Fuel,Motoring Services,ALLSTAR BUSINESS SOLUTIONS LIMITED,2000025223,11012.2,#,SN5 6PS
Department for Transport,Department for Transport,25/02/2014,CurrGrt Las in AEF/A,Rail Strategy & Funding,MERSEY TRAVEL,2000025234,6408984.21,Marsey Travel grant 12th payment,L3   2AN
Department for Transport,Department for Transport,25/02/2014,Financial Consultanc,Major Projects & Growth,PRICEWATERHOUSECOOPERS LLP,2000025228,275585.32,#,E14 9SQ
Department for Transport,Department for Transport,25/02/2014,IT Ser Running Costs,General Counsel's Office,ACTICA CONSULTING LIMITED,2000025237,3060,#,GU2 7YF
Department for Transport,Department for Transport,25/02/2014,Legal Consultancy,Rail Franchising,Eversheds LLP,2000025241,99804.54,#,EC2V 7WS
Department for Transport,Department for Transport,25/02/2014,Machinery Rental,General Counsel's Office,DANWOOD GROUP LTD,2000025224,791.29,#,LN6 3DG
Department for Transport,Department for Transport,25/02/2014,Machinery Rental,General Counsel's Office,DANWOOD GROUP LTD,2000025224,540.03,#,LN6 3DG
Department for Transport,Department for Transport,25/02/2014,Other Advertising,Local,PENNA COMMUNICATIONS,2000025239,2927.9,#,EC4M 7RD
Department for Transport,Department for Transport,25/02/2014,Protective Clothing,Marine Accident Investigation Branch,SUNDRIDGE HOLDINGS LTD,2000025242,1153.2,#,ME3 9LW
Department for Transport,Department for Transport,25/02/2014,Research,"Motoring, Freight & London",HALCROW GROUP LTD,2000025226,14872.98,#,W6 7BY
Department for Transport,Department for Transport,25/02/2014,Support Services,Aviation,MINISTRY OF DEFENCE,2000025235,226487.5,#,L2 3YL
Department for Transport,Department for Transport,25/02/2014,Support Services,Aviation,MINISTRY OF DEFENCE,2000025235,234590,#,L2 3YL
Department for Transport,Department for Transport,25/02/2014,Support Services,Aviation,MINISTRY OF DEFENCE,2000025235,234590,#,L2 3YL
Department for Transport,Department for Transport,25/02/2014,Support Services,Aviation,MINISTRY OF DEFENCE,2000025235,15172,PO 8000121232,L2 3YL
Department for Transport,Department for Transport,25/02/2014,Support Services,Aviation,MINISTRY OF DEFENCE,2000025235,-15172,PO 8000121232,L2 3YL
Department for Transport,Department for Transport,25/02/2014,Support Services,Group Finance,EXEL PLC,2000025217,423000,#,MK40 2UB
Department for Transport,Department for Transport,25/02/2014,Telephone charges,Air Accident Investigation Branch,ALTERNATIVE NETWORKS PLC,2000025240,2240.48,#,SW11 3UL
Department for Transport,Department for Transport,25/02/2014,Telephone charges,Motoring Services,VERIZON BUSINESS,2000025230,11577.98,Verizon - internet charges,RG2 6DA
Department for Transport,Department for Transport,25/02/2014,Telephone charges,Motoring Services,VERIZON BUSINESS,2000025230,18446.89,Verizon - internet charges,RG2 6DA
Department for Transport,Department for Transport,25/02/2014,Telephone charges,Motoring Services,VIRGIN MEDIA BUSINESS,2000025238,8258.4,Virgin media internet charges 1/2/14,S9 3UH
Department for Transport,Department for Transport,25/02/2014,Telephone charges,Motoring Services,Vodafone,2000025218,2310.36,VODAFONE CHARGES A/C 13066448,MK3 5JP
Department for Transport,Department for Transport,25/02/2014,Training,Air Accident Investigation Branch,Aero's Holding Ltd,2000025244,481.01,#,CV8 3AZ
Department for Transport,Department for Transport,25/02/2014,Training,Group Finance,ELIESHA TRAINING,2000025219,1389.35,#,NE4 7YB
Department for Transport,Department for Transport,25/02/2014,Travel Exp Overseas,"Motoring, Freight & London",Environmental Scientifics Group,2000025221,500.86,#,OX9 3SZ
Department for Transport,Department for Transport,26/02/2014,Agency Staff Costs,Group Human Resource,HAYS PERSONNEL SERVICE LTD,2000025458,1070.4,#,KT3 4JQ
Department for Transport,Department for Transport,26/02/2014,Agency Staff Costs,Group Finance,MICHAEL PAGE INTERNATIONAL,2000025470,4080,#,SL1 3SA
Department for Transport,Department for Transport,26/02/2014,Agency Staff Costs,Group Finance,MICHAEL PAGE INTERNATIONAL,2000025470,3240,#,SL1 3SA
Department for Transport,Department for Transport,26/02/2014,Agency Staff Costs,Major Projects & Growth,EXPERIS LTD,2000025466,13288.04,#,EC1R 3DR
Department for Transport,Department for Transport,26/02/2014,Agency Staff Costs,Rail Commercial & Programme Office,CAPITA RESOURCING LTD,100030555,36007.8,#,DL1 9HN
Department for Transport,Department for Transport,26/02/2014,Agency Staff Costs,Rail Commercial & Programme Office,CAPITA RESOURCING LTD,100030555,-36007.8,#,DL1 9HN
Department for Transport,Department for Transport,26/02/2014,Agency Staff Costs,Rail Strategy & Funding,EXPERIS LTD,2000025466,2695.22,#,EC1R 3DR
Department for Transport,Department for Transport,26/02/2014,Agency Staff Costs,Group Finance,ALLEN LANE FINANCIAL RECRUITMENT,2000025460,2463.84,#,BN11 2BW
Department for Transport,Department for Transport,26/02/2014,Agency Staff Costs,Rail Franchising,MICHAEL PAGE INTERNATIONAL,2000025470,3333,#,SL1 3SA
Department for Transport,Department for Transport,26/02/2014,Agency Staff Costs,Rail Franchising,MICHAEL PAGE INTERNATIONAL,2000025470,3333,#,SL1 3SA
Department for Transport,Department for Transport,26/02/2014,Basic Franchise Pay,Rail Commercial & Programme Office,CROSS COUNTRY TRAINS LTD,2000025477,-4810624,1412 Wk3 Basic Franchise Payment P1412 - on accoun,B5 4HA
Department for Transport,Department for Transport,26/02/2014,Basic Franchise Pay,Rail Commercial & Programme Office,CROSS COUNTRY TRAINS LTD,2000025477,35488.37,1412 Wk3 Interim Determination RPI Adjustment P12,B5 4HA
Department for Transport,Department for Transport,26/02/2014,Basic Franchise Pay,Rail Commercial & Programme Office,LONDON MIDLAND RAILWAY,2000025476,4580036,1412 Wk3 Basic Franchise Payment (Model v3.11) - L,B2 4JB
Department for Transport,Department for Transport,26/02/2014,Basic Franchise Pay,Rail Commercial & Programme Office,LONDON MIDLAND RAILWAY,2000025476,71953.49,1412 Wk3 Interim Determination RPI+0 Adjustment P1,B2 4JB
Department for Transport,Department for Transport,26/02/2014,Basic Franchise Pay,Rail Commercial & Programme Office,NORTHERN RAIL LTD,2000025474,10461320.52,1412 Wk3 Basic Franchise Payment - Model v12 - NOR,YO1 6HT
Department for Transport,Department for Transport,26/02/2014,Basic Franchise Pay,Rail Commercial & Programme Office,NORTHERN RAIL LTD,2000025474,813108,1412 Wk3 Franchise Payment - HLOS - NORTHERN RAIL,YO1 6HT
Department for Transport,Department for Transport,26/02/2014,Basic Franchise Pay,Rail Commercial & Programme Office,FIRST KEOLIS TRANSPENNINE,2000025473,4974928.01,1412 Wk3 Basic Franchise Payment - model v11 on ac,M1 6LT
Department for Transport,Department for Transport,26/02/2014,Basic Franchise Pay,Rail Commercial & Programme Office,FIRST KEOLIS TRANSPENNINE,2000025473,37441.86,1412 Wk3 Interim Determination Flex Adjustment P12,M1 6LT
Department for Transport,Department for Transport,26/02/2014,Basic Franchise Pay,Rail Commercial & Programme Office,FIRST KEOLIS TRANSPENNINE,2000025473,31581.4,1412 Wk3 Interim Determination RPI Adjustment P12,M1 6LT
Department for Transport,Department for Transport,26/02/2014,Basic Franchise Pay,Rail Commercial & Programme Office,FIRST GREATER WESTERN,2000025475,21488.37,1412 Wk3 Interim Determination Flex Adjustment P12,SN1 1HL
Department for Transport,Department for Transport,26/02/2014,Basic Franchise Pay,Rail Commercial & Programme Office,FIRST GREATER WESTERN,2000025475,155953.49,1412 Wk3 Interim Determination RPI+0 Adjustment P1,SN1 1HL
Department for Transport,Department for Transport,26/02/2014,Cap Grt Loc Auth,"Energy, Technology and International",GREATER MANCHESTER,8100008911,349280.54,PIP Q3 DfT,M60 3LA
Department for Transport,Department for Transport,26/02/2014,Cap Grt Loc Auth,"Energy, Technology and International",GREATER MANCHESTER,8100008911,-349280.54,PIP Q3 DfT,M60 3LA
Department for Transport,Department for Transport,26/02/2014,Cap Grt Loc Auth,Local,BLACKBURN WITH DARWEN BC,8100008866,79375,LSTF Payment 2013-14 Capital Q3,BB1 7DY
Department for Transport,Department for Transport,26/02/2014,Cap Grt Loc Auth,Local,BLACKBURN WITH DARWEN BC,8100008866,-79375,LSTF Payment 2013-14 Capital Q3,BB1 7DY
Department for Transport,Department for Transport,26/02/2014,Cap Grt Loc Auth,Local,BOURNEMOUTH BOROUGH COUNCIL,8100008892,902750,LSTF Payment 2013-14 Capital Q3,BH2 5SL
Department for Transport,Department for Transport,26/02/2014,Cap Grt Loc Auth,Local,BOURNEMOUTH BOROUGH COUNCIL,8100008892,-902750,LSTF Payment 2013-14 Capital Q3,BH2 5SL
Department for Transport,Department for Transport,26/02/2014,Cap Grt Loc Auth,Local,BRACKNELL FOREST BC,8100008863,36750,LSTF Payment 2013-14 Capital Q3,RG12 1AQ
Department for Transport,Department for Transport,26/02/2014,Cap Grt Loc Auth,Local,BRACKNELL FOREST BC,8100008863,-36750,LSTF Payment 2013-14 Capital Q3,RG12 1AQ
Department for Transport,Department for Transport,26/02/2014,Cap Grt Loc Auth,Local,BRIGHTON & HOVE COUNCIL,8100008882,195209.3,LSTF Payment 2013-14 Capital Q3,BN3 2SR
Department for Transport,Department for Transport,26/02/2014,Cap Grt Loc Auth,Local,BRIGHTON & HOVE COUNCIL,8100008882,-195209.3,LSTF Payment 2013-14 Capital Q3,BN3 2SR
Department for Transport,Department for Transport,26/02/2014,Cap Grt Loc Auth,Local,BRISTOL CITY COUNCIL,8100008895,1033500,LSTF Payment 2013-14 Capital Q3,BS99 7BL
Department for Transport,Department for Transport,26/02/2014,Cap Grt Loc Auth,Local,BRISTOL CITY COUNCIL,8100008895,-1033500,LSTF Payment 2013-14 Capital Q3,BS99 7BL
Department for Transport,Department for Transport,26/02/2014,Cap Grt Loc Auth,Local,CAMBRIDGESHIRE COUNTY COUNCIL,8100008896,264075,LSTF Payment 2013-14 Capital Q3,CB3 0AP
Department for Transport,Department for Transport,26/02/2014,Cap Grt Loc Auth,Local,CAMBRIDGESHIRE COUNTY COUNCIL,8100008896,-264075,LSTF Payment 2013-14 Capital Q3,CB3 0AP
Department for Transport,Department for Transport,26/02/2014,Cap Grt Loc Auth,Local,CENTRAL BEDFORDSHIRE COUNCIL,8100008891,253750,LSTF Payment 2013-14 Capital Q3,MK42 9BD
Department for Transport,Department for Transport,26/02/2014,Cap Grt Loc Auth,Local,CENTRAL BEDFORDSHIRE COUNCIL,8100008891,-253750,LSTF Payment 2013-14 Capital Q3,MK42 9BD
Department for Transport,Department for Transport,26/02/2014,Cap Grt Loc Auth,Local,CHESHIRE WEST &,8100008905,307250,LSTF Payment 2013-14 Capital Q3,CH1 9PS
Department for Transport,Department for Transport,26/02/2014,Cap Grt Loc Auth,Local,CHESHIRE WEST &,8100008905,-307250,LSTF Payment 2013-14 Capital Q3,CH1 9PS
Department for Transport,Department for Transport,26/02/2014,Cap Grt Loc Auth,Local,COVENTRY CITY COUNCIL,8100008909,354075,LSTF Payment 2013-14 Capital Q3,CV1 2QL
Department for Transport,Department for Transport,26/02/2014,Cap Grt Loc Auth,Local,COVENTRY CITY COUNCIL,8100008909,-354075,LSTF Payment 2013-14 Capital Q3,CV1 2QL
Department for Transport,Department for Transport,26/02/2014,Cap Grt Loc Auth,Local,CUMBRIA COUNTY COUNCIL,8100008897,269525,LSTF Payment 2013-14 Capital Q3,CA3 8NA
Department for Transport,Department for Transport,26/02/2014,Cap Grt Loc Auth,Local,CUMBRIA COUNTY COUNCIL,8100008897,-269525,LSTF Payment 2013-14 Capital Q3,CA3 8NA
Department for Transport,Department for Transport,26/02/2014,Cap Grt Loc Auth,Local,DARLINGTON BC,8100008869,121250,LSTF Payment 2013-14 Capital Q3,TS19 1JA
Department for Transport,Department for Transport,26/02/2014,Cap Grt Loc Auth,Local,DARLINGTON BC,8100008869,-121250,LSTF Payment 2013-14 Capital Q3,TS19 1JA
Department for Transport,Department for Transport,26/02/2014,Cap Grt Loc Auth,Local,DERBY CITY COUNCIL RESOURCES DEP,8100008899,273125,LSTF Payment 2013-14 Capital Q3,DE1 2YL
Department for Transport,Department for Transport,26/02/2014,Cap Grt Loc Auth,Local,DERBY CITY COUNCIL RESOURCES DEP,8100008899,-273125,LSTF Payment 2013-14 Capital Q3,DE1 2YL
Department for Transport,Department for Transport,26/02/2014,Cap Grt Loc Auth,Local,DEVON COUNTY COUNCIL,8100008886,525128,LSTF Payment 2013-14 Capital Q3,EX2 4QW
Department for Transport,Department for Transport,26/02/2014,Cap Grt Loc Auth,Local,DEVON COUNTY COUNCIL,8100008886,-525128,LSTF Payment 2013-14 Capital Q3,EX2 4QW
Department for Transport,Department for Transport,26/02/2014,Cap Grt Loc Auth,Local,DUDLEY MBC,8100008861,10000,LSTF Payment 2013-14 Capital Q3,DY1 1HF
Department for Transport,Department for Transport,26/02/2014,Cap Grt Loc Auth,Local,DUDLEY MBC,8100008861,-10000,LSTF Payment 2013-14 Capital Q3,DY1 1HF
Department for Transport,Department for Transport,26/02/2014,Cap Grt Loc Auth,Local,EAST SUSSEX COUNTY COUNCIL,8100008885,233225,LSTF Payment 2013-14 Capital Q3,BN7 1UE
Department for Transport,Department for Transport,26/02/2014,Cap Grt Loc Auth,Local,EAST SUSSEX COUNTY COUNCIL,8100008885,-233225,LSTF Payment 2013-14 Capital Q3,BN7 1UE
Department for Transport,Department for Transport,26/02/2014,Cap Grt Loc Auth,Local,GLOUCESTERSHIRE COUNTY COUNCIL,8100008879,228500,LSTF Payment 2013-14 Capital Q3,GL1 2TJ
Department for Transport,Department for Transport,26/02/2014,Cap Grt Loc Auth,Local,GLOUCESTERSHIRE COUNTY COUNCIL,8100008879,-228500,LSTF Payment 2013-14 Capital Q3,GL1 2TJ
Department for Transport,Department for Transport,26/02/2014,Cap Grt Loc Auth,Local,HAMPSHIRE COUNTY COUNCIL,8100008904,1783291.59,LSTF Payment 2013-14 Capital Q3,SO23 8UB
Department for Transport,Department for Transport,26/02/2014,Cap Grt Loc Auth,Local,HAMPSHIRE COUNTY COUNCIL,8100008904,-1783291.59,LSTF Payment 2013-14 Capital Q3,SO23 8UB
Department for Transport,Department for Transport,26/02/2014,Cap Grt Loc Auth,Local,HEREFORDSHIRE COUNCIL,8100008893,263750,LSTF Payment 2013-14 Capital Q3,HR4 0XH
Department for Transport,Department for Transport,26/02/2014,Cap Grt Loc Auth,Local,HEREFORDSHIRE COUNCIL,8100008893,-263750,LSTF Payment 2013-14 Capital Q3,HR4 0XH
Department for Transport,Department for Transport,26/02/2014,Cap Grt Loc Auth,Local,HERTFORDSHIRE CC,8100008910,420000,LSTF Payment 2013-14 Capital Q3,SG13 8TN
Department for Transport,Department for Transport,26/02/2014,Cap Grt Loc Auth,Local,HERTFORDSHIRE CC,8100008910,-420000,LSTF Payment 2013-14 Capital Q3,SG13 8TN
Department for Transport,Department for Transport,26/02/2014,Cap Grt Loc Auth,Local,KENT COUNTY COUNCIL,8100008872,130750,LSTF Payment 2013-14 Capital Q3,ME14 1XQ
Department for Transport,Department for Transport,26/02/2014,Cap Grt Loc Auth,Local,KENT COUNTY COUNCIL,8100008872,-130750,LSTF Payment 2013-14 Capital Q3,ME14 1XQ
Department for Transport,Department for Transport,26/02/2014,Cap Grt Loc Auth,Local,KINGSTON UPON HULL CITY COUNCIL,8100008870,125437.5,LSTF Payment 2013-14 Capital Q3,HU1 2AB
Department for Transport,Department for Transport,26/02/2014,Cap Grt Loc Auth,Local,KINGSTON UPON HULL CITY COUNCIL,8100008870,-125437.5,LSTF Payment 2013-14 Capital Q3,HU1 2AB
Department for Transport,Department for Transport,26/02/2014,Cap Grt Loc Auth,Local,LANCASHIRE COUNTY COUNCIL,8100008907,318089,LSTF Payment 2013-14 Capital Q3,PR1 0LD
Department for Transport,Department for Transport,26/02/2014,Cap Grt Loc Auth,Local,LANCASHIRE COUNTY COUNCIL,8100008907,-318089,LSTF Payment 2013-14 Capital Q3,PR1 0LD
Department for Transport,Department for Transport,26/02/2014,Cap Grt Loc Auth,Local,LEICESTER CITY COUNCIL,8100008881,169250,LSTF Payment 2013-14 Capital Q3,LE1 6ZG
Department for Transport,Department for Transport,26/02/2014,Cap Grt Loc Auth,Local,LEICESTER CITY COUNCIL,8100008881,-169250,LSTF Payment 2013-14 Capital Q3,LE1 6ZG
Department for Transport,Department for Transport,26/02/2014,Cap Grt Loc Auth,Local,LEICESTERSHIRE COUNTY COUNCIL,8100008867,88750,LSTF Payment 2013-14 Capital Q3,LE3 8RB
Department for Transport,Department for Transport,26/02/2014,Cap Grt Loc Auth,Local,LEICESTERSHIRE COUNTY COUNCIL,8100008867,-88750,LSTF Payment 2013-14 Capital Q3,LE3 8RB
Department for Transport,Department for Transport,26/02/2014,Cap Grt Loc Auth,Local,LINCOLNSHIRE COUNTY COUNCIL,8100008884,235500,LSTF Payment 2013-14 Capital Q3,LN1 1YT
Department for Transport,Department for Transport,26/02/2014,Cap Grt Loc Auth,Local,LINCOLNSHIRE COUNTY COUNCIL,8100008884,-235500,LSTF Payment 2013-14 Capital Q3,LN1 1YT
Department for Transport,Department for Transport,26/02/2014,Cap Grt Loc Auth,Local,LUTON BOROUGH COUNCIL,8100008875,150125,LSTF Payment 2013-14 Capital Q3,LU1 2BQ
Department for Transport,Department for Transport,26/02/2014,Cap Grt Loc Auth,Local,LUTON BOROUGH COUNCIL,8100008875,-150125,LSTF Payment 2013-14 Capital Q3,LU1 2BQ
Department for Transport,Department for Transport,26/02/2014,Cap Grt Loc Auth,Local,MIDDLESBROUGH BC,8100008862,33666.75,LSTF Payment 2013-14 Capital Q3,TS1 2QQ
Department for Transport,Department for Transport,26/02/2014,Cap Grt Loc Auth,Local,MIDDLESBROUGH BC,8100008862,-33666.75,LSTF Payment 2013-14 Capital Q3,TS1 2QQ
Department for Transport,Department for Transport,26/02/2014,Cap Grt Loc Auth,Local,NORTH YORKSHIRE CC,8100008890,819775,LSTF Payment 2013-14 Capital Q3,DL7 8AL
Department for Transport,Department for Transport,26/02/2014,Cap Grt Loc Auth,Local,NORTH YORKSHIRE CC,8100008890,-819775,LSTF Payment 2013-14 Capital Q3,DL7 8AL
Department for Transport,Department for Transport,26/02/2014,Cap Grt Loc Auth,Local,NORTHUMBERLAND CC,8100008876,157000,LSTF Payment 2013-14 Capital Q3,NE61 2EF
Department for Transport,Department for Transport,26/02/2014,Cap Grt Loc Auth,Local,NORTHUMBERLAND CC,8100008876,-157000,LSTF Payment 2013-14 Capital Q3,NE61 2EF
Department for Transport,Department for Transport,26/02/2014,Cap Grt Loc Auth,Local,NOTTINGHAM CITY COUNCIL,8100008908,338750,LSTF Payment 2013-14 Capital Q3,NG1 5NT
Department for Transport,Department for Transport,26/02/2014,Cap Grt Loc Auth,Local,NOTTINGHAM CITY COUNCIL,8100008908,-338750,LSTF Payment 2013-14 Capital Q3,NG1 5NT
Department for Transport,Department for Transport,26/02/2014,Cap Grt Loc Auth,Local,OXFORDSHIRE CC,8100008883,195250,LSTF Payment 2013-14 Capital Q3,OX1 1TH
Department for Transport,Department for Transport,26/02/2014,Cap Grt Loc Auth,Local,OXFORDSHIRE CC,8100008883,-195250,LSTF Payment 2013-14 Capital Q3,OX1 1TH
Department for Transport,Department for Transport,26/02/2014,Cap Grt Loc Auth,Local,PETERBOROUGH CITY COUNCIL,8100008877,220712.5,LSTF Payment 2013-14 Capital Q3,PE1 1FF
Department for Transport,Department for Transport,26/02/2014,Cap Grt Loc Auth,Local,PETERBOROUGH CITY COUNCIL,8100008877,-220712.5,LSTF Payment 2013-14 Capital Q3,PE1 1FF
Department for Transport,Department for Transport,26/02/2014,Cap Grt Loc Auth,Local,PLYMOUTH CITY COUNCIL,8100008889,242250,LSTF Payment 2013-14 Capital Q3,PL1 2AA
Department for Transport,Department for Transport,26/02/2014,Cap Grt Loc Auth,Local,PLYMOUTH CITY COUNCIL,8100008889,-242250,LSTF Payment 2013-14 Capital Q3,PL1 2AA
Department for Transport,Department for Transport,26/02/2014,Cap Grt Loc Auth,Local,READING BC,8100008900,1273750,LSTF Payment 2013-14 Capital Q3,RG1 7TD
Department for Transport,Department for Transport,26/02/2014,Cap Grt Loc Auth,Local,READING BC,8100008900,-1273750,LSTF Payment 2013-14 Capital Q3,RG1 7TD
Department for Transport,Department for Transport,26/02/2014,Cap Grt Loc Auth,Local,REDCAR & CLEVELAND BC,8100008865,60000,LSTF Payment 2013-14 Capital Q3,TS6 9AR
Department for Transport,Department for Transport,26/02/2014,Cap Grt Loc Auth,Local,REDCAR & CLEVELAND BC,8100008865,-60000,LSTF Payment 2013-14 Capital Q3,TS6 9AR
Department for Transport,Department for Transport,26/02/2014,Cap Grt Loc Auth,Local,SEFTON MBC,8100008864,38750,LSTF Payment 2013-14 Capital Q3,PR8 1DA
Department for Transport,Department for Transport,26/02/2014,Cap Grt Loc Auth,Local,SEFTON MBC,8100008864,-38750,LSTF Payment 2013-14 Capital Q3,PR8 1DA
Department for Transport,Department for Transport,26/02/2014,Cap Grt Loc Auth,Local,SHROPSHIRE COUNCIL,8100008873,134000,LSTF Payment 2013-14 Capital Q3,SY2 6ND
Department for Transport,Department for Transport,26/02/2014,Cap Grt Loc Auth,Local,SHROPSHIRE COUNCIL,8100008873,-134000,LSTF Payment 2013-14 Capital Q3,SY2 6ND
Department for Transport,Department for Transport,26/02/2014,Cap Grt Loc Auth,Local,SLOUGH BC,8100008898,271650,LSTF Payment 2013-14 Capital Q3,SL1 3UF
Department for Transport,Department for Transport,26/02/2014,Cap Grt Loc Auth,Local,SLOUGH BC,8100008898,-271650,LSTF Payment 2013-14 Capital Q3,SL1 3UF
Department for Transport,Department for Transport,26/02/2014,Cap Grt Loc Auth,Local,SOMERSET COUNTY COUNCIL,8100008903,286750,LSTF Payment 2013-14 Capital Q3,TA1 4DY
Department for Transport,Department for Transport,26/02/2014,Cap Grt Loc Auth,Local,SOMERSET COUNTY COUNCIL,8100008903,-286750,LSTF Payment 2013-14 Capital Q3,TA1 4DY
Department for Transport,Department for Transport,26/02/2014,Cap Grt Loc Auth,Local,SOUTHAMPTON CITY COUNCIL,8100008901,45500,LSTF Payment 2013-14 Capital Q3,SO14 7LF
Department for Transport,Department for Transport,26/02/2014,Cap Grt Loc Auth,Local,SOUTHAMPTON CITY COUNCIL,8100008901,-45500,LSTF Payment 2013-14 Capital Q3,SO14 7LF
Department for Transport,Department for Transport,26/02/2014,Cap Grt Loc Auth,Local,SOUTHEND-ON-SEA BC,8100008880,165000,LSTF Payment 2013-14 Capital Q3,SS2 6AN
Department for Transport,Department for Transport,26/02/2014,Cap Grt Loc Auth,Local,SOUTHEND-ON-SEA BC,8100008880,-165000,LSTF Payment 2013-14 Capital Q3,SS2 6AN
Department for Transport,Department for Transport,26/02/2014,Cap Grt Loc Auth,Local,ST HELENS MBC,8100008868,92250,LSTF Payment 2013-14 Capital Q3,WA10 1UQ
Department for Transport,Department for Transport,26/02/2014,Cap Grt Loc Auth,Local,ST HELENS MBC,8100008868,-92250,LSTF Payment 2013-14 Capital Q3,WA10 1UQ
Department for Transport,Department for Transport,26/02/2014,Cap Grt Loc Auth,Local,STAFFORDSHIRE COUNTY COUNCIL,8100008906,308130.75,LSTF Payment 2013-14 Capital Q3,ST16 2NF
Department for Transport,Department for Transport,26/02/2014,Cap Grt Loc Auth,Local,STAFFORDSHIRE COUNTY COUNCIL,8100008906,-308130.75,LSTF Payment 2013-14 Capital Q3,ST16 2NF
Department for Transport,Department for Transport,26/02/2014,Cap Grt Loc Auth,Local,STOCKTON ON TEES BC,8100008887,720483.75,LSTF Payment 2013-14 Capital Q3,TS23 2YS
Department for Transport,Department for Transport,26/02/2014,Cap Grt Loc Auth,Local,STOCKTON ON TEES BC,8100008887,-720483.75,LSTF Payment 2013-14 Capital Q3,TS23 2YS
Department for Transport,Department for Transport,26/02/2014,Cap Grt Loc Auth,Local,STOKE ON TRENT CITY COUNCIL,8100008871,213232.99,LSTF Payment 2013-14 Capital Q3,ST4 1RF
Department for Transport,Department for Transport,26/02/2014,Cap Grt Loc Auth,Local,STOKE ON TRENT CITY COUNCIL,8100008871,-213232.99,LSTF Payment 2013-14 Capital Q3,ST4 1RF
Department for Transport,Department for Transport,26/02/2014,Cap Grt Loc Auth,Local,SUFFOLK COUNTY COUNCIL,8100008888,238250,LSTF Payment 2013-14 Capital Q3,IP1 2DH
Department for Transport,Department for Transport,26/02/2014,Cap Grt Loc Auth,Local,SUFFOLK COUNTY COUNCIL,8100008888,-238250,LSTF Payment 2013-14 Capital Q3,IP1 2DH
Department for Transport,Department for Transport,26/02/2014,Cap Grt Loc Auth,Local,SURREY COUNTY COUNCIL,8100008902,1396750,LSTF Payment 2013-14 Capital Q3,KT1 2DN
Department for Transport,Department for Transport,26/02/2014,Cap Grt Loc Auth,Local,SURREY COUNTY COUNCIL,8100008902,-1396750,LSTF Payment 2013-14 Capital Q3,KT1 2DN
Department for Transport,Department for Transport,26/02/2014,Cap Grt Loc Auth,Local,SWINDON BC,8100008878,158250,LSTF Payment 2013-14 Capital Q3,SN1 2JH
Department for Transport,Department for Transport,26/02/2014,Cap Grt Loc Auth,Local,SWINDON BC,8100008878,-158250,LSTF Payment 2013-14 Capital Q3,SN1 2JH
Department for Transport,Department for Transport,26/02/2014,Cap Grt Loc Auth,Local,TELFORD & WREKIN DC,8100008894,1002645,LSTF Payment 2013-14 Capital Q3,TF3 4LF
Department for Transport,Department for Transport,26/02/2014,Cap Grt Loc Auth,Local,TELFORD & WREKIN DC,8100008894,-1002645,LSTF Payment 2013-14 Capital Q3,TF3 4LF
Department for Transport,Department for Transport,26/02/2014,Cap Grt Loc Auth,Local,THURROCK DC,8100008874,135000,LSTF Payment 2013-14 Capital Q3,RM17 6LT
Department for Transport,Department for Transport,26/02/2014,Cap Grt Loc Auth,Local,THURROCK DC,8100008874,-135000,LSTF Payment 2013-14 Capital Q3,RM17 6LT
Department for Transport,Department for Transport,26/02/2014,Cap Grt NDPBs & CG,Major Projects & Growth,RAIL SAFETY & STANDARDS BOARD,2000025472,3500000,RSSB BusResInitiative,NW1 2DX
Department for Transport,Department for Transport,26/02/2014,Cap Grt Pub Corp,Strategic Roads & Smart Ticketing,VEHICLE & OPERATOR SERVICES AGENCY,2000025457,579109,#,SA1 8AN
Department for Transport,Department for Transport,26/02/2014,Contract Cleaning,Rail Accident Investigation Branch,OFFICE CARE LTD,2000025480,1279.75,#,DE24 8AN
Department for Transport,Department for Transport,26/02/2014,CurrGrt Las in AEF/A,Local,Akcess CIC,2000025413,16012.54,Akcess CIC,SN2 8EA
Department for Transport,Department for Transport,26/02/2014,CurrGrt Las in AEF/A,Local,BATH AND NORTH EAST SOMERSET CNCL,2000025276,6170.56,Bath and Northeast Somerset Council,BS31 1LA
Department for Transport,Department for Transport,26/02/2014,CurrGrt Las in AEF/A,Local,BEDFORD BOROUGH COUNCIL,2000025397,8478.33,Bedford Borough Council,MK41 9RR
Department for Transport,Department for Transport,26/02/2014,CurrGrt Las in AEF/A,Local,BLACKBURN WITH DARWEN BC,2000025280,7430.76,Blackburn with Darwen Borough Council (PETROL),BB1 7DY
Department for Transport,Department for Transport,26/02/2014,CurrGrt Las in AEF/A,Local,Blackpool Council,2000025420,6789.06,Blackpool Council - Children & Young People,FY3 7HW
Department for Transport,Department for Transport,26/02/2014,CurrGrt Las in AEF/A,Local,BOURNEMOUTH BC,2000025282,5996.01,BOURNEMOUTH BOROUGH COUNCIL,BH2 6DY
Department for Transport,Department for Transport,26/02/2014,CurrGrt Las in AEF/A,Local,BRENT COMMUNITY TRANSPORT,2000025285,7587.85,BRENT COMMUNITY TRANSPORT,HA9 7RG
Department for Transport,Department for Transport,26/02/2014,CurrGrt Las in AEF/A,Local,BRENT COMMUNITY TRANSPORT,2000025285,1440.07,BRENT COMMUNITY TRANSPORT (PETROL),HA9 7RG
Department for Transport,Department for Transport,26/02/2014,CurrGrt Las in AEF/A,Local,BURY MBC,2000025287,8373.06,Bury MBC,BL9 0DN
Department for Transport,Department for Transport,26/02/2014,CurrGrt Las in AEF/A,Local,CALDERDALE MBC,2000025288,19299.2,CALDERDALE METROPOLITAN BOROUGH COUNCIL,HX1 4PL
Department for Transport,Department for Transport,26/02/2014,CurrGrt Las in AEF/A,Local,CAMBRIDGESHIRE COUNTY COUNCIL,2000025395,10843.84,Cambridgeshire County Council,CB3 0AP
Department for Transport,Department for Transport,26/02/2014,CurrGrt Las in AEF/A,Local,CITY OF SALFORD COM & SOC SERV,2000025357,929.68,CITY OF SALFORD COMMUNITY & SOCIAL SERVICES DIREC.,M50 1SW
Department for Transport,Department for Transport,26/02/2014,CurrGrt Las in AEF/A,Local,COMMUNITY FIRST HEH,2000025317,4190.7,COMMUNITY FIRST HEH,PO9 1SA
Department for Transport,Department for Transport,26/02/2014,CurrGrt Las in AEF/A,Local,CUMBRIA COUNTY COUNCIL,2000025414,866.79,Cumbria County Council,CA3 8NA
Department for Transport,Department for Transport,26/02/2014,CurrGrt Las in AEF/A,Local,DARLINGTON BOROUGH COUNCIL,2000025299,3745.45,Darlington Borough Council,DL1 5QT
Department for Transport,Department for Transport,26/02/2014,CurrGrt Las in AEF/A,Local,Dorset Community Transport Ltd,2000025422,3359.55,Dorset Community Transport Ltd,DT11 8ST
Department for Transport,Department for Transport,26/02/2014,CurrGrt Las in AEF/A,Local,DORSET COUNTY COUNCIL SOCIAL SERVS,2000025300,29509.03,DORSET SOCIAL SERVICES,DT1 1XJ
Department for Transport,Department for Transport,26/02/2014,CurrGrt Las in AEF/A,Local,EPSOM & EWELL BC,2000025302,3070.91,EPSOM & EWELL BOROUGH COUNCIL,KT19 0LU
Department for Transport,Department for Transport,26/02/2014,CurrGrt Las in AEF/A,Local,HALTON BC,2000025314,4875.55,HALTON BOROUGH COUNCIL,WA8 7QF
Department for Transport,Department for Transport,26/02/2014,CurrGrt Las in AEF/A,Local,HARTLEPOOL BOROUGH COUNCIL,2000025384,1470.9,Hartlepool Borough Council,TS24 7BT
Department for Transport,Department for Transport,26/02/2014,CurrGrt Las in AEF/A,Local,LANCASHIRE COUNTY COUNCIL,2000025329,79687.44,LANCASHIRE COUNTY COUNCIL (TRAVELCARE),PR1 0LD
Department for Transport,Department for Transport,26/02/2014,CurrGrt Las in AEF/A,Local,LEEDS CITY COUNCIL,2000025331,86277.32,LEEDS CITY COUNCIL,LS2 8JR
Department for Transport,Department for Transport,26/02/2014,CurrGrt Las in AEF/A,Local,LEICESTERSHIRE COUNTY COUNCIL,2000025332,53195.32,Leicester C C,LE3 8RF
Department for Transport,Department for Transport,26/02/2014,CurrGrt Las in AEF/A,Local,LITTLE GREEN BUS,2000025355,755.86,LITTLE GREEN BUS,BB7 1PL
Department for Transport,Department for Transport,26/02/2014,CurrGrt Las in AEF/A,Local,LONDON BOROUGH OF,2000025382,7017.12,LONDON BOROUGH OF BARKING AND DAGENHAM,RM10 7HE
Department for Transport,Department for Transport,26/02/2014,CurrGrt Las in AEF/A,Local,LONDON BOROUGH OF BARNET,2000025407,22604.33,London Borough of Barnet,N11 1NP
Department for Transport,Department for Transport,26/02/2014,CurrGrt Las in AEF/A,Local,London Borough of Croydon,2000025418,1912.7,London Borough of Croydon,CR9 3JS
Department for Transport,Department for Transport,26/02/2014,CurrGrt Las in AEF/A,Local,LONDON BOROUGH OF MERTON,2000025334,18449.96,London Borough Of Merton Transport Office,SM4 4AX
Department for Transport,Department for Transport,26/02/2014,CurrGrt Las in AEF/A,Local,MIDDLESBROUGH BC,2000025259,4716.68,Middlesbrough Council,TS1 2QQ
Department for Transport,Department for Transport,26/02/2014,CurrGrt Las in AEF/A,Local,NEWCASTLE CITY COUNCIL,2000025378,9192.97,Social Services Directorate Transport Section,NE1 8PA
Department for Transport,Department for Transport,26/02/2014,CurrGrt Las in AEF/A,Local,NORTH LINCOLNSHIRE DC,2000025348,14957.13,NORTH LINCOLNSHIRE COUNCIL,DN20 8XY
Department for Transport,Department for Transport,26/02/2014,CurrGrt Las in AEF/A,Local,NORTH YORKS CC SOCIAL SERVICES DIRE,2000025349,35454.93,NORTH YORKSHIRE COUNTY COUNCIL,DL7 8AL
Department for Transport,Department for Transport,26/02/2014,CurrGrt Las in AEF/A,Local,NORTHUMBERLAND COUNTY COUNCIL,2000025396,8237.45,NORTHUMBERLAND COUNTY COUNCIL,NE61 2EF
Department for Transport,Department for Transport,26/02/2014,CurrGrt Las in AEF/A,Local,NOTTINGHAMSHIRE CC,2000025350,27071.54,NOTTINGHAMSHIRE COUNTY COUNCIL,NG2 7QZ
Department for Transport,Department for Transport,26/02/2014,CurrGrt Las in AEF/A,Local,OXFORDSHIRE CC,2000025363,24671.07,OXFORDSHIRE COUNTY COUNCIL INTEG TRANSPORT UNIT,OX9 2JN
Department for Transport,Department for Transport,26/02/2014,CurrGrt Las in AEF/A,Local,SOUTH GLOUCESTERSHIRE CC,2000025364,10076.93,SOUTH GLOUCESTERSHIRE COUNCIL,BS35 9BP
Department for Transport,Department for Transport,26/02/2014,CurrGrt Las in AEF/A,Local,TELFORD & WREKIN DC,2000025369,20210.24,TELFORD & WREKIN COUNCIL,TF3 4LF
Department for Transport,Department for Transport,26/02/2014,CurrGrt Las in AEF/A,Local,WAKEFIELD MDC PASSENGER TRANSPORT,2000025386,17508.28,Wakefield MDC Passenger Transport,WF1 2TU
Department for Transport,Department for Transport,26/02/2014,CurrGrt Las in AEF/A,Local,WEST SUSSEX C C,2000025374,30546.26,WEST SUSSEX COUNTY COUNCIL,PO19 1RG
Department for Transport,Department for Transport,26/02/2014,CurrGrt Las in AEF/A,Major Projects & Growth,SOUTH YORKSHIRE PTE,2000025478,193794.97,S York PTE Shef-Roth19,S1 2BQ
Department for Transport,Department for Transport,26/02/2014,CurrGrtPriSec-P&NPIS,Major Projects & Growth,RAIL SAFETY & STANDARDS BOARD,2000025472,3335000,RSSB Q4 13/14 Innovation,NW1 2DX
Department for Transport,Department for Transport,26/02/2014,CurrGrtPriSec-P&NPIS,Major Projects & Growth,RAIL SAFETY & STANDARDS BOARD,2000025472,2250000,RSSB Q4 ResGrant,NW1 2DX
Department for Transport,Department for Transport,26/02/2014,CurrGrtPriSec-P&NPIS,Major Projects & Growth,RAIL SAFETY & STANDARDS BOARD,2000025472,238750,RSSB Q4 13/14 Dev- Grant,NW1 2DX
Department for Transport,Department for Transport,26/02/2014,CurrGrtPriSec-P&NPIS,Major Projects & Growth,RAIL SAFETY & STANDARDS BOARD,2000025472,1400000,RSSB R&Daddtl - AIR2,NW1 2DX
Department for Transport,Department for Transport,26/02/2014,IVR Costs,Motoring Services,CABLE & WIRELESS,2000025463,6120,Telephone charges 1/10/13 quarterly,MK3 5JP
Department for Transport,Department for Transport,26/02/2014,Pip - Rtoc,Rail Commercial & Programme Office,FIRST KEOLIS TRANSPENNINE,2000025473,102029.81,1412 Wk3 PIP P1411 - TRANSPENNINE EXPRESS (FIRST/K,M1 6LT
Department for Transport,Department for Transport,26/02/2014,Profit/Revenue Share,Rail Commercial & Programme Office,CROSS COUNTRY TRAINS LTD,2000025477,10336000,1412 Wk3 Revenue Support P1411 - ARRIVA TRAINS CRO,B5 4HA
Department for Transport,Department for Transport,26/02/2014,Recruitment,Group Human Resource,HM REVENUE & CUSTOMS,2000025456,641.12,#,BN12 4XH
Department for Transport,Department for Transport,26/02/2014,Recruitment,Group Human Resource,HM REVENUE & CUSTOMS,2000025456,3278.58,#,BN12 4XH
Department for Transport,Department for Transport,26/02/2014,Recruitment,Group Human Resource,HM REVENUE & CUSTOMS,2000025456,4669.04,#,BN12 4XH
Department for Transport,Department for Transport,26/02/2014,Recruitment,Group Human Resource,HM REVENUE & CUSTOMS,2000025456,1873.32,#,BN12 4XH
Department for Transport,Department for Transport,26/02/2014,Recruitment,Group Human Resource,HM REVENUE & CUSTOMS,2000025456,2582.15,#,BN12 4XH
Department for Transport,Department for Transport,26/02/2014,Recruitment,Group Human Resource,HM REVENUE & CUSTOMS,2000025456,6313.87,#,BN12 4XH
Department for Transport,Department for Transport,26/02/2014,Recruitment,Group Human Resource,HM REVENUE & CUSTOMS,2000025456,2580,#,BN12 4XH
Department for Transport,Department for Transport,26/02/2014,Recruitment,Group Human Resource,HM REVENUE & CUSTOMS,2000025456,3716.43,#,BN12 4XH
Department for Transport,Department for Transport,26/02/2014,Recruitment,Group Human Resource,HM REVENUE & CUSTOMS,2000025456,2692,#,BN12 4XH
Department for Transport,Department for Transport,26/02/2014,Recruitment,Group Human Resource,HM REVENUE & CUSTOMS,2000025456,1764.32,#,BN12 4XH
Department for Transport,Department for Transport,26/02/2014,Recruitment,Group Human Resource,HM REVENUE & CUSTOMS,2000025456,4243.47,#,BN12 4XH
Department for Transport,Department for Transport,26/02/2014,Recruitment,Group Human Resource,HM REVENUE & CUSTOMS,2000025456,7595.16,#,BN12 4XH
Department for Transport,Department for Transport,26/02/2014,Recruitment,Group Human Resource,HM REVENUE & CUSTOMS,2000025456,1988.73,#,BN12 4XH
Department for Transport,Department for Transport,26/02/2014,Recruitment,Group Human Resource,HM REVENUE & CUSTOMS,2000025456,4093.27,#,BN12 4XH
Department for Transport,Department for Transport,26/02/2014,Recruitment,Group Human Resource,HM REVENUE & CUSTOMS,2000025456,418.49,#,BN12 4XH
Department for Transport,Department for Transport,26/02/2014,Services prov by OGD,Transport Security Strategy,FCO SERVICES,2000025455,18298.8,#,MK19 7BH
Department for Transport,Department for Transport,26/02/2014,Sprs Indexation Pay-,Rail Commercial & Programme Office,CROSS COUNTRY TRAINS LTD,2000025477,-2175816,1412 Wk3 Franchise Payment Indexation P1412 - on a,B5 4HA
Department for Transport,Department for Transport,26/02/2014,Sprs Indexation Pay-,Rail Commercial & Programme Office,LONDON MIDLAND RAILWAY,2000025476,254441,1412 Wk3 Basic Franchise Payment - Indexation (mod,B2 4JB
Department for Transport,Department for Transport,26/02/2014,Sprs Indexation Pay-,Rail Commercial & Programme Office,NORTHERN RAIL LTD,2000025474,197737,1412 Wk3 Franchise Payment - HLOS - Indexation - N,YO1 6HT
Department for Transport,Department for Transport,26/02/2014,Sprs Indexation Pay-,Rail Commercial & Programme Office,NORTHERN RAIL LTD,2000025474,2929660.68,1412 Wk3 Franchise Payment Indexation - Model v12,YO1 6HT
Department for Transport,Department for Transport,26/02/2014,Sprs Indexation Pay-,Rail Commercial & Programme Office,FIRST KEOLIS TRANSPENNINE,2000025473,185137.09,1412 Wk3 Franchise Payment indexation - Model v11,M1 6LT
Department for Transport,Department for Transport,26/02/2014,Subsidies Private Se,Local,A S D TRANSPORT,2000025260,10189.41,A.S.D. TRANSPORT,ME2 4LT
Department for Transport,Department for Transport,26/02/2014,Subsidies Private Se,Local,ARRIVA EAST HERTS & ESSEX LTD,2000025271,31552.55,Arriva East Herts and Essex,LU4 8DS
Department for Transport,Department for Transport,26/02/2014,Subsidies Private Se,Local,BAGNALLS COACHES,2000025274,13375.95,Bagnalls Coaches,DE11 9DF
Department for Transport,Department for Transport,26/02/2014,Subsidies Private Se,Local,BATTLE AREA COMMUNITY TRANSPORT,2000025277,532.11,BATTLE AREA COMMUNITY TRANSPORT,TN33 0TY
Department for Transport,Department for Transport,26/02/2014,Subsidies Private Se,Local,BRYLAINE TRAVEL,2000025286,1102.27,BRYLAINE TRAVEL LTD,PE21 7DD
Department for Transport,Department for Transport,26/02/2014,Subsidies Private Se,Local,BUSKING LTD,2000025392,2116.91,BUS KING LTD T/A PHOENIX BUSES,Y025 8LG
Department for Transport,Department for Transport,26/02/2014,Subsidies Private Se,Local,CALNE TRAVEL,2000025406,2582.09,Calne Travel,SN11 0AL
Department for Transport,Department for Transport,26/02/2014,Subsidies Private Se,Local,CHESTER'S COACHES LTD,2000025290,12418.34,CHESTER'S COACHES LTD,M28 5LX
Department for Transport,Department for Transport,26/02/2014,Subsidies Private Se,Local,CRUISERS LTD,2000025296,1502.9,Cruisers Ltd,RH1 4DP
Department for Transport,Department for Transport,26/02/2014,Subsidies Private Se,Local,CUMBRIA COACHES LTD,2000025297,2967.4,CUMBRIA COACHES LTD,CA1 3NQ
Department for Transport,Department for Transport,26/02/2014,Subsidies Private Se,Local,xxxxxx,2000025298,1229.5,xxxxxx,xxxxxx
Department for Transport,Department for Transport,26/02/2014,Subsidies Private Se,Local,DOLPHIN COACHES,2000025400,930.23,Dolphin Coaches,BH21 1HB
Department for Transport,Department for Transport,26/02/2014,Subsidies Private Se,Local,EAST LONDON BUS AND,2000025301,661820.96,East London Bus & Coach Company Ltd,E16 4SA
Department for Transport,Department for Transport,26/02/2014,Subsidies Private Se,Local,EVERGREEN COACHES,2000025402,69920.21,Evergreen Coaches,B66 2RL
Department for Transport,Department for Transport,26/02/2014,Subsidies Private Se,Local,FIRST COACHES,2000025403,3075.63,First Coaches (Luton Service),LE4 0DA
Department for Transport,Department for Transport,26/02/2014,Subsidies Private Se,Local,FIRST HAMPSHIRE & DORSET LTD,2000025306,51595.51,FIRST SOUTHAMPTON,SO14 0JW
Department for Transport,Department for Transport,26/02/2014,Subsidies Private Se,Local,FIRST NORTHAMPTON LTD,2000025307,3568.36,First Northampton,LE4 0DA
Department for Transport,Department for Transport,26/02/2014,Subsidies Private Se,Local,FIRST RAIL SUPPORT,2000025308,266604.23,First Rail Support Ltd,BB12 7TG
Department for Transport,Department for Transport,26/02/2014,Subsidies Private Se,Local,FORD COACHES,2000025309,2170.36,Fords Coaches Ltd,CM3 6BZ
Department for Transport,Department for Transport,26/02/2014,Subsidies Private Se,Local,G.R.S. TRAVEL,2000025411,26774.65,G.R.S Travel,B70 0PP
Department for Transport,Department for Transport,26/02/2014,Subsidies Private Se,Local,xxxxxx,2000025311,1208.68,GLENN RYDER COACHES,xxxxxx
Department for Transport,Department for Transport,26/02/2014,Subsidies Private Se,Local,GREENLINE BUSES,2000025312,6103.93,HOWARDS TRAVEL,WA5 1UU
Department for Transport,Department for Transport,26/02/2014,Subsidies Private Se,Local,J & D TRAVEL,2000025394,740.08,J & D Travel,SG17 5HL
Department for Transport,Department for Transport,26/02/2014,Subsidies Private Se,Local,J.W Lodge & Sons Ltd,2000025424,17502.07,J.W  Lodge & Son's Ltd T/A Lodge Coaches,CM1 4QR
Department for Transport,Department for Transport,26/02/2014,Subsidies Private Se,Local,JIM STONES COACHES,2000025325,4627.77,Jim Stones Coaches,WA3 5LH
Department for Transport,Department for Transport,26/02/2014,Subsidies Private Se,Local,JST INTERNATIONAL,2000025326,1321.73,JST INTERNATIONAL,ST14 7AU
Department for Transport,Department for Transport,26/02/2014,Subsidies Private Se,Local,Kat Bond T/A Kee Travel,2000025425,2841.62,Kee Travel (RRS Only),WF6 2HA
Department for Transport,Department for Transport,26/02/2014,Subsidies Private Se,Local,LANGSTON & TASKER,2000025330,4448.44,LANGSTON & TASKER,MK18 2PZ
Department for Transport,Department for Transport,26/02/2014,Subsidies Private Se,Local,LONDON CENTRAL BUS CO LTD,2000025335,3118.7,LONDON CENTRAL BUS COMPANY LTD,SW19 1DN
Department for Transport,Department for Transport,26/02/2014,Subsidies Private Se,Local,LONDON GENERAL TRANSPORT SERVICES L,2000025336,19103.17,BLUE TRIANGLE BUSES LTD,SW19 1DN
Department for Transport,Department for Transport,26/02/2014,Subsidies Private Se,Local,LONDON SOVEREIGN LTD,2000025337,112584.96,LONDON SOVEREIGN LTD,TW2 5NX
Department for Transport,Department for Transport,26/02/2014,Subsidies Private Se,Local,LONDON UNITED BUSWAYS LTD,2000025338,269913.03,LONDON UNITED BUSWAYS LTD,TW2 5NX
Department for Transport,Department for Transport,26/02/2014,Subsidies Private Se,Local,Metroline West Limited,2000025421,35109.89,Metroline West Ltd,NW2 6JP
Department for Transport,Department for Transport,26/02/2014,Subsidies Private Se,Local,MH ELCOCK AND SON LTD,2000025341,1012.81,M H Elcock & Son Ltd,TF7 5HA
Department for Transport,Department for Transport,26/02/2014,Subsidies Private Se,Local,NIBSBUSES LTD,2000025346,2066.46,Nibsbuses Ltd,SS11 8BZ
Department for Transport,Department for Transport,26/02/2014,Subsidies Private Se,Local,ORIGINAL LONDON SIGHTSEEING TOUR LT,2000025353,14552.44,ARRIVA - The Original London Sightseeing Tour Ltd,SW18 1TB
Department for Transport,Department for Transport,26/02/2014,Subsidies Private Se,Local,P FROST TRAVEL,2000025409,1598.8,PF Travel,IP12 4EA
Department for Transport,Department for Transport,26/02/2014,Subsidies Private Se,Local,Reays Ltd,2000025419,96904.36,Reays Limited,CA7 9NE
Department for Transport,Department for Transport,26/02/2014,Subsidies Private Se,Local,RENOWN TRANSPORT SERVICES LTD,2000025416,29638.67,Renown Transport Service Ltd,TN39 3LG
Department for Transport,Department for Transport,26/02/2014,Subsidies Private Se,Local,SOUTH EAST LONDON &,2000025359,441918.44,SOUTH EAST LONDON & KENT BUS COMPANY LTD,E16 4SA
Department for Transport,Department for Transport,26/02/2014,Subsidies Private Se,Local,SOVEREIGN CARS & COACHES,2000025408,1181.29,Sovereign Cars & Coaches,DT7 3RD
Department for Transport,Department for Transport,26/02/2014,Subsidies Private Se,Local,SPELDHURST LTD T/A,2000025319,50572.35,SPELDHURST LTD T/A HERBERTS TRAVEL,MK42 0LF
Department for Transport,Department for Transport,26/02/2014,Subsidies Private Se,Local,SUFFOLK ACRE SERVICES LTD,2000025415,5115.79,Suffolk Acre Services Ltd,IP2 0HH
Department for Transport,Department for Transport,26/02/2014,Subsidies Private Se,Local,SUSSEX COACHES,2000025412,1281.34,Sussex Coaches,RH13 8PB
Department for Transport,Department for Transport,26/02/2014,Subsidies Private Se,Local,TATES TRAVEL LTD,2000025368,7286.18,TATES TRAVEL LTD,S75 1HT
Department for Transport,Department for Transport,26/02/2014,Subsidies Private Se,Local,TAYLORS COACH TRAVEL LTD,2000025399,564.86,Taylors Coach Travel Ltd,BA22 8HZ
Department for Transport,Department for Transport,26/02/2014,Subsidies Private Se,Local,TRAVEL WRIGHT LTD,2000025370,5662.86,Travel Wright Ltd,NG24 2AG
Department for Transport,Department for Transport,26/02/2014,Subsidies Private Se,Local,UK PRIVATE VEHICLE HIRE,2000025380,3541.82,UK Private Vehicle Hire Ltd,BL6 5UE
Department for Transport,Department for Transport,26/02/2014,Subsidies Private Se,Local,ACCESSIBLE PASSENGER TRANSPORT SERV,2000025261,29531.24,ACCESSIBLE PASSENGER TRANSPORT SERVICES LTD.,M12 4XZ
Department for Transport,Department for Transport,26/02/2014,Subsidies Private Se,Local,Accessible Transport 4U CIC Ltd,2000025423,2908.15,Accessible Transport 4 U,BS16 5BS
Department for Transport,Department for Transport,26/02/2014,Subsidies Private Se,Local,AGE CONCERN IN CORNWALL & IOS,2000025265,3089.59,AGE CONCERN IN CORNWALL AND ISLES OF SCILLY,TR1 3BN
Department for Transport,Department for Transport,26/02/2014,Subsidies Private Se,Local,AGE CONCERN MAIDSTONE,2000025266,2682.43,AGE CONCERN MAIDSTONE,ME15 6XH
Department for Transport,Department for Transport,26/02/2014,Subsidies Private Se,Local,AGE UK SEVENOAKS & TONBRIDGE,2000025269,1481.2,Age UK Sevenoaks and Tonbridge,TN13 3UB
Department for Transport,Department for Transport,26/02/2014,Subsidies Private Se,Local,AGE UK WEST CUMBRIA,2000025267,1330.53,AGE UK WEST CUMBRIA,CA28 7LR
Department for Transport,Department for Transport,26/02/2014,Subsidies Private Se,Local,ALDINGBOURNE COUNTRY CENTRE,2000025270,854.62,ALDINGBOURNE TRUST (BLACKMILL LANE),PO18 0JP
Department for Transport,Department for Transport,26/02/2014,Subsidies Private Se,Local,AXE VALLEY & W DORSET RING & RIDE,2000025272,1265.92,AXE VALLEY RING & RIDE,EX14 1PE
Department for Transport,Department for Transport,26/02/2014,Subsidies Private Se,Local,BACK & 4TH TRANSPORT,2000025273,2709.27,BACK & FORTH TRANSPORT,CV8 2LY
Department for Transport,Department for Transport,26/02/2014,Subsidies Private Se,Local,BOLTON COMMUNITY TRANSPORT & FS,2000025281,1482.05,BOLTON COMMUNITY TRANSPORT AND FURNITURE SERVICES,BL3 6DG
Department for Transport,Department for Transport,26/02/2014,Subsidies Private Se,Local,CHIPPENHAM & DISTRICT TRANSPORT,2000025291,987.71,CHIPPENHAM & DISTRICT TFDS,SN14 0LW
Department for Transport,Department for Transport,26/02/2014,Subsidies Private Se,Local,COASTAL ACCESSIBLE TRANSPORT,2000025293,3881.27,COASTAL ACCESSIBLE TRANSPORT & PENINSULAR SERVICES,IP16 4JD
Department for Transport,Department for Transport,26/02/2014,Subsidies Private Se,Local,COMMUNITY ACTION FAREHAM,2000025304,2620.73,COMMUNITY ACTION FAREHAM,PO16 0E
Department for Transport,Department for Transport,26/02/2014,Subsidies Private Se,Local,COMMUNITY MINIBUS ASSOCATION,2000025294,2031.01,COMMUNITY MINIBUS ASSOCIATION,RH20 4BE
Department for Transport,Department for Transport,26/02/2014,Subsidies Private Se,Local,Community Transport Services,2000025426,10301.15,Community trsnsport Services,M12 6LA
Department for Transport,Department for Transport,26/02/2014,Subsidies Private Se,Local,COMMUNITY TRANSPORT SOUTH WILTSHIRE,2000025295,1530.92,Community Transport South Wiltshire,SP2 7NP
Department for Transport,Department for Transport,26/02/2014,Subsidies Private Se,Local,COTSWOLD COUNCIL,2000025387,2471.1,Cotswold Council for Voluntary Service,GL7 6PY
Department for Transport,Department for Transport,26/02/2014,Subsidies Private Se,Local,DASH,2000025333,602.3,DASH,GU17 9BW
Department for Transport,Department for Transport,26/02/2014,Subsidies Private Se,Local,DEVIZES & DISTRICT P.H.A.B,2000025393,1188.43,DEVIZES & DISTRICT P.H.A.B,SN9 5DU
Department for Transport,Department for Transport,26/02/2014,Subsidies Private Se,Local,DORE COMMUNITY TRANSPORT,2000025410,688.44,Dore Community Transport,HR3 6AB
Department for Transport,Department for Transport,26/02/2014,Subsidies Private Se,Local,EREWASH COMMUNITY TRANSPORT,2000025303,11298.69,EREWASH COMMUNITY TRANSPORT LTD,DE7 4AZ
Department for Transport,Department for Transport,26/02/2014,Subsidies Private Se,Local,FELIXSTOWE AREA COMMUNITY,2000025305,1099.31,FELIXSTOWE AREA COMMUNITY TRANSPORT SCHEME,IP11 7SH
Department for Transport,Department for Transport,26/02/2014,Subsidies Private Se,Local,GOSPORT VOLUNTARY ACTION,2000025389,845.14,GOSPORT VOLUNTARY ACTION,PO12 1FG
Department for Transport,Department for Transport,26/02/2014,Subsidies Private Se,Local,GREEN COMMUNITY TRAVEL LTD,2000025376,3818.87,GREEN COMMUNITY TRAVEL LIMITED,BS37 7LW
Department for Transport,Department for Transport,26/02/2014,Subsidies Private Se,Local,HADLEIGH COMMUNITY TRANSPORT,2000025313,680.69,HADLEIGH COMMUNITY TRANSPORT GROUP LTD,IP7 6RH
Department for Transport,Department for Transport,26/02/2014,Subsidies Private Se,Local,HARLOW COMMUNITY TRANSPORT,2000025316,1919.57,HARLOW COMMUNITY TRANSPORT,CM18 7BL
Department for Transport,Department for Transport,26/02/2014,Subsidies Private Se,Local,ILKLEY & DISTRICT GOOD NEIGHBOURS,2000025324,715.97,ILKLEY & DISTRICT GOOD NEIGHBOURS CT,LS29 9LU
Department for Transport,Department for Transport,26/02/2014,Subsidies Private Se,Local,INSPIRE COMMUNITY TRUST,2000025401,1073.32,Inspire Community Trust,DA8 2DH
Department for Transport,Department for Transport,26/02/2014,Subsidies Private Se,Local,JOHN'S CLUB ISLE OF WIGHT,2000025405,609.79,John's Club Isle of Wight,PO37 6JJ
Department for Transport,Department for Transport,26/02/2014,Subsidies Private Se,Local,KEIGHLEY COMMUNITY TRANSPORT,2000025327,1921.66,KEIGHLEY COMMUNITY TRANSPORT,BD21 1PT
Department for Transport,Department for Transport,26/02/2014,Subsidies Private Se,Local,LACE HOUSING ASSOCIATION,2000025398,4873.83,Lace Housing Association,LN2 4UZ
Department for Transport,Department for Transport,26/02/2014,Subsidies Private Se,Local,LAUNCESTON COMMUNITY TRANSPORT,2000025385,588.69,LAUNCESTON COMMUNITY TRANSPORT PARTNERSHIP,PL15 8AU
Department for Transport,Department for Transport,26/02/2014,Subsidies Private Se,Local,MELKSHAM COUNCIL OF COMMUNITY SERV,2000025339,1499,MELKSHAM COUNCIL OF COMMUNITY SERVICE,SN12 6ES
Department for Transport,Department for Transport,26/02/2014,Subsidies Private Se,Local,MID BEDS LINK A RIDE CT LTD,2000025342,1746.66,MID BEDS LINK-A-RIDE,MK45 2TG
Department for Transport,Department for Transport,26/02/2014,Subsidies Private Se,Local,MIDSOMER NORTON & RADSTOCK RING & R,2000025343,1750.61,MIDSOMER NORTON & RADSTOCK RING & RIDE,BA3 2DP
Department for Transport,Department for Transport,26/02/2014,Subsidies Private Se,Local,MOORLANDS HOME LINK,2000025289,772.17,MOORLANDS HOME LINK,ST10 1EE
Department for Transport,Department for Transport,26/02/2014,Subsidies Private Se,Local,NORTH HOLDERNESS COM TRANSPORT,2000025347,3688.75,NORTH HOLDERNESS COMMUNITY TRANSPORT LTD,HU18 1JB
Department for Transport,Department for Transport,26/02/2014,Subsidies Private Se,Local,PLYNLIMON TRUST,2000025320,1675.67,PLYNLIMON TRUST,HR4 0DQ
Department for Transport,Department for Transport,26/02/2014,Subsidies Private Se,Local,READIBUS,2000025354,13886.55,READIBUS,RG2 0JX
Department for Transport,Department for Transport,26/02/2014,Subsidies Private Se,Local,SCOPE WEST SUSSEX,2000025358,1244.34,SCOPE WEST SUSSEX,PO19 5UA
Department for Transport,Department for Transport,26/02/2014,Subsidies Private Se,Local,SHREWSBURY DIAL-A-RIDE,2000025361,2081.99,SHREWSBURY COMMUNITY TRANSPORT INITIATIVE,SY1 4NS
Department for Transport,Department for Transport,26/02/2014,Subsidies Private Se,Local,SLOUGH COMM TRANS & SHOPMOBILITY,2000025362,9748.03,SLOUGH COMMUNITY TRANSPORT AND SHOPMOBILITY,SL1 1RA
Department for Transport,Department for Transport,26/02/2014,Subsidies Private Se,Local,SSVCA,2000025365,5660.43,South Somerset Association for Voluntary and Commu,BA22 8WA
Department for Transport,Department for Transport,26/02/2014,Subsidies Private Se,Local,SUTTON COMMUNITY TRANSPORT,2000025366,4307.47,SUTTON COMMUNITY TRANSPORT,CR0 4TS
Department for Transport,Department for Transport,26/02/2014,Subsidies Private Se,Local,SWINDON DIAL A RIDE,2000025367,5304.73,SWINDON DIAL A RIDE,SN2 1DZ
Department for Transport,Department for Transport,26/02/2014,Subsidies Private Se,Local,TENTERDEN AND DISTRICT DAY CENTRE,2000025377,1519.79,Tenterden & District Day Centre,TN30 6AT
